Workbook

Sheet 簡易入力シート
AH1: Ver.1.1.3
AE2: 作成日 | AF2: 2025-11-20
A3: R32ビル用マルチ安全対策要否判定シート（簡易版）
A5: 物件番号
A6: 物件名
A7: 系統番号
A8: 系統名
C12: ユニット形式 | E12: 出荷時 封入量 | H12: 部屋名 | K12: 部屋面積 （㎡） | N12: 漏えい 想定高さ （ｍ） | Q12: 部屋容積 （㎥） | T12: 安全対策 判定結果 | V12: 安全対策不要と なる最小面積 （㎡） | Y12: 地下最下層の場合 | AC12: 冷媒漏えい時 最大濃度 （kg/㎥） | AG12: 判定基準量 (kg/㎥)
I13: 地下最下層か↓
A14: 室外ユニット | B14: ① | D14: - | F14: kg | H14: - | K14: - | N14: - | Q14: - | T14: - | AC14: -
A15: 室内ユニット | B15: ② | E15: - | G15: ③ | J15: ④ | L15: =IF(K15<>"","㎡","") ->  | M15: ⑤ | O15: =IF(N15<>"","m","") ->  | Q15: =IF(OR(K15="", N15=""), "", K15*N15) ->  | R15: =IF(Q15<>"","㎥","") ->  | T15: =IF(OR(AC33="",Q15=""),"",IF(OR(C14="FDC(S)P1121LXZ",C14="FDC(S)P1401LXZ",C14="FDC(S)P1601LXZ"),IF(N15="","",IF(ROUNDUP(AC33/Q15,4) >= MAX(0.25*0.307, 2.5*0.307^(5/4)*N15*K15^0.5/Q15),"要","不要")),IF(ROUNDUP(AC33/Q15,4) >= 0.25*0.307,"要","不要"))) ->  | W15: =IF(AC33="","",IFERROR(ROUNDUP(IF(OR(C14="FDC(S)P1121LXZ",C14="FDC(S)P1401LXZ",C14="FDC(S)P1601LXZ"),MIN(AC33/N15/(0.25*0.307), (AC33/(2.5*0.307^(5/4)*N15))^2),AC33/N15/(0.25*0.307)),2),"")) ->  | X15: =IF(W15<>"","㎡","") ->  | Y15: =IF(I15="✓", IFERROR(IF(AC33/Q15 > IF(OR(C14="FDC(S)P1121LXZ",C14="FDC(S)P1401LXZ",C14="FDC(S)P1601LXZ"),0.1535,0.307),"システム見直し必要",""),""),"") ->  | AC15: =IF(OR(AC33="",Q15=""),"",ROUNDDOWN(AC33/Q15,4)) ->  | AF15: =IF(AC15<>"","kg/㎥","") ->  | AG15: =IF(OR(K15="",N15=""),"",IF(OR(C14="FDC(S)P1121LXZ",C14="FDC(S)P1401LXZ",C14="FDC(S)P1601LXZ"),ROUNDDOWN(MAX(0.25*0.307, 2.5*0.307^(5/4)*N15*K15^(1/2)/(K15*N15)),3),ROUNDDOWN(0.25*0.307,3))) ->  | AH15: =IF(AG15<>"","kg/㎥","") -> 
E16: - | L16: =IF(K16<>"","㎡","") ->  | O16: =IF(N16<>"","m","") ->  | Q16: =IF(OR(K16="", N16=""), "", K16*N16) ->  | R16: =IF(Q16<>"","㎥","") ->  | T16: =IF(OR(AC33="",Q16=""),"",IF(OR(C14="FDC(S)P1121LXZ",C14="FDC(S)P1401LXZ",C14="FDC(S)P1601LXZ"),IF(N16="","",IF(ROUNDUP(AC33/Q16,4) >= MAX(0.25*0.307, 2.5*0.307^(5/4)*N16*K16^0.5/Q16),"要","不要")),IF(ROUNDUP(AC33/Q16,4) >= 0.25*0.307,"要","不要"))) ->  | W16: =IF(AC33="","",IFERROR(ROUNDUP(IF(OR(C14="FDC(S)P1121LXZ",C14="FDC(S)P1401LXZ",C14="FDC(S)P1601LXZ"),MIN(AC33/N16/(0.25*0.307), (AC33/(2.5*0.307^(5/4)*N16))^2),AC33/N16/(0.25*0.307)),2),"")) ->  | X16: =IF(W16<>"","㎡","") ->  | Y16: =IF(I16="✓", IFERROR(IF(AC33/Q16 > IF(OR(C14="FDC(S)P1121LXZ",C14="FDC(S)P1401LXZ",C14="FDC(S)P1601LXZ"),0.1535,0.307),"システム見直し必要",""),""),"") ->  | AC16: =IF(OR(AC33="",Q16=""),"",ROUNDDOWN(AC33/Q16,4)) ->  | AF16: =IF(AC16<>"","kg/㎥","") ->  | AG16: =IF(OR(K16="",N16=""),"",IF(OR(C14="FDC(S)P1121LXZ",C14="FDC(S)P1401LXZ",C14="FDC(S)P1601LXZ"),ROUNDDOWN(MAX(0.25*0.307, 2.5*0.307^(5/4)*N16*K16^(1/2)/(K16*N16)),3),ROUNDDOWN(0.25*0.307,3))) ->  | AH16: =IF(AG16<>"","kg/㎥","") -> 
E17: - | L17: =IF(K17<>"","㎡","") ->  | O17: =IF(N17<>"","m","") ->  | T17: =IF(OR(AC33="",Q17=""),"",IF(OR(C14="FDC(S)P1121LXZ",C14="FDC(S)P1401LXZ",C14="FDC(S)P1601LXZ"),IF(N17="","",IF(ROUNDUP(AC33/Q17,4) >= MAX(0.25*0.307, 2.5*0.307^(5/4)*N17*K17^0.5/Q17),"要","不要")),IF(ROUNDUP(AC33/Q17,4) >= 0.25*0.307,"要","不要"))) ->  | W17: =IF(AC33="","",IFERROR(ROUNDUP(IF(OR(C14="FDC(S)P1121LXZ",C14="FDC(S)P1401LXZ",C14="FDC(S)P1601LXZ"),MIN(AC33/N17/(0.25*0.307), (AC33/(2.5*0.307^(5/4)*N17))^2),AC33/N17/(0.25*0.307)),2),"")) ->  | Y17: =IF(I17="✓", IFERROR(IF(AC33/Q17 > IF(OR(C14="FDC(S)P1121LXZ",C14="FDC(S)P1401LXZ",C14="FDC(S)P1601LXZ"),0.1535,0.307),"システム見直し必要",""),""),"") ->  | AC17: =IF(OR(AC33="",Q17=""),"",ROUNDDOWN(AC33/Q17,4)) ->  | AG17: =IF(OR(K17="",N17=""),"",IF(OR(C14="FDC(S)P1121LXZ",C14="FDC(S)P1401LXZ",C14="FDC(S)P1601LXZ"),ROUNDDOWN(MAX(0.25*0.307, 2.5*0.307^(5/4)*N17*K17^(1/2)/(K17*N17)),3),ROUNDDOWN(0.25*0.307,3))) -> 
E18: - | T18: =IF(OR(AC33="",Q18=""),"",IF(OR(C14="FDC(S)P1121LXZ",C14="FDC(S)P1401LXZ",C14="FDC(S)P1601LXZ"),IF(N18="","",IF(ROUNDUP(AC33/Q18,4) >= MAX(0.25*0.307, 2.5*0.307^(5/4)*N18*K18^0.5/Q18),"要","不要")),IF(ROUNDUP(AC33/Q18,4) >= 0.25*0.307,"要","不要"))) ->  | W18: =IF(AC33="","",IFERROR(ROUNDUP(IF(OR(C14="FDC(S)P1121LXZ",C14="FDC(S)P1401LXZ",C14="FDC(S)P1601LXZ"),MIN(AC33/N18/(0.25*0.307), (AC33/(2.5*0.307^(5/4)*N18))^2),AC33/N18/(0.25*0.307)),2),"")) ->  | Y18: =IF(I18="✓", IFERROR(IF(AC33/Q18 > IF(OR(C14="FDC(S)P1121LXZ",C14="FDC(S)P1401LXZ",C14="FDC(S)P1601LXZ"),0.1535,0.307),"システム見直し必要",""),""),"") ->  | AC18: =IF(OR(AC33="",Q18=""),"",ROUNDDOWN(AC33/Q18,4)) ->  | AG18: =IF(OR(K18="",N18=""),"",IF(OR(C14="FDC(S)P1121LXZ",C14="FDC(S)P1401LXZ",C14="FDC(S)P1601LXZ"),ROUNDDOWN(MAX(0.25*0.307, 2.5*0.307^(5/4)*N18*K18^(1/2)/(K18*N18)),3),ROUNDDOWN(0.25*0.307,3))) -> 
E19: - | T19: =IF(OR(AC33="",Q19=""),"",IF(OR(C14="FDC(S)P1121LXZ",C14="FDC(S)P1401LXZ",C14="FDC(S)P1601LXZ"),IF(N19="","",IF(ROUNDUP(AC33/Q19,4) >= MAX(0.25*0.307, 2.5*0.307^(5/4)*N19*K19^0.5/Q19),"要","不要")),IF(ROUNDUP(AC33/Q19,4) >= 0.25*0.307,"要","不要"))) ->  | W19: =IF(AC33="","",IFERROR(ROUNDUP(IF(OR(C14="FDC(S)P1121LXZ",C14="FDC(S)P1401LXZ",C14="FDC(S)P1601LXZ"),MIN(AC33/N19/(0.25*0.307), (AC33/(2.5*0.307^(5/4)*N19))^2),AC33/N19/(0.25*0.307)),2),"")) ->  | Y19: =IF(I19="✓", IFERROR(IF(AC33/Q19 > IF(OR(C14="FDC(S)P1121LXZ",C14="FDC(S)P1401LXZ",C14="FDC(S)P1601LXZ"),0.1535,0.307),"システム見直し必要",""),""),"") ->  | AC19: =IF(OR(AC33="",Q19=""),"",ROUNDDOWN(AC33/Q19,4)) ->  | AG19: =IF(OR(K19="",N19=""),"",IF(OR(C14="FDC(S)P1121LXZ",C14="FDC(S)P1401LXZ",C14="FDC(S)P1601LXZ"),ROUNDDOWN(MAX(0.25*0.307, 2.5*0.307^(5/4)*N19*K19^(1/2)/(K19*N19)),3),ROUNDDOWN(0.25*0.307,3))) -> 
E20: - | T20: =IF(OR(AC33="",Q20=""),"",IF(OR(C14="FDC(S)P1121LXZ",C14="FDC(S)P1401LXZ",C14="FDC(S)P1601LXZ"),IF(N20="","",IF(ROUNDUP(AC33/Q20,4) >= MAX(0.25*0.307, 2.5*0.307^(5/4)*N20*K20^0.5/Q20),"要","不要")),IF(ROUNDUP(AC33/Q20,4) >= 0.25*0.307,"要","不要"))) ->  | W20: =IF(AC33="","",IFERROR(ROUNDUP(IF(OR(C14="FDC(S)P1121LXZ",C14="FDC(S)P1401LXZ",C14="FDC(S)P1601LXZ"),MIN(AC33/N20/(0.25*0.307), (AC33/(2.5*0.307^(5/4)*N20))^2),AC33/N20/(0.25*0.307)),2),"")) ->  | Y20: =IF(I20="✓", IFERROR(IF(AC33/Q20 > IF(OR(C14="FDC(S)P1121LXZ",C14="FDC(S)P1401LXZ",C14="FDC(S)P1601LXZ"),0.1535,0.307),"システム見直し必要",""),""),"") ->  | AC20: =IF(OR(AC33="",Q20=""),"",ROUNDDOWN(AC33/Q20,4)) ->  | AG20: =IF(OR(K20="",N20=""),"",IF(OR(C14="FDC(S)P1121LXZ",C14="FDC(S)P1401LXZ",C14="FDC(S)P1601LXZ"),ROUNDDOWN(MAX(0.25*0.307, 2.5*0.307^(5/4)*N20*K20^(1/2)/(K20*N20)),3),ROUNDDOWN(0.25*0.307,3))) -> 
E21: - | T21: =IF(OR(AC33="",Q21=""),"",IF(OR(C14="FDC(S)P1121LXZ",C14="FDC(S)P1401LXZ",C14="FDC(S)P1601LXZ"),IF(N21="","",IF(ROUNDUP(AC33/Q21,4) >= MAX(0.25*0.307, 2.5*0.307^(5/4)*N21*K21^0.5/Q21),"要","不要")),IF(ROUNDUP(AC33/Q21,4) >= 0.25*0.307,"要","不要"))) ->  | W21: =IF(AC33="","",IFERROR(ROUNDUP(IF(OR(C14="FDC(S)P1121LXZ",C14="FDC(S)P1401LXZ",C14="FDC(S)P1601LXZ"),MIN(AC33/N21/(0.25*0.307), (AC33/(2.5*0.307^(5/4)*N21))^2),AC33/N21/(0.25*0.307)),2),"")) ->  | Y21: =IF(I21="✓", IFERROR(IF(AC33/Q21 > IF(OR(C14="FDC(S)P1121LXZ",C14="FDC(S)P1401LXZ",C14="FDC(S)P1601LXZ"),0.1535,0.307),"システム見直し必要",""),""),"") ->  | AC21: =IF(OR(AC33="",Q21=""),"",ROUNDDOWN(AC33/Q21,4)) ->  | AG21: =IF(OR(K21="",N21=""),"",IF(OR(C14="FDC(S)P1121LXZ",C14="FDC(S)P1401LXZ",C14="FDC(S)P1601LXZ"),ROUNDDOWN(MAX(0.25*0.307, 2.5*0.307^(5/4)*N21*K21^(1/2)/(K21*N21)),3),ROUNDDOWN(0.25*0.307,3))) -> 
E22: - | L22: =IF(K22<>"","㎡","") ->  | O22: =IF(N22<>"","m","") ->  | Q22: =IF(OR(K22="", N22=""), "", K22*N22) ->  | R22: =IF(Q22<>"","㎥","") ->  | T22: =IF(OR(AC33="",Q22=""),"",IF(OR(C14="FDC(S)P1121LXZ",C14="FDC(S)P1401LXZ",C14="FDC(S)P1601LXZ"),IF(N22="","",IF(ROUNDUP(AC33/Q22,4) >= MAX(0.25*0.307, 2.5*0.307^(5/4)*N22*K22^0.5/Q22),"要","不要")),IF(ROUNDUP(AC33/Q22,4) >= 0.25*0.307,"要","不要"))) ->  | W22: =IF(AC33="","",IFERROR(ROUNDUP(IF(OR(C14="FDC(S)P1121LXZ",C14="FDC(S)P1401LXZ",C14="FDC(S)P1601LXZ"),MIN(AC33/N22/(0.25*0.307), (AC33/(2.5*0.307^(5/4)*N22))^2),AC33/N22/(0.25*0.307)),2),"")) ->  | X22: =IF(W22<>"","㎡","") ->  | Y22: =IF(I22="✓", IFERROR(IF(AC33/Q22 > IF(OR(C14="FDC(S)P1121LXZ",C14="FDC(S)P1401LXZ",C14="FDC(S)P1601LXZ"),0.1535,0.307),"システム見直し必要",""),""),"") ->  | AC22: =IF(OR(AC33="",Q22=""),"",ROUNDDOWN(AC33/Q22,4)) ->  | AG22: =IF(OR(K22="",N22=""),"",IF(OR(C14="FDC(S)P1121LXZ",C14="FDC(S)P1401LXZ",C14="FDC(S)P1601LXZ"),ROUNDDOWN(MAX(0.25*0.307, 2.5*0.307^(5/4)*N22*K22^(1/2)/(K22*N22)),3),ROUNDDOWN(0.25*0.307,3))) -> 
E23: - | L23: =IF(K23<>"","㎡","") ->  | O23: =IF(N23<>"","m","") ->  | Q23: =IF(OR(K23="", N23=""), "", K23*N23) ->  | R23: =IF(Q23<>"","㎥","") ->  | T23: =IF(OR(AC33="",Q23=""),"",IF(OR(C14="FDC(S)P1121LXZ",C14="FDC(S)P1401LXZ",C14="FDC(S)P1601LXZ"),IF(N23="","",IF(ROUNDUP(AC33/Q23,4) >= MAX(0.25*0.307, 2.5*0.307^(5/4)*N23*K23^0.5/Q23),"要","不要")),IF(ROUNDUP(AC33/Q23,4) >= 0.25*0.307,"要","不要"))) ->  | W23: =IF(AC33="","",IFERROR(ROUNDUP(IF(OR(C14="FDC(S)P1121LXZ",C14="FDC(S)P1401LXZ",C14="FDC(S)P1601LXZ"),MIN(AC33/N23/(0.25*0.307), (AC33/(2.5*0.307^(5/4)*N23))^2),AC33/N23/(0.25*0.307)),2),"")) ->  | X23: =IF(W23<>"","㎡","") ->  | Y23: =IF(I23="✓", IFERROR(IF(AC33/Q23 > IF(OR(C14="FDC(S)P1121LXZ",C14="FDC(S)P1401LXZ",C14="FDC(S)P1601LXZ"),0.1535,0.307),"システム見直し必要",""),""),"") ->  | AC23: =IF(OR(AC33="",Q23=""),"",ROUNDDOWN(AC33/Q23,4)) ->  | AG23: =IF(OR(K23="",N23=""),"",IF(OR(C14="FDC(S)P1121LXZ",C14="FDC(S)P1401LXZ",C14="FDC(S)P1601LXZ"),ROUNDDOWN(MAX(0.25*0.307, 2.5*0.307^(5/4)*N23*K23^(1/2)/(K23*N23)),3),ROUNDDOWN(0.25*0.307,3))) -> 
E24: - | L24: =IF(K24<>"","㎡","") ->  | O24: =IF(N24<>"","m","") ->  | Q24: =IF(OR(K24="", N24=""), "", K24*N24) ->  | R24: =IF(Q24<>"","㎥","") ->  | T24: =IF(OR(AC33="",Q24=""),"",IF(OR(C14="FDC(S)P1121LXZ",C14="FDC(S)P1401LXZ",C14="FDC(S)P1601LXZ"),IF(N24="","",IF(ROUNDUP(AC33/Q24,4) >= MAX(0.25*0.307, 2.5*0.307^(5/4)*N24*K24^0.5/Q24),"要","不要")),IF(ROUNDUP(AC33/Q24,4) >= 0.25*0.307,"要","不要"))) ->  | W24: =IF(AC33="","",IFERROR(ROUNDUP(IF(OR(C14="FDC(S)P1121LXZ",C14="FDC(S)P1401LXZ",C14="FDC(S)P1601LXZ"),MIN(AC33/N24/(0.25*0.307), (AC33/(2.5*0.307^(5/4)*N24))^2),AC33/N24/(0.25*0.307)),2),"")) ->  | X24: =IF(W24<>"","㎡","") ->  | Y24: =IF(I24="✓", IFERROR(IF(AC33/Q24 > IF(OR(C14="FDC(S)P1121LXZ",C14="FDC(S)P1401LXZ",C14="FDC(S)P1601LXZ"),0.1535,0.307),"システム見直し必要",""),""),"") ->  | AC24: =IF(OR(AC33="",Q24=""),"",ROUNDDOWN(AC33/Q24,4)) ->  | AG24: =IF(OR(K24="",N24=""),"",IF(OR(C14="FDC(S)P1121LXZ",C14="FDC(S)P1401LXZ",C14="FDC(S)P1601LXZ"),ROUNDDOWN(MAX(0.25*0.307, 2.5*0.307^(5/4)*N24*K24^(1/2)/(K24*N24)),3),ROUNDDOWN(0.25*0.307,3))) -> 
E25: - | L25: =IF(K25<>"","㎡","") ->  | O25: =IF(N25<>"","m","") ->  | Q25: =IF(OR(K25="", N25=""), "", K25*N25) ->  | R25: =IF(Q25<>"","㎥","") ->  | T25: =IF(OR(AC33="",Q25=""),"",IF(OR(C14="FDC(S)P1121LXZ",C14="FDC(S)P1401LXZ",C14="FDC(S)P1601LXZ"),IF(N25="","",IF(ROUNDUP(AC33/Q25,4) >= MAX(0.25*0.307, 2.5*0.307^(5/4)*N25*K25^0.5/Q25),"要","不要")),IF(ROUNDUP(AC33/Q25,4) >= 0.25*0.307,"要","不要"))) ->  | W25: =IF(AC33="","",IFERROR(ROUNDUP(IF(OR(C14="FDC(S)P1121LXZ",C14="FDC(S)P1401LXZ",C14="FDC(S)P1601LXZ"),MIN(AC33/N25/(0.25*0.307), (AC33/(2.5*0.307^(5/4)*N25))^2),AC33/N25/(0.25*0.307)),2),"")) ->  | X25: =IF(W25<>"","㎡","") ->  | Y25: =IF(I25="✓", IFERROR(IF(AC33/Q25 > IF(OR(C14="FDC(S)P1121LXZ",C14="FDC(S)P1401LXZ",C14="FDC(S)P1601LXZ"),0.1535,0.307),"システム見直し必要",""),""),"") ->  | AC25: =IF(OR(AC33="",Q25=""),"",ROUNDDOWN(AC33/Q25,4)) ->  | AG25: =IF(OR(K25="",N25=""),"",IF(OR(C14="FDC(S)P1121LXZ",C14="FDC(S)P1401LXZ",C14="FDC(S)P1601LXZ"),ROUNDDOWN(MAX(0.25*0.307, 2.5*0.307^(5/4)*N25*K25^(1/2)/(K25*N25)),3),ROUNDDOWN(0.25*0.307,3))) -> 
E26: - | T26: =IF(OR(AC33="",Q26=""),"",IF(OR(C14="FDC(S)P1121LXZ",C14="FDC(S)P1401LXZ",C14="FDC(S)P1601LXZ"),IF(N26="","",IF(ROUNDUP(AC33/Q26,4) >= MAX(0.25*0.307, 2.5*0.307^(5/4)*N26*K26^0.5/Q26),"要","不要")),IF(ROUNDUP(AC33/Q26,4) >= 0.25*0.307,"要","不要"))) ->  | W26: =IF(AC33="","",IFERROR(ROUNDUP(IF(OR(C14="FDC(S)P1121LXZ",C14="FDC(S)P1401LXZ",C14="FDC(S)P1601LXZ"),MIN(AC33/N26/(0.25*0.307), (AC33/(2.5*0.307^(5/4)*N26))^2),AC33/N26/(0.25*0.307)),2),"")) ->  | Y26: =IF(I26="✓", IFERROR(IF(AC33/Q26 > IF(OR(C14="FDC(S)P1121LXZ",C14="FDC(S)P1401LXZ",C14="FDC(S)P1601LXZ"),0.1535,0.307),"システム見直し必要",""),""),"") ->  | AC26: =IF(OR(AC33="",Q26=""),"",ROUNDDOWN(AC33/Q26,4)) ->  | AG26: =IF(OR(K26="",N26=""),"",IF(OR(C14="FDC(S)P1121LXZ",C14="FDC(S)P1401LXZ",C14="FDC(S)P1601LXZ"),ROUNDDOWN(MAX(0.25*0.307, 2.5*0.307^(5/4)*N26*K26^(1/2)/(K26*N26)),3),ROUNDDOWN(0.25*0.307,3))) -> 
E27: - | L27: =IF(K27<>"","㎡","") ->  | O27: =IF(N27<>"","m","") ->  | Q27: =IF(OR(K27="", N27=""), "", K27*N27) ->  | R27: =IF(Q27<>"","㎥","") ->  | T27: =IF(OR(AC33="",Q27=""),"",IF(OR(C14="FDC(S)P1121LXZ",C14="FDC(S)P1401LXZ",C14="FDC(S)P1601LXZ"),IF(N27="","",IF(ROUNDUP(AC33/Q27,4) >= MAX(0.25*0.307, 2.5*0.307^(5/4)*N27*K27^0.5/Q27),"要","不要")),IF(ROUNDUP(AC33/Q27,4) >= 0.25*0.307,"要","不要"))) ->  | W27: =IF(AC33="","",IFERROR(ROUNDUP(IF(OR(C14="FDC(S)P1121LXZ",C14="FDC(S)P1401LXZ",C14="FDC(S)P1601LXZ"),MIN(AC33/N27/(0.25*0.307), (AC33/(2.5*0.307^(5/4)*N27))^2),AC33/N27/(0.25*0.307)),2),"")) ->  | X27: =IF(W27<>"","㎡","") ->  | Y27: =IF(I27="✓", IFERROR(IF(AC33/Q27 > IF(OR(C14="FDC(S)P1121LXZ",C14="FDC(S)P1401LXZ",C14="FDC(S)P1601LXZ"),0.1535,0.307),"システム見直し必要",""),""),"") ->  | AC27: =IF(OR(AC33="",Q27=""),"",ROUNDDOWN(AC33/Q27,4)) ->  | AG27: =IF(OR(K27="",N27=""),"",IF(OR(C14="FDC(S)P1121LXZ",C14="FDC(S)P1401LXZ",C14="FDC(S)P1601LXZ"),ROUNDDOWN(MAX(0.25*0.307, 2.5*0.307^(5/4)*N27*K27^(1/2)/(K27*N27)),3),ROUNDDOWN(0.25*0.307,3))) -> 
E28: - | T28: =IF(OR(AC33="",Q28=""),"",IF(OR(C14="FDC(S)P1121LXZ",C14="FDC(S)P1401LXZ",C14="FDC(S)P1601LXZ"),IF(N28="","",IF(ROUNDUP(AC33/Q28,4) >= MAX(0.25*0.307, 2.5*0.307^(5/4)*N28*K28^0.5/Q28),"要","不要")),IF(ROUNDUP(AC33/Q28,4) >= 0.25*0.307,"要","不要"))) ->  | W28: =IF(AC33="","",IFERROR(ROUNDUP(IF(OR(C14="FDC(S)P1121LXZ",C14="FDC(S)P1401LXZ",C14="FDC(S)P1601LXZ"),MIN(AC33/N28/(0.25*0.307), (AC33/(2.5*0.307^(5/4)*N28))^2),AC33/N28/(0.25*0.307)),2),"")) ->  | Y28: =IF(I28="✓", IFERROR(IF(AC33/Q28 > IF(OR(C14="FDC(S)P1121LXZ",C14="FDC(S)P1401LXZ",C14="FDC(S)P1601LXZ"),0.1535,0.307),"システム見直し必要",""),""),"") ->  | AC28: =IF(OR(AC33="",Q28=""),"",ROUNDDOWN(AC33/Q28,4)) ->  | AG28: =IF(OR(K28="",N28=""),"",IF(OR(C14="FDC(S)P1121LXZ",C14="FDC(S)P1401LXZ",C14="FDC(S)P1601LXZ"),ROUNDDOWN(MAX(0.25*0.307, 2.5*0.307^(5/4)*N28*K28^(1/2)/(K28*N28)),3),ROUNDDOWN(0.25*0.307,3))) -> 
E29: - | T29: =IF(OR(AC33="",Q29=""),"",IF(OR(C14="FDC(S)P1121LXZ",C14="FDC(S)P1401LXZ",C14="FDC(S)P1601LXZ"),IF(N29="","",IF(ROUNDUP(AC33/Q29,4) >= MAX(0.25*0.307, 2.5*0.307^(5/4)*N29*K29^0.5/Q29),"要","不要")),IF(ROUNDUP(AC33/Q29,4) >= 0.25*0.307,"要","不要"))) ->  | W29: =IF(AC33="","",IFERROR(ROUNDUP(IF(OR(C14="FDC(S)P1121LXZ",C14="FDC(S)P1401LXZ",C14="FDC(S)P1601LXZ"),MIN(AC33/N29/(0.25*0.307), (AC33/(2.5*0.307^(5/4)*N29))^2),AC33/N29/(0.25*0.307)),2),"")) ->  | Y29: =IF(I29="✓", IFERROR(IF(AC33/Q29 > IF(OR(C14="FDC(S)P1121LXZ",C14="FDC(S)P1401LXZ",C14="FDC(S)P1601LXZ"),0.1535,0.307),"システム見直し必要",""),""),"") ->  | AC29: =IF(OR(AC33="",Q29=""),"",ROUNDDOWN(AC33/Q29,4)) ->  | AG29: =IF(OR(K29="",N29=""),"",IF(OR(C14="FDC(S)P1121LXZ",C14="FDC(S)P1401LXZ",C14="FDC(S)P1601LXZ"),ROUNDDOWN(MAX(0.25*0.307, 2.5*0.307^(5/4)*N29*K29^(1/2)/(K29*N29)),3),ROUNDDOWN(0.25*0.307,3))) -> 
A30: 合計容量 | B30: ⑥ | D30: kW | F30: kg | G30: ※室内機合計容量分チャージ量
G31: =IF(OR(AND(C14="FDC(S)P1121LXZ",C30<=11.2),AND(C14="FDC(S)P1401LXZ",C30<=14)),"※室外機容量≧室内機容量のためチャージ不要","") ->  | AC31: =IF(C14="", "",IF(OR(C14="FDC(S)P1121LXZ", C14="FDC(S)P1401LXZ"),IF(H33+K33+N33+Q33+T33+W33<=20,"配管長20m以下は追加チャージ不要",IF(E30+Z34<1,"追加チャージ不要","")),"")) -> 
C32: 冷媒配管サイズ（液管） | H32: φ6.35 | K32: φ9.52 | N32: φ12.7 | Q32: φ15.88 | T32: φ19.05 | W32: φ22.22 | Y32: 冷媒配管分 チャージ量合計 | AC32: システム冷媒量
C33: 配管長さ（m） | G33: ⑦ | AC33: 0
C34: 冷媒配管分チャージ量（kg） | Z34: =SUM(N(H34),N(K34),N(N34),N(Q34),N(T34),N(W34)) -> 0 | AA34: kg | AF34: kg
M35: =IF(OR(N34="-"), "主管サイズを超過", "") ->  | P35: =IF(OR(Q34="-"), "主管サイズを超過", "") ->  | S35: =IF(OR(T34="-"), "主管サイズを超過", "") ->  | V35: =IF(OR(W34="-"), "主管サイズを超過", "") ->  | Y35: =IF(C14="", "", IF(OR(AND(OR(C14="FDC(S)P1121LXZ", C14="FDC(S)P1401LXZ"), H33+K33+N33+Q33+T33+W33<=20)), "※配管長20m以下" & CHAR(10) & " チャージレス", "")) ->  | AC35: =IF(OR(AC33<E14), "冷媒を回収してください", "") -> 

Sheet 計算シート (hidden)
U1: 20
M2: 0 | U2: 20 | AD2: 2000
A3: - | C3: - | D3: - | E3: - | V3: - | Y3: - | AB3: - | AE3: - | AH3: - | AK3: - | AM3: - | AQ3: - | AR3: E
U4: 冷媒配管分チャージ量
A5: カタログ 発行年月 | B5: 冷媒種 | C5: 型 | D5: 標準・ﾘﾌﾚｯｼｭ 冷暖ﾌﾘｰ・寒冷地 | E5: 耐重塩害 仕様 | F5: 馬力 | G5: シリーズ | H5: 機種名 | I5: 室外 容量 | J5: 組合せ機種 | M5: 室内機 接続容量 (kW) | N5: 室内機設置階 （[地下最下層] or[その他] で選択 | O5: 出荷時 充てん量 (Kg) | P5: 部屋面積 Ai（㎡） | Q5: 漏えい 想定高さ hi（ｍ） | R5: 部屋容積 V（ｍ３） | S5: 配管実長 (m) | T5: 主管 サイズ | U5: φ6.35 | X5: φ9.52 | AA5: φ12.7 | AD5: φ15.88 | AG5: φ19.05 | AJ5: φ22.22 | AM5: 冷媒配管分チャージ量 (kg) | AN5: 室内機 合計容量分 チェージ量 (kg) | AO5: 追加チャージ量 合計 (Kg) | AP5: システム 冷媒量 (Kg) | AQ5: 一系統上限値 (上限がない場合は空欄) | AR5: LFL | AV5: 判定結果 | AW5: 注意事項 ※一系統封入量上限を超過時メッセージを表示 | AX5: 条件(備考)
U6: 長さ（ｍ） | V6: 係数 | W6: ① 冷媒量 (Kg) | X6: 長さ（ｍ） | Y6: 係数 | Z6: ② 冷媒量 (Kg) | AA6: 長さ（ｍ） | AB6: 係数 | AC6: ③ 冷媒量 (Kg) | AD6: 長さ（ｍ） | AE6: 係数 | AF6: ④ 冷媒量 (Kg) | AG6: 長さ（ｍ） | AH6: 係数 | AI6: ⑤ 冷媒量 (Kg) | AJ6: 長さ（ｍ） | AK6: 係数 | AL6: ⑥ 冷媒量 (Kg) | AR6: 燃焼下限界濃度 (kg/㎥) | AS6: 冷媒漏えい時 最大濃度 (kg/㎥) | AT6: QLMV | AU6: ODL
B7: ◆１：選択 | H7: ◆２：選択 | M7: ◆８：Input | N7: ◆３：選択 | P7: ◆４：Input | Q7: ◆５：Input | S7: ◆６：選択 | U7: ◆７：Input | X7: ◆７：Input | AA7: ◆７：Input | AD7: ◆７：Input | AG7: ◆７：Input | AJ7: ◆７：Input
B9: R32 | C9: LXZ | D9: 標準 | F9: 4 | G9: サイドフローLXZ | H9: FDC(S)P1121LXZ | I9: 11.2 | M9: 225 | O9: 4.2 | R9: =IF(OR(P9="", Q9=""), "", P9*Q9) ->  | S9: 90m未満 | T9: =IF(S9="","",IF(S9="90m未満",VLOOKUP(B9&D9&","&F9,主管サイズルックアップ用,5,FALSE),VLOOKUP(B9&D9&","&F9,主管サイズルックアップ用,6,FALSE))) -> 9.52 | U9: 10 | V9: 0.02 | W9: =IF($T9="***","実長90m超使用不可",IF($T9<6.35,"-",IF(V9="***","0",U9*V9))) -> 0.2 | X9: 20 | Y9: 0.05 | Z9: =IF($T9="***","実長90m超使用不可",IF($T9<9.52,"-",IF(Y9="***","0",X9*Y9))) -> 1 | AA9: *** | AB9: *** | AC9: =IF($T9="***","実長90m超使用不可",IF($T9<12.7,"-",IF(AB9="***","0",AA9*AB9))) -> - | AD9: *** | AE9: *** | AF9: =IF($T9="***","実長90m超使用不可",IF($T9<15.88,"-",IF(AE9="***","0",AD9*AE9))) -> - | AG9: *** | AH9: *** | AI9: =IF($T9="***","実長90m超使用不可",IF($T9<19.05,"-",IF(AH9="***","0",AG9*AH9))) -> - | AJ9: *** | AK9: *** | AL9: =IF($T9="***","実長90m超使用不可",IF($T9<22.22,"-",IF(AK9="***","0",AJ9*AK9))) -> - | AM9: =IF(OR(W9="実長90m超使用不可",W9="-"),0,W9)+IF(OR(Z9="実長90m超使用不可",Z9="-"),0,Z9)+IF(OR(AC9="実長90m超使用不可",AC9="-"),0,AC9)+IF(OR(AF9="実長90m超使用不可",AF9="-"),0,AF9)+IF(OR(AI9="実長90m超使用不可",AI9="-"),0,AI9)+IF(OR(AL9="実長90m超使用不可",AL9="-"),0,AL9) -> 1.2 | AN9: =IF(M9 > I9, (M9 - I9) * 0.05, 0) -> 10.69 | AO9: =IF(AND(U9+X9<=20, U9+X9>=5), 0, IF(AN9+AM9<1, AN9+AM9+3.2-O9, AN9+AM9-1)) -> 10.89 | AP9: =O9+AO9 -> 15.09 | AQ9: =IF(ISERROR(VLOOKUP(C9&D9&","&F9,封入上限ルックアップ用,5,FALSE)),"",VLOOKUP(C9&D9&","&F9,封入上限ルックアップ用,5,FALSE)) -> 50 | AR9: 0.076 | AS9: =IFERROR(IF(R9=0, "NG", IF(AP9/R9 <= 0.25*0.307, "OK", "NG")), "") ->  | AT9: =IF(B9="R410A",0.42,IF(B9="R407C",0.46,IF(B9="R22",0.28,"NG"))) -> NG | AU9: =IF(B9="R410A",0.42,IF(B9="R407C",0.49,IF(B9="R22",0.5,"NG"))) -> NG | AV9: =IF(AR9="","",IF(OR(AR9<=AS9,AND(N9="その他",AR9<=AT9)),"OK",IF(OR(AND(N9="最下層",AR9<=AT9),AND(N9="その他",AR9<=AU9)),"対策が１つ必要です",IF(OR(AND(N9="最下層",AR9<=AU9),AND(N9="その他",AR9>AU9)),"対策が２つ必要です","システムの見直しが必要です")))) -> OK | AW9: =IF(AND(C9="LX3",#REF!>AQ9),"追加封入量の上限を超えています","") -> 
B10: R32 | C10: LXZ | D10: 標準 | F10: 5 | G10: サイドフローLXZ | H10: FDC(S)P1401LXZ | I10: 14 | M10: 16 | N10: その他 | O10: 4.2 | R10: =IF(OR(P10="", Q10=""), "", P10*Q10) ->  | S10: 90m未満 | T10: 9.52 | U10: 28 | V10: 0.02 | W10: =IF($T10="***","実長90m超使用不可",IF($T10<6.35,"-",IF(V10="***","0",U10*V10))) -> 0.56 | X10: 20 | Y10: 0.05 | Z10: =IF($T10="***","実長90m超使用不可",IF($T10<9.52,"-",IF(Y10="***","0",X10*Y10))) -> 1 | AA10: 20 | AB10: *** | AC10: =IF($T10="***","実長90m超使用不可",IF($T10<12.7,"-",IF(AB10="***","0",AA10*AB10))) -> - | AD10: *** | AE10: *** | AF10: =IF($T10="***","実長90m超使用不可",IF($T10<15.88,"-",IF(AE10="***","0",AD10*AE10))) -> - | AG10: *** | AH10: *** | AI10: =IF($T10="***","実長90m超使用不可",IF($T10<19.05,"-",IF(AH10="***","0",AG10*AH10))) -> - | AJ10: *** | AK10: *** | AL10: =IF($T10="***","実長90m超使用不可",IF($T10<22.22,"-",IF(AK10="***","0",AJ10*AK10))) -> - | AM10: =IF(OR(W10="実長90m超使用不可",W10="-"),0,W10)+IF(OR(Z10="実長90m超使用不可",Z10="-"),0,Z10)+IF(OR(AC10="実長90m超使用不可",AC10="-"),0,AC10)+IF(OR(AF10="実長90m超使用不可",AF10="-"),0,AF10)+IF(OR(AI10="実長90m超使用不可",AI10="-"),0,AI10)+IF(OR(AL10="実長90m超使用不可",AL10="-"),0,AL10) -> 1.56 | AN10: 0.1 | AO10: =IF(AND(U10+X10<=20, U10+X10>=5), 0, IF(AN10+AM10<1, AN10+AM10+3.2-O10, AN10+AM10-1)) -> 0.66 | AP10: 4.86 | AQ10: 50 | AR10: 0.076 | AT10: NG | AU10: NG | AV10: OK | AW10: =IF(AND(C10="LX3",#REF!>AQ10),"追加封入量の上限を超えています","") -> 
B11: R32 | C11: LXZ | D11: 標準 | F11: 6 | G11: サイドフローLXZ | H11: FDC(S)P1601LXZ | I11: 16 | M11: 16 | O11: 2.2 | S11: 90m未満 | T11: 9.52 | U11: 20.5 | V11: 0.019 | W11: =IF($T11="***","実長90m超使用不可",IF($T11<6.35,"-",IF(V11="***","0",U11*V11))) -> 0.3895 | X11: 20 | Y11: 0.052 | Z11: 1.04 | AA11: 20 | AB11: *** | AC11: - | AD11: *** | AE11: *** | AF11: - | AG11: *** | AH11: *** | AI11: - | AJ11: *** | AK11: *** | AL11: - | AM11: 1.4295 | AN11: =M11*0.075 -> 1.2 | AO11: =AM11+AN11 -> 2.6295 | AP11: 4.8295 | AQ11: 50 | AR11: 0.076 | AT11: NG | AU11: NG | AV11: OK | AW11: =IF(AND(C11="LX3",#REF!>AQ11),"追加封入量の上限を超えています","") -> 
B12: R32 | C12: LXZY | D12: 標準 | F12: 8 | G12: サイドフローLXZY | H12: FDC(S)P2241LXZY | I12: 22.4 | M12: 22.4 | O12: 6.5 | S12: 90m以上 | T12: 12.7 | U12: 10 | V12: 0.019 | W12: 0.19 | X12: 20 | Y12: 0.052 | Z12: 1.04 | AB12: 0.1 | AC12: 0 | AD12: *** | AE12: *** | AF12: - | AG12: *** | AH12: *** | AI12: - | AJ12: *** | AK12: *** | AL12: - | AM12: 1.23 | AN12: =M12*0.075 -> 1.68 | AO12: 2.91 | AP12: 9.41 | AQ12: 50 | AR12: 0.076 | AT12: NG | AU12: NG | AV12: OK | AW12: =IF(AND(C12="LX3",#REF!>AQ12),"追加封入量の上限を超えています","") -> 
B13: R32 | C13: LXZY | D13: 標準 | F13: 10 | G13: サイドフローLXZY | H13: FDC(S)P2801LXZY | I13: 28 | M13: 28 | N13: その他 | O13: 6.5 | S13: 90m以上 | T13: 12.7 | U13: 10 | V13: 0.019 | W13: 0.19 | X13: 10 | Y13: 0.052 | Z13: =IF($T13="***","実長90m超使用不可",IF($T13<9.52,"-",IF(Y13="***","0",ROUND(X13*Y13,2)))) -> 0.52 | AA13: 100 | AB13: 0.1 | AC13: 10 | AD13: 40 | AE13: *** | AF13: - | AG13: 50 | AH13: *** | AI13: - | AJ13: 50 | AK13: *** | AL13: - | AM13: 10.71 | AN13: =M13*0.075 -> 2.1 | AO13: 12.81 | AP13: 19.31 | AQ13: 50 | AR13: 0.076 | AT13: NG | AU13: NG | AV13: OK | AW13: =IF(AND(C13="LX3",#REF!>AQ13),"追加封入量の上限を超えています","") -> 
B14: R32 | C14: LXZ | D14: 標準 | F14: 8 | G14: 高効率LXZ | H14: FDC(S)P2241LXZ | I14: 22.4 | M14: 20 | O14: 7.7 | S14: 90m以上 | T14: 12.7 | U14: 95 | V14: 0.019 | W14: 1.805 | X14: 225 | Y14: 0.052 | Z14: =IF($T14="***","実長90m超使用不可",IF($T14<9.52,"-",IF(Y14="***","0",X14*Y14))) -> 11.7 | AB14: 0.1 | AC14: 0 | AD14: *** | AE14: *** | AF14: - | AG14: *** | AH14: *** | AI14: - | AJ14: *** | AK14: *** | AL14: - | AM14: 13.505 | AN14: 1.5 | AO14: 15.005 | AP14: 22.705 | AQ14: 63.8 | AR14: 0.076 | AT14: NG | AU14: NG | AV14: OK | AW14: =IF(AND(C14="LX3",#REF!>AQ14),"追加封入量の上限を超えています","") -> 
B15: R32 | C15: LXZ | D15: 標準 | F15: 10 | G15: 高効率LXZ | H15: FDC(S)P2801LXZ | I15: 28 | M15: 14 | N15: その他 | O15: 7.7 | S15: 90m以上 | T15: 12.7 | U15: 10 | V15: 0.019 | W15: 0.19 | X15: 20 | Y15: 0.052 | Z15: 1.04 | AA15: 30 | AB15: 0.1 | AC15: 3 | AD15: 40 | AE15: *** | AF15: - | AG15: 50 | AH15: *** | AI15: - | AJ15: 50 | AK15: *** | AL15: - | AM15: 4.23 | AN15: 1.05 | AO15: 5.28 | AP15: 12.98 | AQ15: 63.8 | AR15: 0.076 | AT15: NG | AU15: NG | AV15: OK | AW15: =IF(AND(C15="LX3",#REF!>AQ15),"追加封入量の上限を超えています","") -> 
B16: R32 | C16: LXZ | D16: 標準 | F16: 12 | G16: 高効率LXZ | H16: FDC(S)P3351LXZ | I16: 33.5 | M16: 33.5 | O16: 8.7 | S16: 90m以上 | T16: 12.7 | U16: 1 | V16: 0.019 | W16: 0.019 | X16: 20 | Y16: 0.052 | Z16: 1.04 | AA16: 30 | AB16: 0.1 | AC16: 3 | AD16: 40 | AE16: *** | AF16: - | AG16: 50 | AH16: *** | AI16: - | AJ16: *** | AK16: *** | AL16: - | AM16: 4.059 | AN16: 2.5125 | AO16: 6.5715 | AP16: 15.2715 | AQ16: 63.8 | AR16: 0.076 | AT16: NG | AU16: NG | AV16: OK | AW16: =IF(AND(C16="LX3",#REF!>AQ16),"追加封入量の上限を超えています","") -> 
B17: R32 | C17: LXZ | D17: 標準 | F17: 14 | G17: 高効率LXZ | H17: FDC(S)P4001LXZ | I17: 40 | M17: 40 | O17: 8.7 | S17: 90m以上 | T17: 12.7 | U17: 20 | V17: 0.019 | W17: 0.38 | X17: 1800 | Y17: 0.052 | Z17: 93.6 | AA17: 40 | AB17: 0.1 | AC17: 4 | AD17: 40 | AE17: *** | AF17: - | AG17: *** | AH17: *** | AI17: - | AJ17: *** | AK17: *** | AL17: - | AM17: 97.98 | AN17: 3 | AO17: 100.98 | AP17: 109.68 | AQ17: 63.8 | AR17: 0.076 | AT17: NG | AU17: NG | AV17: OK | AW17: =IF(AND(C17="LX3",#REF!>AQ17),"追加封入量の上限を超えています","") -> 
B18: R32 | C18: LXZ | D18: 標準 | F18: 16 | G18: 高効率LXZ | H18: FDC(S)P4501LXZ | I18: 45 | M18: 45 | N18: その他 | O18: 8.7 | S18: 90m以上 | T18: 12.7 | U18: 10 | V18: 0.019 | W18: 0.19 | X18: 20 | Y18: 0.052 | Z18: 1.04 | AA18: 30 | AB18: 0.1 | AC18: 3 | AD18: 40 | AE18: *** | AF18: - | AG18: 50 | AH18: *** | AI18: - | AJ18: 60 | AK18: *** | AL18: - | AM18: 4.23 | AN18: 3.375 | AO18: 7.605 | AP18: 16.305 | AQ18: 63.8 | AR18: 0.076 | AT18: NG | AU18: NG | AV18: OK | AW18: =IF(AND(C18="LX3",#REF!>AQ18),"追加封入量の上限を超えています","") -> 
B19: R32 | C19: LXZ | D19: 標準 | F19: 18 | G19: 高効率LXZ | H19: FDC(S)P5001LXZ | I19: 50 | M19: 50 | O19: 9.5 | S19: 90m以上 | T19: 15.88 | U19: 20 | V19: 0.019 | W19: 0.38 | X19: 20 | Y19: 0.052 | Z19: 1.04 | AA19: 2000 | AB19: 0.1 | AC19: 200 | AD19: 2000 | AE19: 0.16 | AF19: 320 | AG19: 200 | AH19: *** | AI19: - | AJ19: *** | AK19: *** | AL19: - | AM19: 521.42 | AN19: 3.75 | AO19: 525.17 | AP19: 534.67 | AQ19: 63.8 | AR19: 0.076 | AT19: NG | AU19: NG | AV19: OK | AW19: =IF(AND(C19="LX3",#REF!>AQ19),"追加封入量の上限を超えています","") -> 
B20: R32 | C20: LXZ | D20: 標準 | F20: 20 | G20: 高効率LXZ | H20: FDC(S)P5601LXZ | I20: 56 | M20: 56 | N20: その他 | O20: 9.5 | S20: 90m以上 | T20: 15.88 | U20: 100 | V20: 0.019 | W20: 1.9 | X20: 103 | Y20: 0.052 | Z20: 5.356 | AA20: 100 | AB20: 0.1 | AC20: 10 | AD20: 61 | AE20: 0.16 | AF20: 9.76 | AG20: *** | AH20: *** | AI20: - | AJ20: *** | AK20: *** | AL20: - | AM20: 27.016 | AN20: 4.2 | AO20: 31.216 | AP20: 40.716 | AQ20: 63.8 | AR20: 0.076 | AT20: NG | AU20: NG | AV20: OK | AW20: =IF(AND(C20="LX3",#REF!>AQ20),"追加封入量の上限を超えています","") -> 
B21: R32 | C21: LXZ | D21: 標準 | F21: 22 | G21: 高効率LXZ | H21: FDC(S)P6151LXZ | I21: 61.5 | J21: FDCP2801LXZ | K21: FDCP3351LXZ | O21: 16.4 | S21: 90m以上 | T21: 15.88 | V21: 0.019 | W21: 0 | Y21: 0.052 | Z21: 0 | AB21: 0.1 | AC21: 0 | AE21: 0.16 | AF21: 0 | AG21: *** | AH21: *** | AI21: - | AJ21: *** | AK21: *** | AL21: - | AM21: 0 | AN21: 0 | AO21: 0 | AP21: 16.4 | AQ21: 63.8 | AR21: 0.076 | AT21: NG | AU21: NG | AV21: OK | AW21: =IF(AND(C21="LX3",#REF!>AQ21),"追加封入量の上限を超えています","") -> 
B22: R32 | C22: LXZ | D22: 標準 | F22: 24 | G22: 高効率LXZ | H22: FDC(S)P6701LXZ | I22: 67 | J22: FDCP3351LXZ | K22: FDCP3351LXZ | O22: 17.4 | S22: 90m以上 | T22: 15.88 | V22: 0.019 | W22: 0 | Y22: 0.052 | Z22: 0 | AB22: 0.1 | AC22: 0 | AE22: 0.16 | AF22: 0 | AG22: *** | AH22: *** | AI22: - | AJ22: *** | AK22: *** | AL22: - | AM22: 0 | AN22: 0 | AO22: 0 | AP22: 17.4 | AQ22: 63.8 | AR22: 0.076 | AT22: NG | AU22: NG | AV22: OK | AW22: =IF(AND(C22="LX3",#REF!>AQ22),"追加封入量の上限を超えています","") -> 
B23: R32 | C23: LXZ | D23: 標準 | F23: 26 | G23: 高効率LXZ | H23: FDC(S)P7301LXZ | I23: 73 | J23: FDCP3351LXZ | K23: FDCP4001LXZ | O23: 17.4 | S23: 90m以上 | T23: 19.05 | V23: 0.019 | W23: 0 | Y23: 0.052 | Z23: 0 | AB23: 0.1 | AC23: 0 | AE23: 0.16 | AF23: 0 | AH23: 0.24 | AI23: 0 | AJ23: *** | AK23: *** | AL23: - | AM23: 0 | AN23: 0 | AO23: 0 | AP23: 17.4 | AQ23: 63.8 | AR23: 0.076 | AT23: NG | AU23: NG | AV23: OK | AW23: =IF(AND(C23="LX3",#REF!>AQ23),"追加封入量の上限を超えています","") -> 
B24: R32 | C24: LXZ | D24: 標準 | F24: 28 | G24: 高効率LXZ | H24: FDC(S)P7751LXZ | I24: 77.5 | J24: FDCP4001LXZ | K24: FDCP4001LXZ | O24: 17.4 | S24: 90m以上 | T24: 19.05 | V24: 0.019 | W24: 0 | Y24: 0.052 | Z24: 0 | AB24: 0.1 | AC24: 0 | AE24: 0.16 | AF24: 0 | AH24: 0.24 | AI24: 0 | AJ24: *** | AK24: *** | AL24: - | AM24: 0 | AN24: 0 | AO24: 0 | AP24: 17.4 | AQ24: 63.8 | AR24: 0.076 | AT24: NG | AU24: NG | AV24: OK | AW24: =IF(AND(C24="LX3",#REF!>AQ24),"追加封入量の上限を超えています","") -> 
B25: R32 | C25: LXZ | D25: 標準 | F25: 30 | G25: 高効率LXZ | H25: FDC(S)P8501LXZ | I25: 85 | J25: FDCP4001LXZ | K25: FDCP4501LXZ | O25: 17.4 | S25: 90m以上 | T25: 19.05 | V25: 0.019 | W25: 0 | Y25: 0.052 | Z25: 0 | AB25: 0.1 | AC25: 0 | AE25: 0.16 | AF25: 0 | AH25: 0.24 | AI25: 0 | AJ25: *** | AK25: *** | AL25: - | AM25: 0 | AN25: 0 | AO25: 0 | AP25: 17.4 | AQ25: 63.8 | AR25: 0.076 | AT25: NG | AU25: NG | AV25: OK | AW25: =IF(AND(C25="LX3",#REF!>AQ25),"追加封入量の上限を超えています","") -> 
B26: R32 | C26: LXZ | D26: 標準 | F26: 32 | G26: 高効率LXZ | H26: FDC(S)P9001LXZ | I26: 90 | J26: FDCP4501LXZ | K26: FDCP4501LXZ | O26: 17.4 | S26: 90m以上 | T26: 19.05 | V26: 0.019 | W26: 0 | Y26: 0.052 | Z26: 0 | AB26: 0.1 | AC26: 0 | AE26: 0.16 | AF26: 0 | AH26: 0.24 | AI26: 0 | AJ26: *** | AK26: *** | AL26: - | AM26: 0 | AN26: 0 | AO26: 0 | AP26: 17.4 | AQ26: 63.8 | AR26: 0.076 | AT26: NG | AU26: NG | AV26: OK | AW26: =IF(AND(C26="LX3",#REF!>AQ26),"追加封入量の上限を超えています","") -> 
B27: R32 | C27: LXZ | D27: 標準 | F27: 34 | G27: 高効率LXZ | H27: FDC(S)P9501LXZ | I27: 95 | J27: FDCP2801LXZ | K27: FDCP3351LXZ | L27: FDCP3351LXZ | O27: 25.1 | S27: 90m以上 | T27: 19.05 | V27: 0.019 | W27: 0 | Y27: 0.052 | Z27: 0 | AB27: 0.1 | AC27: 0 | AE27: 0.16 | AF27: 0 | AH27: 0.24 | AI27: 0 | AJ27: *** | AK27: *** | AL27: - | AM27: 0 | AN27: 0 | AO27: 0 | AP27: 25.1 | AQ27: 63.8 | AR27: 0.076 | AT27: NG | AU27: NG | AV27: OK | AW27: =IF(AND(C27="LX3",#REF!>AQ27),"追加封入量の上限を超えています","") -> 
B28: R32 | C28: LXZ | D28: 標準 | F28: 36 | G28: 高効率LXZ | H28: FDC(S)P10001LXZ | I28: 100 | J28: FDCP5001LXZ | K28: FDCP5001LXZ | O28: 19 | S28: 90m以上 | T28: 19.05 | V28: 0.019 | W28: 0 | Y28: 0.052 | Z28: 0 | AB28: 0.1 | AC28: 0 | AE28: 0.16 | AF28: 0 | AH28: 0.24 | AI28: 0 | AJ28: *** | AK28: *** | AL28: - | AM28: 0 | AN28: 0 | AO28: 0 | AP28: 19 | AQ28: 63.8 | AR28: 0.076 | AT28: NG | AU28: NG | AV28: OK | AW28: =IF(AND(C28="LX3",#REF!>AQ28),"追加封入量の上限を超えています","") -> 
B29: R32 | C29: LXZ | D29: 標準 | F29: 38 | G29: 高効率LXZ | H29: FDC(S)P10601LXZ | I29: 106 | J29: FDCP5001LXZ | K29: FDCP5601LXZ | O29: 19 | S29: 90m以上 | T29: 22.22 | V29: 0.019 | W29: 0 | Y29: 0.052 | Z29: 0 | AB29: 0.1 | AC29: 0 | AE29: 0.16 | AF29: 0 | AH29: 0.24 | AI29: 0 | AK29: 0.4 | AL29: 0 | AM29: 0 | AN29: 0 | AO29: 0 | AP29: 19 | AQ29: 63.8 | AR29: 0.076 | AT29: NG | AU29: NG | AV29: OK | AW29: =IF(AND(C29="LX3",#REF!>AQ29),"追加封入量の上限を超えています","") -> 
B30: R32 | C30: LXZ | D30: 標準 | F30: 40 | G30: 高効率LXZ | H30: FDC(S)P11201LXZ | I30: 112 | J30: FDCP5601LXZ | K30: FDCP5601LXZ | O30: 19 | S30: 90m以上 | T30: 22.22 | V30: 0.019 | W30: 0 | Y30: 0.052 | Z30: 0 | AB30: 0.1 | AC30: 0 | AE30: 0.16 | AF30: 0 | AH30: 0.24 | AI30: 0 | AK30: 0.4 | AL30: 0 | AM30: 0 | AN30: 0 | AO30: 0 | AP30: 19 | AQ30: 63.8 | AR30: 0.076 | AT30: NG | AU30: NG | AV30: OK | AW30: =IF(AND(C30="LX3",#REF!>AQ30),"追加封入量の上限を超えています","") -> 
B31: R32 | C31: LXZ | D31: 標準 | F31: 42 | G31: 高効率LXZ | H31: FDC(S)P11801LXZ | I31: 118 | J31: FDCP4001LXZ | K31: FDCP4001LXZ | L31: FDCP4001LXZ | M31: 100 | O31: 26.1 | S31: 90m以上 | T31: 22.22 | U31: 90 | V31: 0.019 | W31: 1.71 | X31: 100 | Y31: 0.052 | Z31: 5.2 | AB31: 0.1 | AC31: 0 | AE31: 0.16 | AF31: 0 | AH31: 0.24 | AI31: 0 | AK31: 0.4 | AL31: 0 | AM31: 6.91 | AN31: 7.5 | AO31: 14.41 | AP31: 40.51 | AQ31: 63.8 | AR31: 0.076 | AT31: NG | AU31: NG | AV31: OK | AW31: =IF(AND(C31="LX3",#REF!>AQ31),"追加封入量の上限を超えています","") -> 
B32: R32 | C32: LXZ | D32: 標準 | F32: 40 | G32: 高効率LXZ | H32: FDC(S)P12201LXZ | I32: 122 | J32: FDCP4001LXZ | K32: FDCP4001LXZ | L32: FDCP4501LXZ | M32: 122 | O32: 26.1 | S32: 90m以上 | T32: 22.22 | U32: 20 | V32: 0.019 | W32: 0.38 | X32: 20 | Y32: 0.052 | Z32: 1.04 | AA32: 30 | AB32: 0.1 | AC32: 3 | AD32: 40 | AE32: 0.16 | AF32: 6.4 | AG32: 50 | AH32: 0.24 | AI32: 12 | AJ32: 60 | AK32: 0.4 | AL32: 24 | AM32: 46.82 | AN32: 9.15 | AO32: 55.97 | AP32: 82.07 | AQ32: 63.8 | AR32: 0.076 | AT32: NG | AU32: NG | AV32: OK | AW32: =IF(AND(C32="LX3",#REF!>AQ32),"追加封入量の上限を超えています","") -> 
B33: R32 | C33: LXZ | D33: 標準 | F33: 46 | G33: 高効率LXZ | H33: FDC(S)P12801LXZ | I33: 128 | J33: FDCP4001LXZ | K33: FDCP4501LXZ | L33: FDCP4501LXZ | O33: 26.1 | S33: 90m以上 | T33: 22.22 | V33: 0.019 | W33: 0 | Y33: 0.052 | Z33: 0 | AB33: 0.1 | AC33: 0 | AE33: 0.16 | AF33: 0 | AH33: 0.24 | AI33: 0 | AK33: 0.4 | AL33: 0 | AM33: 0 | AN33: 0 | AO33: 0 | AP33: 26.1 | AQ33: 63.8 | AR33: 0.076 | AT33: NG | AU33: NG | AV33: OK | AW33: =IF(AND(C33="LX3",#REF!>AQ33),"追加封入量の上限を超えています","") -> 
B34: R32 | C34: LXZ | D34: 標準 | F34: 48 | G34: 高効率LXZ | H34: FDC(S)P13601LXZ | I34: 136 | J34: FDCP4501LXZ | K34: FDCP4501LXZ | L34: FDCP4501LXZ | O34: 26.1 | S34: 90m以上 | T34: 22.22 | V34: 0.019 | W34: 0 | Y34: 0.052 | Z34: 0 | AB34: 0.1 | AC34: 0 | AE34: 0.16 | AF34: 0 | AH34: 0.24 | AI34: 0 | AK34: 0.4 | AL34: 0 | AM34: 0 | AN34: 0 | AO34: 0 | AP34: 26.1 | AQ34: 63.8 | AR34: 0.076 | AT34: NG | AU34: NG | AV34: OK | AW34: =IF(AND(C34="LX3",#REF!>AQ34),"追加封入量の上限を超えています","") -> 
B35: R32 | C35: LXZ | D35: 標準 | F35: 54 | G35: 高効率LXZ | H35: FDC(S)P15001LXZ | I35: 150 | J35: FDCP5001LXZ | K35: FDCP5001LXZ | L35: FDCP5001LXZ | O35: 28.5 | S35: 90m以上 | T35: 22.22 | V35: 0.019 | W35: 0 | Y35: 0.052 | Z35: 0 | AB35: 0.1 | AC35: 0 | AE35: 0.16 | AF35: 0 | AH35: 0.24 | AI35: 0 | AK35: 0.4 | AL35: 0 | AM35: 0 | AN35: 0 | AO35: 0 | AP35: 28.5 | AQ35: 63.8 | AR35: 0.076 | AT35: NG | AU35: NG | AV35: OK | AW35: =IF(AND(C35="LX3",#REF!>AQ35),"追加封入量の上限を超えています","") -> 
B36: R32 | C36: LXZ | D36: 標準 | F36: 12 | G36: 省スペースLXZ | H36: FDC(S)P3351LXZ-N | I36: 33.5 | O36: 7.7 | S36: 90m以上 | T36: 12.7 | V36: 0.019 | W36: 0 | Y36: 0.052 | Z36: 0 | AB36: 0.1 | AC36: 0 | AD36: *** | AE36: *** | AF36: - | AG36: *** | AH36: *** | AI36: - | AJ36: *** | AK36: *** | AL36: - | AM36: 0 | AN36: 0 | AO36: 0 | AP36: 7.7 | AQ36: 63.8 | AR36: 0.076 | AT36: NG | AU36: NG | AV36: OK | AW36: =IF(AND(C36="LX3",#REF!>AQ36),"追加封入量の上限を超えています","") -> 
B37: R32 | C37: LXZ | D37: 標準 | F37: 18 | G37: 省スペースLXZ | H37: FDC(S)P5001LXZ-N | I37: 50 | O37: 8.7 | S37: 90m以上 | T37: 15.88 | V37: 0.019 | W37: 0 | Y37: 0.052 | Z37: 0 | AB37: 0.1 | AC37: 0 | AE37: 0.16 | AF37: 0 | AG37: *** | AH37: *** | AI37: - | AJ37: *** | AK37: *** | AL37: - | AM37: 0 | AN37: 0 | AO37: 0 | AP37: 8.7 | AQ37: 63.8 | AR37: 0.076 | AT37: NG | AU37: NG | AV37: OK | AW37: =IF(AND(C37="LX3",#REF!>AQ37),"追加封入量の上限を超えています","") -> 
B38: R32 | C38: LXZ | D38: 標準 | F38: 22 | G38: 省スペースLXZ | H38: FDC(S)P6151LXZ-N | I38: 61.5 | O38: 9.5 | S38: 90m以上 | T38: 15.88 | V38: 0.019 | W38: 0 | Y38: 0.052 | Z38: 0 | AB38: 0.1 | AC38: 0 | AE38: 0.16 | AF38: 0 | AG38: *** | AH38: *** | AI38: - | AJ38: *** | AK38: *** | AL38: - | AM38: 0 | AN38: 0 | AO38: 0 | AP38: 9.5 | AQ38: 63.8 | AR38: 0.076 | AT38: NG | AU38: NG | AV38: OK | AW38: =IF(AND(C38="LX3",#REF!>AQ38),"追加封入量の上限を超えています","") -> 
B39: R32 | C39: LXZ | D39: 標準 | F39: 24 | G39: 省スペースLXZ | H39: FDC(S)P6701LXZ-N | I39: 67 | O39: 9.5 | S39: 90m以上 | T39: 15.88 | V39: 0.019 | W39: 0 | Y39: 0.052 | Z39: 0 | AB39: 0.1 | AC39: 0 | AE39: 0.16 | AF39: 0 | AG39: *** | AH39: *** | AI39: - | AJ39: *** | AK39: *** | AL39: - | AM39: 0 | AN39: 0 | AO39: 0 | AP39: 9.5 | AQ39: 63.8 | AR39: 0.076 | AT39: NG | AU39: NG | AV39: OK | AW39: =IF(AND(C39="LX3",#REF!>AQ39),"追加封入量の上限を超えています","") -> 
B40: R32 | C40: LXZ | D40: 標準 | F40: 26 | G40: 省スペースLXZ | H40: FDC(S)P7301LXZ-D | I40: 73 | J40: FDCP3351LXZ-N | K40: FDCP4001LXZ | M40: 73 | O40: 16.4 | S40: 90m以上 | T40: 19.05 | U40: 50 | V40: 0.019 | W40: 0.95 | X40: 50 | Y40: 0.052 | Z40: 2.6 | AA40: 50 | AB40: 0.1 | AC40: 5 | AD40: 30 | AE40: 0.16 | AF40: 4.8 | AG40: 50 | AH40: 0.24 | AI40: 12 | AJ40: 50 | AK40: *** | AL40: - | AM40: 25.35 | AN40: 5.475 | AO40: 30.825 | AP40: 47.225 | AQ40: 63.8 | AR40: 0.076 | AT40: NG | AU40: NG | AV40: OK | AW40: =IF(AND(C40="LX3",#REF!>AQ40),"追加封入量の上限を超えています","") -> 
B41: R32 | C41: LXZ | D41: 標準 | F41: 34 | G41: 省スペースLXZ | H41: FDC(S)P9501LXZ-D | I41: 95 | J41: FDCP4501LXZ | K41: FDCP5001LXZ-N | O41: 17.4 | S41: 90m以上 | T41: 19.05 | V41: 0.019 | W41: 0 | Y41: 0.052 | Z41: 0 | AB41: 0.1 | AC41: 0 | AE41: 0.16 | AF41: 0 | AH41: 0.24 | AI41: 0 | AJ41: *** | AK41: *** | AL41: - | AM41: 0 | AN41: 0 | AO41: 0 | AP41: 17.4 | AQ41: 63.8 | AR41: 0.076 | AT41: NG | AU41: NG | AV41: OK | AW41: =IF(AND(C41="LX3",#REF!>AQ41),"追加封入量の上限を超えています","") -> 
B42: R32 | C42: LXZ | D42: 標準 | F42: 36 | G42: 省スペースLXZ | H42: FDC(S)P10001LXZ-D | I42: 100 | J42: FDCP5001LXZ-N | K42: FDCP5001LXZ-N | M42: 100 | O42: 17.4 | S42: 90m以上 | T42: 19.05 | U42: 20 | V42: 0.019 | W42: 0.38 | X42: 30 | Y42: 0.052 | Z42: 1.56 | AA42: 40 | AB42: 0.1 | AC42: 4 | AD42: 50 | AE42: 0.16 | AF42: 8 | AG42: 60 | AH42: 0.24 | AI42: 14.4 | AJ42: 70 | AK42: *** | AL42: - | AM42: 28.34 | AN42: 7.5 | AO42: 35.84 | AP42: 53.24 | AQ42: 63.8 | AR42: 0.076 | AT42: NG | AU42: NG | AV42: OK | AW42: =IF(AND(C42="LX3",#REF!>AQ42),"追加封入量の上限を超えています","") -> 
B43: R32 | C43: LXZ | D43: 標準 | F43: 38 | G43: 省スペースLXZ | H43: FDC(S)P10601LXZ-T | I43: 106 | J43: FDCP3351LXZ-N | K43: FDCP3351LXZ-N | L43: FDCP4001LXZ | O43: 24.1 | S43: 90m以上 | T43: 22.22 | V43: 0.019 | W43: 0 | Y43: 0.052 | Z43: 0 | AB43: 0.1 | AC43: 0 | AE43: 0.16 | AF43: 0 | AH43: 0.24 | AI43: 0 | AK43: 0.4 | AL43: 0 | AM43: 0 | AN43: 0 | AO43: 0 | AP43: 24.1 | AQ43: 63.8 | AR43: 0.076 | AT43: NG | AU43: NG | AV43: OK | AW43: =IF(AND(C43="LX3",#REF!>AQ43),"追加封入量の上限を超えています","") -> 
B44: R32 | C44: LXZ | D44: 標準 | F44: 42 | G44: 省スペースLXZ | H44: FDC(S)P11801LXZ-D | I44: 118 | J44: FDCP5601LXZ | K44: FDCP6151LXZ-N | O44: 19 | R44: =IF(OR(P44="", Q44=""), "", P44*Q44) ->  | S44: 90m以上 | T44: 22.22 | V44: 0.019 | W44: 0 | Y44: 0.052 | Z44: 0 | AB44: 0.1 | AC44: 0 | AE44: 0.16 | AF44: 0 | AH44: 0.24 | AI44: 0 | AK44: 0.4 | AL44: 0 | AM44: 0 | AN44: 0 | AO44: 0 | AP44: 19 | AQ44: 63.8 | AR44: 0.076 | AT44: NG | AU44: NG | AV44: OK | AW44: =IF(AND(C44="LX3",#REF!>AQ44),"追加封入量の上限を超えています","") -> 
B45: R32 | C45: LXZ | D45: 標準 | F45: 44 | G45: 省スペースLXZ | H45: FDC(S)P12201LXZ-D | I45: 122 | J45: FDCP6151LXZ-N | K45: FDCP6151LXZ-N | O45: 19 | S45: 90m以上 | T45: 22.22 | V45: 0.019 | W45: 0 | Y45: 0.052 | Z45: 0 | AB45: 0.1 | AC45: 0 | AE45: 0.16 | AF45: 0 | AH45: 0.24 | AI45: 0 | AK45: 0.4 | AL45: 0 | AM45: 0 | AN45: 0 | AO45: 0 | AP45: 19 | AQ45: 63.8 | AR45: 0.076 | AT45: NG | AU45: NG | AV45: OK | AW45: =IF(AND(C45="LX3",#REF!>AQ45),"追加封入量の上限を超えています","") -> 
B46: R32 | C46: LXZ | D46: 標準 | F46: 46 | G46: 省スペースLXZ | H46: FDC(S)P12801LXZ-D | I46: 128 | J46: FDCP6151LXZ-N | K46: FDCP6701LXZ-N | O46: 19 | S46: 90m以上 | T46: 22.22 | V46: 0.019 | W46: 0 | Y46: 0.052 | Z46: 0 | AB46: 0.1 | AC46: 0 | AE46: 0.16 | AF46: 0 | AH46: 0.24 | AI46: 0 | AK46: 0.4 | AL46: 0 | AM46: 0 | AN46: 0 | AO46: 0 | AP46: 19 | AQ46: 63.8 | AR46: 0.076 | AT46: NG | AU46: NG | AV46: OK | AW46: =IF(AND(C46="LX3",#REF!>AQ46),"追加封入量の上限を超えています","") -> 
B47: R32 | C47: LXZ | D47: 標準 | F47: 48 | G47: 省スペースLXZ | H47: FDC(S)P13601LXZ-D | I47: 136 | J47: FDCP6701LXZ-N | K47: FDCP6701LXZ-N | O47: 19 | S47: 90m以上 | T47: 22.22 | V47: 0.019 | W47: 0 | Y47: 0.052 | Z47: 0 | AB47: 0.1 | AC47: 0 | AE47: 0.16 | AF47: 0 | AH47: 0.24 | AI47: 0 | AK47: 0.4 | AL47: 0 | AM47: 0 | AN47: 0 | AO47: 0 | AP47: 19 | AQ47: 63.8 | AR47: 0.076 | AT47: NG | AU47: NG | AV47: OK | AW47: =IF(AND(C47="LX3",#REF!>AQ47),"追加封入量の上限を超えています","") -> 
B48: R32 | C48: LXZ | D48: 標準 | F48: 50 | G48: 省スペースLXZ | H48: FDC(S)P14001LXZ-T | I48: 140 | J48: FDCP4501LXZ | K48: FDCP4501LXZ | L48: FDCP5001LXZ-N | O48: 26.1 | S48: 90m以上 | T48: 22.22 | V48: 0.019 | W48: 0 | Y48: 0.052 | Z48: 0 | AB48: 0.1 | AC48: 0 | AE48: 0.16 | AF48: 0 | AH48: 0.24 | AI48: 0 | AK48: 0.4 | AL48: 0 | AM48: 0 | AN48: 0 | AO48: 0 | AP48: 26.1 | AQ48: 63.8 | AR48: 0.076 | AT48: NG | AU48: NG | AV48: OK | AW48: =IF(AND(C48="LX3",#REF!>AQ48),"追加封入量の上限を超えています","") -> 
B49: R32 | C49: LXZ | D49: 標準 | F49: 52 | G49: 省スペースLXZ | H49: FDC(S)P14501LXZ-T | I49: 145 | J49: FDCP4501LXZ | K49: FDCP5001LXZ-N | L49: FDCP5001LXZ-N | O49: 26.1 | S49: 90m以上 | T49: 22.22 | V49: 0.019 | W49: 0 | Y49: 0.052 | Z49: 0 | AB49: 0.1 | AC49: 0 | AE49: 0.16 | AF49: 0 | AH49: 0.24 | AI49: 0 | AK49: 0.4 | AL49: 0 | AM49: 0 | AN49: 0 | AO49: 0 | AP49: 26.1 | AQ49: 63.8 | AR49: 0.076 | AT49: NG | AU49: NG | AV49: OK | AW49: =IF(AND(C49="LX3",#REF!>AQ49),"追加封入量の上限を超えています","") -> 
B50: R32 | C50: LXZ | D50: 標準 | F50: 54 | G50: 省スペースLXZ | H50: FDC(S)P15001LXZ-T | I50: 150 | J50: FDCP5001LXZ-N | K50: FDCP5001LXZ-N | L50: FDCP5001LXZ-N | O50: 26.1 | S50: 90m以上 | T50: 22.22 | V50: 0.019 | W50: 0 | Y50: 0.052 | Z50: 0 | AB50: 0.1 | AC50: 0 | AE50: 0.16 | AF50: 0 | AH50: 0.24 | AI50: 0 | AK50: 0.4 | AL50: 0 | AM50: 0 | AN50: 0 | AO50: 0 | AP50: 26.1 | AQ50: 63.8 | AR50: 0.076 | AT50: NG | AU50: NG | AV50: OK | AW50: =IF(AND(C50="LX3",#REF!>AQ50),"追加封入量の上限を超えています","") -> 

Sheet 取説 (hidden)
B1: 【取説】冷媒量算出ツール
O2: B | P2: A | AT2: C | AV2: D | AW2: E
A3: カタログ 発行年月 | B3: 冷媒種 | C3: 型 | D3: 寒冷地 | E3: 冷暖フリー | F3: 容量 | G3: シリーズ | H3: 機種名 | I3: 仕区 | J3: 組合せ機種 | N3: 室内機設置階 （地下の [最下層] or[その他] で選択 | O3: 出荷時 充てん量 | P3: 室内容積 （ｍ３） | Q3: 配管実長 (m) | R3: 主管 サイズ | S3: φ6.35 | V3: φ9.52 | Y3: φ12.7 | AB3: φ15.88 | AE3: φ19.05 | AH3: φ22.22 | AK3: φ25.4 | AN3: ①～⑦ 単純 合計 | AO3: 冷暖フリーは *1.2,1.3,1.4 | AP3: ①～⑦ 合計 (Kg) | AQ3: 室内機 接続容量 (kW) | AR3: 係数 | AS3: ⑧ 冷媒量 | AT3: 現地 | AU3: 一系統 上限値 | AV3: システム | AW3: D/A | AX3: 限界濃度 | BA3: 判定 | BB3: 注意事項 ※一系統封入量上限を超過時メッセージを表示 | BC3: 条件(備考)
S4: 長さ（ｍ） | T4: 係数 | U4: ① 冷媒量 (Kg) | V4: 長さ（ｍ） | W4: 係数 | X4: ② 冷媒量 (Kg) | Y4: 長さ（ｍ） | Z4: 係数 | AA4: ③ 冷媒量 (Kg) | AB4: 長さ（ｍ） | AC4: 係数 | AD4: ④ 冷媒量 (Kg) | AE4: 長さ（ｍ） | AF4: 係数 | AG4: ⑤ 冷媒量 (Kg) | AH4: 長さ（ｍ） | AI4: 係数 | AJ4: ⑥ 冷媒量 (Kg) | AK4: 長さ（ｍ） | AL4: 係数 | AM4: ⑦ 冷媒量 (Kg) | AT4: ①～⑧ | AV4: 充てん量 (B+C) | AW4: 冷媒濃度 | AX4: RCL | AY4: QLMV | AZ4: ODL
B5: ①選択 | H5: ②選択 | N5: ③選択 | P5: ④入力 | Q5: ⑤選択 | S5: ⑥入力 | V5: ⑥入力 | Y5: ⑥入力 | AB5: ⑥入力 | AE5: ⑥入力 | AH5: ⑥入力 | AK5: ⑥入力 | AQ5: ⑦
B7: R22 | C7: 未分類 | F7: 280 | G7: FDCJ | H7: FDCJ280HKXI2 | J7: ISU13KX2 | K7: FDCJ280HKXI2 | N7: その他 | O7: 11 | R7: =IF(Q7="","",IF(Q7="90m未満",VLOOKUP(C7&D7&","&F7,主管サイズルックアップ用,5,FALSE),VLOOKUP(C7&D7&","&F7,主管サイズルックアップ用,6,FALSE))) ->  | T7: 0.03 | U7: =IF($R7="***","実長90m超使用不可",IF($R7<6.35,"-主管サイズを超過-",IF(T7="***","0",S7*T7))) -> 0 | W7: 0.06 | X7: =IF($R7="***","実長90m超使用不可",IF($R7<9.52,"-主管サイズを超過-",IF(W7="***","0",V7*W7))) -> 0 | Z7: 0.12 | AA7: =IF($R7="***","実長90m超使用不可",IF($R7<12.7,"-主管サイズを超過-",IF(Z7="***","0",Y7*Z7))) -> 0 | AC7: *** | AD7: =IF($R7="***","実長90m超使用不可",IF($R7<15.88,"-主管サイズを超過-",IF(AC7="***","0",AB7*AC7))) -> 0 | AF7: *** | AG7: =IF($R7="***","実長90m超使用不可",IF($R7<19.05,"-主管サイズを超過-",IF(AF7="***","0",AE7*AF7))) -> 0 | AI7: *** | AJ7: =IF($R7="***","実長90m超使用不可",IF($R7<22.22,"-主管サイズを超過-",IF(AI7="***","0",AH7*AI7))) -> 0 | AL7: *** | AM7: =IF($R7="***","実長90m超使用不可",IF($R7<25.4,"-主管サイズを超過-",IF(AL7="***","0",AK7*AL7))) -> 0 | AN7: =IF(OR(U7="実長90m超使用不可",U7="-主管サイズを超過-"),0,U7)+IF(OR(X7="実長90m超使用不可",X7="-主管サイズを超過-"),0,X7)+IF(OR(AA7="実長90m超使用不可",AA7="-主管サイズを超過-"),0,AA7)+IF(OR(AD7="実長90m超使用不可",AD7="-主管サイズを超過-"),0,AD7)+IF(OR(AG7="実長90m超使用不可",AG7="-主管サイズを超過-"),0,AG7)+IF(OR(AJ7="実長90m超使用不可",AJ7="-主管サイズを超過-"),0,AJ7)+IF(OR(AM7="実長90m超使用不可",AM7="-主管サイズを超過-"),0,AM7) -> 0 | AP7: =AN7*AO7 -> 0 | AR7: 17.4 | AS7: =AR7 -> 17.4 | AT7: =IF(AP7+AS7<0,0,AP7+AS7) -> 17.4 | AU7: =VLOOKUP(C7&D7&","&F7,封入上限ルックアップ用,5,FALSE) ->  | AV7: =O7+AT7 -> 28.4 | AW7: =IF(ISERROR(AV7/P7),"",AV7/P7) ->  | AX7: =IF(B7="R410A",0.39,IF(B7="R407C",0.27,IF(B7="R22",0.21,"NG"))) -> 0.21 | AY7: =IF(B7="R410A",0.42,IF(B7="R407C",0.46,IF(B7="R22",0.28,"NG"))) -> 0.28 | AZ7: =IF(B7="R410A",0.42,IF(B7="R407C",0.49,IF(B7="R22",0.5,"NG"))) -> 0.5 | BA7: =IF(AW7="","",IF(OR(AW7<=AX7,AND(N7="その他",AW7<=AY7)),"OK",IF(OR(AND(N7="最下層",AW7<=AY7),AND(N7="その他",AW7<=AZ7)),"対策が１つ必要です",IF(OR(AND(N7="最下層",AW7<=AZ7),AND(N7="その他",AW7>AZ7)),"対策が２つ必要です","システムの見直しが必要です")))) -> 
B8: R22 | C8: 未分類 | F8: 355 | G8: FDCJ | H8: FDCJ355HKXI2 | J8: ISU16KX2 | K8: FDCJ355HKXI2 | N8: その他 | O8: 20 | T8: 0.03 | U8: 0 | W8: 0.06 | X8: 0 | Z8: 0.12 | AA8: 0 | AC8: 0.2 | AD8: 0 | AF8: 0.28 | AG8: 0 | AI8: *** | AJ8: 0 | AL8: *** | AM8: 0 | AN8: 0 | AP8: =AN8*AO8 -> 0 | AR8: =IF(AQ8<=8,12,IF(AQ8<=13,12+(ROUNDDOWN(AQ8,0)-8)*0.5,"台数ｵｰﾊﾞ")) -> 12 | AS8: 12 | AT8: 12 | AV8: 32 | AX8: 0.21 | AY8: 0.28 | AZ8: 0.5
B9: R22 | C9: 未分類 | F9: 280 | G9: FDCSJ | H9: FDCSJ280HKXI2 | J9: ISU13KX2 | K9: FDCSJ280HKXI2 | N9: その他 | O9: 11 | T9: 0.03 | U9: 0 | W9: 0.06 | X9: 0 | Z9: 0.12 | AA9: 0 | AC9: *** | AD9: 0 | AF9: *** | AG9: 0 | AI9: *** | AJ9: 0 | AL9: *** | AM9: 0 | AN9: 0 | AP9: 0 | AR9: 17.4 | AS9: 17.4 | AT9: 17.4 | AV9: 28.4 | AX9: 0.21 | AY9: 0.28 | AZ9: 0.5
B10: R22 | C10: 未分類 | F10: 355 | G10: FDCSJ | H10: FDCSJ355HKXI2 | J10: ISU16KX2 | K10: FDCSJ355HKXI2 | N10: 最下層 | O10: 20 | T10: 0.03 | U10: 0 | W10: 0.06 | X10: 0 | Z10: 0.12 | AA10: 0 | AC10: 0.2 | AD10: 0 | AF10: 0.28 | AG10: 0 | AI10: *** | AJ10: 0 | AL10: *** | AM10: 0 | AN10: 0 | AP10: 0 | AR10: =IF(AQ10<=8,12,IF(AQ10<=13,12+(ROUNDDOWN(AQ10,0)-8)*0.5,"台数ｵｰﾊﾞ")) -> 12 | AS10: 12 | AT10: 12 | AV10: 32 | AX10: 0.21 | AY10: 0.28 | AZ10: 0.5
B11: R22 | C11: 未分類 | F11: 140 | G11: FDCJ | H11: FDCJ140HKX2A | N11: その他 | O11: 9 | T11: 0.03 | U11: 0 | W11: 0.06 | X11: 0 | Z11: 0.12 | AA11: 0 | AC11: *** | AD11: 0 | AF11: *** | AG11: 0 | AI11: *** | AJ11: 0 | AL11: *** | AM11: 0 | AN11: 0 | AP11: 0 | AR11: 0 | AS11: 0 | AT11: 0 | AV11: 9 | AX11: 0.21 | AY11: 0.28 | AZ11: 0.5
B12: R22 | C12: 未分類 | F12: 160 | G12: FDCJ | H12: FDCJ160HKX2A | N12: その他 | O12: 9 | T12: 0.03 | U12: 0 | W12: 0.06 | X12: 0 | Z12: 0.12 | AA12: 0 | AC12: *** | AD12: 0 | AF12: *** | AG12: 0 | AI12: *** | AJ12: 0 | AL12: *** | AM12: 0 | AN12: 0 | AP12: 0 | AR12: 0 | AS12: 0 | AT12: 0 | AV12: 9 | AX12: 0.21 | AY12: 0.28 | AZ12: 0.5
B13: R22 | C13: 未分類 | F13: 224 | G13: FDCJ | H13: FDCJ224HKX2A | N13: その他 | O13: 12 | T13: 0.03 | U13: 0 | W13: 0.06 | X13: 0 | Z13: 0.12 | AA13: 0 | AC13: *** | AD13: 0 | AF13: *** | AG13: 0 | AI13: *** | AJ13: 0 | AL13: *** | AM13: 0 | AN13: 0 | AP13: 0 | AR13: 0 | AS13: 0 | AT13: 0 | AV13: 12 | AX13: 0.21 | AY13: 0.28 | AZ13: 0.5
B14: R22 | C14: 未分類 | F14: 280 | G14: FDCJ | H14: FDCJ280HKX2A | N14: その他 | O14: 12 | T14: 0.03 | U14: 0 | W14: 0.06 | X14: 0 | Z14: 0.12 | AA14: 0 | AC14: *** | AD14: 0 | AF14: *** | AG14: 0 | AI14: *** | AJ14: 0 | AL14: *** | AM14: 0 | AN14: 0 | AP14: 0 | AR14: 0 | AS14: 0 | AT14: 0 | AV14: 12 | AX14: 0.21 | AY14: 0.28 | AZ14: 0.5
B15: R22 | C15: 未分類 | F15: 355 | G15: FDCJ | H15: FDCJ355HKXA | N15: その他 | O15: 20 | T15: 0.03 | U15: 0 | W15: 0.06 | X15: 0 | Z15: 0.12 | AA15: 0 | AC15: 0.2 | AD15: 0 | AF15: 0.28 | AG15: 0 | AI15: *** | AJ15: 0 | AL15: *** | AM15: 0 | AN15: 0 | AP15: 0 | AR15: =IF(AQ15<=8,0,IF(AQ15<=13,(ROUNDDOWN(AQ15,0)-8)*0.5,"台数ｵｰﾊﾞ")) -> 0 | AS15: 0 | AT15: 0 | AV15: 20 | AX15: 0.21 | AY15: 0.28 | AZ15: 0.5
B16: R22 | C16: 未分類 | F16: 450 | G16: FDCJ | H16: FDCJ450HKXA | N16: その他 | O16: 20 | T16: 0.03 | U16: 0 | W16: 0.06 | X16: 0 | Z16: 0.12 | AA16: 0 | AC16: 0.2 | AD16: 0 | AF16: 0.28 | AG16: 0 | AI16: *** | AJ16: 0 | AL16: *** | AM16: 0 | AN16: 0 | AP16: 0 | AR16: =IF(AQ16<=8,0,IF(AQ16<=16,(ROUNDDOWN(AQ16,0)-8)*0.5,"台数ｵｰﾊﾞ")) -> 0 | AS16: 0 | AT16: 0 | AV16: 20 | AX16: 0.21 | AY16: 0.28 | AZ16: 0.5
B17: R22 | C17: 未分類 | F17: 224 | G17: FDCJ | H17: FDCJ224HKX2A-K | N17: その他 | O17: 12 | T17: 0.03 | U17: 0 | W17: 0.06 | X17: 0 | Z17: 0.12 | AA17: 0 | AC17: 0.2 | AD17: 0 | AF17: 0.28 | AG17: 0 | AI17: 0.4 | AJ17: 0 | AL17: *** | AM17: 0 | AN17: 0 | AP17: 0 | AR17: 0 | AS17: 0 | AT17: 0 | AV17: 12 | AX17: 0.21 | AY17: 0.28 | AZ17: 0.5 | BC17: 組合せ専用機
B18: R22 | C18: 未分類 | F18: 280 | G18: FDCJ | H18: FDCJ280HKX2A-K | N18: その他 | O18: 12 | T18: 0.03 | U18: 0 | W18: 0.06 | X18: 0 | Z18: 0.12 | AA18: 0 | AC18: 0.2 | AD18: 0 | AF18: 0.28 | AG18: 0 | AI18: 0.4 | AJ18: 0 | AL18: *** | AM18: 0 | AN18: 0 | AP18: 0 | AR18: 0 | AS18: 0 | AT18: 0 | AV18: 12 | AX18: 0.21 | AY18: 0.28 | AZ18: 0.5 | BC18: 組合せ専用機
B19: R22 | C19: 未分類 | F19: 224 | G19: FDCJ | H19: FDCJ224HKX2A-KT | N19: その他 | O19: 5 | T19: 0.03 | U19: 0 | W19: 0.06 | X19: 0 | Z19: 0.12 | AA19: 0 | AC19: 0.2 | AD19: 0 | AF19: 0.28 | AG19: 0 | AI19: 0.4 | AJ19: 0 | AL19: *** | AM19: 0 | AN19: 0 | AP19: 0 | AR19: 0 | AS19: 0 | AT19: 0 | AV19: 5 | AX19: 0.21 | AY19: 0.28 | AZ19: 0.5 | BC19: 組合せ専用機
B20: R22 | C20: 未分類 | F20: 280 | G20: FDCJ | H20: FDCJ280HKX2A-KT | N20: その他 | O20: 7 | T20: 0.03 | U20: 0 | W20: 0.06 | X20: 0 | Z20: 0.12 | AA20: 0 | AC20: 0.2 | AD20: 0 | AF20: 0.28 | AG20: 0 | AI20: 0.4 | AJ20: 0 | AL20: *** | AM20: 0 | AN20: 0 | AP20: 0 | AR20: 0 | AS20: 0 | AT20: 0 | AV20: 7 | AX20: 0.21 | AY20: 0.28 | AZ20: 0.5 | BC20: 組合せ専用機
B21: R22 | C21: 未分類 | G21: FDCJ | H21: FDCJ225HKX2A-KT | N21: その他 | O21: 5 | T21: 0.03 | U21: 0 | W21: 0.06 | X21: 0 | Z21: 0.12 | AA21: 0 | AC21: 0.2 | AD21: 0 | AF21: 0.28 | AG21: 0 | AI21: 0.4 | AJ21: 0 | AL21: *** | AM21: 0 | AN21: 0 | AP21: 0 | AR21: 0 | AS21: 0 | AT21: 0 | AV21: 5 | AX21: 0.21 | AY21: 0.28 | AZ21: 0.5 | BC21: 組合せ専用機
B22: R22 | C22: 未分類 | G22: FDCJ | H22: FDCJ281HKX2A-KT | N22: その他 | O22: 7 | T22: 0.03 | U22: 0 | W22: 0.06 | X22: 0 | Z22: 0.12 | AA22: 0 | AC22: 0.2 | AD22: 0 | AF22: 0.28 | AG22: 0 | AI22: 0.4 | AJ22: 0 | AL22: *** | AM22: 0 | AN22: 0 | AP22: 0 | AR22: 0 | AS22: 0 | AT22: 0 | AV22: 7 | AX22: 0.21 | AY22: 0.28 | AZ22: 0.5 | BC22: 組合せ専用機
B23: R22 | C23: 未分類 | G23: FDCJ | H23: FDCJ500HKX2A | J23: FDCJ280HKX2A-K | K23: FDCJ224HKX2A-KT | N23: その他 | O23: =12+5 -> 17 | T23: 0.03 | U23: 0 | W23: 0.06 | X23: 0 | Z23: 0.12 | AA23: 0 | AC23: 0.2 | AD23: 0 | AF23: 0.28 | AG23: 0 | AI23: 0.4 | AJ23: 0 | AL23: *** | AM23: 0 | AN23: 0 | AP23: 0 | AR23: 0 | AS23: 0 | AT23: 0 | AV23: 17 | AX23: 0.21 | AY23: 0.28 | AZ23: 0.5
B24: R22 | C24: 未分類 | F24: 560 | G24: FDCJ | H24: FDCJ560HKX2A | J24: FDCJ280HKX2A-K | K24: FDCJ280HKX2A-KT | N24: その他 | O24: =12+7 -> 19 | T24: 0.03 | U24: 0 | W24: 0.06 | X24: 0 | Z24: 0.12 | AA24: 0 | AC24: 0.2 | AD24: 0 | AF24: 0.28 | AG24: 0 | AI24: 0.4 | AJ24: 0 | AL24: *** | AM24: 0 | AN24: 0 | AP24: 0 | AR24: 0 | AS24: 0 | AT24: 0 | AV24: 19 | AX24: 0.21 | AY24: 0.28 | AZ24: 0.5
B25: R22 | C25: 未分類 | G25: FDCJ | H25: FDCJ672HKX2A | J25: FDCJ224HKX2A-K | K25: FDCJ224HKX2A-KT | L25: FDCJ224HKX2A-KT | N25: その他 | O25: =12+5+5 -> 22 | T25: 0.03 | U25: 0 | W25: 0.06 | X25: 0 | Z25: 0.12 | AA25: 0 | AC25: 0.2 | AD25: 0 | AF25: 0.28 | AG25: 0 | AI25: 0.4 | AJ25: 0 | AL25: *** | AM25: 0 | AN25: 0 | AP25: 0 | AR25: 0 | AS25: 0 | AT25: 0 | AV25: 22 | AX25: 0.21 | AY25: 0.28 | AZ25: 0.5
B26: R22 | C26: 未分類 | G26: FDCJ | H26: FDCJ728HKX2A | J26: FDCJ280HKX2A-K | K26: FDCJ224HKX2A-KT | L26: FDCJ224HKX2A-KT | N26: その他 | O26: =12+5+5 -> 22 | T26: 0.03 | U26: 0 | W26: 0.06 | X26: 0 | Z26: 0.12 | AA26: 0 | AC26: 0.2 | AD26: 0 | AF26: 0.28 | AG26: 0 | AI26: 0.4 | AJ26: 0 | AL26: *** | AM26: 0 | AN26: 0 | AP26: 0 | AR26: 0 | AS26: 0 | AT26: 0 | AV26: 22 | AX26: 0.21 | AY26: 0.28 | AZ26: 0.5
B27: R22 | C27: 未分類 | G27: FDCJ | H27: FDCJ784HKX2A | J27: FDCJ280HKX2A-K | K27: FDCJ224HKX2A-KT | L27: FDCJ280HKX2A-KT | N27: その他 | O27: =12+5+7 -> 24 | T27: 0.03 | U27: 0 | W27: 0.06 | X27: 0 | Z27: 0.12 | AA27: 0 | AC27: 0.2 | AD27: 0 | AF27: 0.28 | AG27: 0 | AI27: 0.4 | AJ27: 0 | AL27: *** | AM27: 0 | AN27: 0 | AP27: 0 | AR27: 0 | AS27: 0 | AT27: 0 | AV27: 24 | AX27: 0.21 | AY27: 0.28 | AZ27: 0.5
B28: R22 | C28: 未分類 | G28: FDCJ | H28: FDCJ840HKX2A | J28: FDCJ280HKX2A-K | K28: FDCJ280HKX2A-KT | L28: FDCJ280HKX2A-KT | N28: その他 | O28: =12+7+7 -> 26 | T28: 0.03 | U28: 0 | W28: 0.06 | X28: 0 | Z28: 0.12 | AA28: 0 | AC28: 0.2 | AD28: 0 | AF28: 0.28 | AG28: 0 | AI28: 0.4 | AJ28: 0 | AL28: *** | AM28: 0 | AN28: 0 | AP28: 0 | AR28: 0 | AS28: 0 | AT28: 0 | AV28: 26 | AX28: 0.21 | AY28: 0.28 | AZ28: 0.5
B29: R22 | C29: 未分類 | G29: FDCJ | H29: FDCJ500HKX2AF | J29: FDCJ280HKX2A-K | K29: FDCJ225HKX2A-KT | N29: その他 | O29: =12+5 -> 17 | T29: 0.03 | U29: 0 | W29: 0.06 | X29: 0 | Z29: 0.12 | AA29: 0 | AC29: 0.2 | AD29: 0 | AF29: 0.28 | AG29: 0 | AI29: 0.4 | AJ29: 0 | AL29: *** | AM29: 0 | AN29: 0 | AP29: 0 | AR29: 0 | AS29: 0 | AT29: 0 | AV29: 17 | AX29: 0.21 | AY29: 0.28 | AZ29: 0.5
B30: R22 | C30: 未分類 | F30: 560 | G30: FDCJ | H30: FDCJ560HKX2AF | J30: FDCJ280HKX2A-K | K30: FDCJ281HKX2A-KT | N30: その他 | O30: =12+7 -> 19 | T30: 0.03 | U30: 0 | W30: 0.06 | X30: 0 | Z30: 0.12 | AA30: 0 | AC30: 0.2 | AD30: 0 | AF30: 0.28 | AG30: 0 | AI30: 0.4 | AJ30: 0 | AL30: *** | AM30: 0 | AN30: 0 | AP30: 0 | AR30: 0 | AS30: =AR30 -> 0 | AT30: 0 | AV30: 19 | AX30: 0.21 | AY30: 0.28 | AZ30: 0.5
B31: R22 | C31: 未分類 | G31: FDCJ | H31: FDCJ672HKX2AF | J31: FDCJ224HKX2A-K | K31: FDCJ225HKX2A-KT | L31: FDCJ225HKX2A-KT | N31: その他 | O31: =12+5+5 -> 22 | T31: 0.03 | U31: 0 | W31: 0.06 | X31: 0 | Z31: 0.12 | AA31: 0 | AC31: 0.2 | AD31: 0 | AF31: 0.28 | AG31: 0 | AI31: 0.4 | AJ31: 0 | AL31: *** | AM31: 0 | AN31: 0 | AP31: 0 | AR31: 0 | AS31: 0 | AT31: 0 | AV31: 22 | AX31: 0.21 | AY31: 0.28 | AZ31: 0.5
B32: R22 | C32: 未分類 | G32: FDCJ | H32: FDCJ728HKX2AF | J32: FDCJ280HKX2A-K | K32: FDCJ225HKX2A-KT | L32: FDCJ224HKX2A-KT | N32: その他 | O32: =12+5+5 -> 22 | T32: 0.03 | U32: 0 | W32: 0.06 | X32: 0 | Z32: 0.12 | AA32: 0 | AC32: 0.2 | AD32: 0 | AF32: 0.28 | AG32: 0 | AI32: 0.4 | AJ32: 0 | AL32: *** | AM32: 0 | AN32: 0 | AP32: 0 | AR32: 0 | AS32: 0 | AT32: 0 | AV32: 22 | AX32: 0.21 | AY32: 0.28 | AZ32: 0.5
B33: R22 | C33: 未分類 | G33: FDCJ | H33: FDCJ784HKX2AF | J33: FDCJ280HKX2A-K | K33: FDCJ225HKX2A-KT | L33: FDCJ281HKX2A-KT | N33: その他 | O33: =12+5+7 -> 24 | T33: 0.03 | U33: 0 | W33: 0.06 | X33: 0 | Z33: 0.12 | AA33: 0 | AC33: 0.2 | AD33: 0 | AF33: 0.28 | AG33: 0 | AI33: 0.4 | AJ33: 0 | AL33: *** | AM33: 0 | AN33: 0 | AP33: 0 | AR33: 0 | AS33: 0 | AT33: 0 | AV33: 24 | AX33: 0.21 | AY33: 0.28 | AZ33: 0.5
B34: R22 | C34: 未分類 | G34: FDCJ | H34: FDCJ840HKX2AF | J34: FDCJ280HKX2A-K | K34: FDCJ281HKX2A-KT | L34: FDCJ281HKX2A-KT | N34: その他 | O34: =12+7+7 -> 26 | T34: 0.03 | U34: 0 | W34: 0.06 | X34: 0 | Z34: 0.12 | AA34: 0 | AC34: 0.2 | AD34: 0 | AF34: 0.28 | AG34: 0 | AI34: 0.4 | AJ34: 0 | AL34: *** | AM34: 0 | AN34: 0 | AP34: 0 | AR34: 0 | AS34: 0 | AT34: 0 | AV34: 26 | AX34: 0.21 | AY34: 0.28 | AZ34: 0.5
B35: R22 | C35: 未分類 | F35: 224 | G35: FDCSJ | H35: FDCSJ224HKX2A-K | N35: その他 | O35: 12 | T35: 0.03 | U35: 0 | W35: 0.06 | X35: 0 | Z35: 0.12 | AA35: 0 | AC35: 0.2 | AD35: 0 | AF35: 0.28 | AG35: 0 | AI35: 0.4 | AJ35: 0 | AL35: *** | AM35: 0 | AN35: 0 | AP35: 0 | AR35: 0 | AS35: 0 | AT35: 0 | AV35: 12 | AX35: 0.21 | AY35: 0.28 | AZ35: 0.5 | BC35: 組合せ専用機
B36: R22 | C36: 未分類 | F36: 280 | G36: FDCSJ | H36: FDCSJ280HKX2A-K | N36: その他 | O36: 12 | T36: 0.03 | U36: 0 | W36: 0.06 | X36: 0 | Z36: 0.12 | AA36: 0 | AC36: 0.2 | AD36: 0 | AF36: 0.28 | AG36: 0 | AI36: 0.4 | AJ36: 0 | AL36: *** | AM36: 0 | AN36: 0 | AP36: 0 | AR36: 0 | AS36: 0 | AT36: 0 | AV36: 12 | AX36: 0.21 | AY36: 0.28 | AZ36: 0.5 | BC36: 組合せ専用機
B37: R22 | C37: 未分類 | F37: 224 | G37: FDCSJ | H37: FDCSJ224HKX2A-KT | N37: その他 | O37: 5 | T37: 0.03 | U37: 0 | W37: 0.06 | X37: 0 | Z37: 0.12 | AA37: 0 | AC37: 0.2 | AD37: 0 | AF37: 0.28 | AG37: 0 | AI37: 0.4 | AJ37: 0 | AL37: *** | AM37: 0 | AN37: 0 | AP37: 0 | AR37: 0 | AS37: 0 | AT37: 0 | AV37: 5 | AX37: 0.21 | AY37: 0.28 | AZ37: 0.5 | BC37: 組合せ専用機
B38: R22 | C38: 未分類 | F38: 280 | G38: FDCSJ | H38: FDCSJ280HKX2A-KT | N38: その他 | O38: 7 | T38: 0.03 | U38: 0 | W38: 0.06 | X38: 0 | Z38: 0.12 | AA38: 0 | AC38: 0.2 | AD38: 0 | AF38: 0.28 | AG38: 0 | AI38: 0.4 | AJ38: 0 | AL38: *** | AM38: 0 | AN38: 0 | AP38: 0 | AR38: 0 | AS38: 0 | AT38: 0 | AV38: 7 | AX38: 0.21 | AY38: 0.28 | AZ38: 0.5 | BC38: 組合せ専用機
B39: R22 | C39: 未分類 | G39: FDCSJ | H39: FDCSJ225HKX2A-KT | N39: その他 | O39: 5 | T39: 0.03 | U39: 0 | W39: 0.06 | X39: 0 | Z39: 0.12 | AA39: 0 | AC39: 0.2 | AD39: 0 | AF39: 0.28 | AG39: 0 | AI39: 0.4 | AJ39: 0 | AL39: *** | AM39: 0 | AN39: 0 | AP39: 0 | AR39: 0 | AS39: 0 | AT39: 0 | AV39: 5 | AX39: 0.21 | AY39: 0.28 | AZ39: 0.5 | BC39: 組合せ専用機
B40: R22 | C40: 未分類 | G40: FDCSJ | H40: FDCSJ281HKX2A-KT | N40: その他 | O40: 7 | T40: 0.03 | U40: 0 | W40: 0.06 | X40: 0 | Z40: 0.12 | AA40: 0 | AC40: 0.2 | AD40: 0 | AF40: 0.28 | AG40: 0 | AI40: 0.4 | AJ40: 0 | AL40: *** | AM40: 0 | AN40: 0 | AP40: 0 | AR40: 0 | AS40: 0 | AT40: 0 | AV40: 7 | AX40: 0.21 | AY40: 0.28 | AZ40: 0.5 | BC40: 組合せ専用機
B41: R22 | C41: 未分類 | G41: FDCSJ | H41: FDCSJ500HKX2A | J41: FDCSJ280HKX2A-K | K41: FDCSJ224HKX2A-KT | N41: その他 | O41: =12+5 -> 17 | T41: 0.03 | U41: 0 | W41: 0.06 | X41: 0 | Z41: 0.12 | AA41: 0 | AC41: 0.2 | AD41: 0 | AF41: 0.28 | AG41: 0 | AI41: 0.4 | AJ41: 0 | AL41: *** | AM41: 0 | AN41: 0 | AP41: 0 | AR41: 0 | AS41: 0 | AT41: 0 | AV41: 17 | AX41: 0.21 | AY41: 0.28 | AZ41: 0.5
B42: R22 | C42: 未分類 | F42: 560 | G42: FDCSJ | H42: FDCSJ560HKX2A | J42: FDCSJ280HKX2A-K | K42: FDCSJ280HKX2A-KT | N42: その他 | O42: =12+7 -> 19 | T42: 0.03 | U42: 0 | W42: 0.06 | X42: 0 | Z42: 0.12 | AA42: 0 | AC42: 0.2 | AD42: 0 | AF42: 0.28 | AG42: 0 | AI42: 0.4 | AJ42: 0 | AL42: *** | AM42: 0 | AN42: 0 | AP42: 0 | AR42: 0 | AS42: 0 | AT42: 0 | AV42: 19 | AX42: 0.21 | AY42: 0.28 | AZ42: 0.5
B43: R22 | C43: 未分類 | G43: FDCSJ | H43: FDCSJ672HKX2A | J43: FDCSJ224HKX2A-K | K43: FDCSJ224HKX2A-KT | L43: FDCSJ224HKX2A-KT | N43: その他 | O43: =12+5+5 -> 22 | T43: 0.03 | U43: 0 | W43: 0.06 | X43: 0 | Z43: 0.12 | AA43: 0 | AC43: 0.2 | AD43: 0 | AF43: 0.28 | AG43: 0 | AI43: 0.4 | AJ43: 0 | AL43: *** | AM43: 0 | AN43: 0 | AP43: 0 | AR43: 0 | AS43: 0 | AT43: 0 | AV43: 22 | AX43: 0.21 | AY43: 0.28 | AZ43: 0.5
B44: R22 | C44: 未分類 | G44: FDCSJ | H44: FDCSJ728HKX2A | J44: FDCSJ280HKX2A-K | K44: FDCSJ224HKX2A-KT | L44: FDCSJ224HKX2A-KT | N44: その他 | O44: =12+5+5 -> 22 | T44: 0.03 | U44: 0 | W44: 0.06 | X44: 0 | Z44: 0.12 | AA44: 0 | AC44: 0.2 | AD44: 0 | AF44: 0.28 | AG44: 0 | AI44: 0.4 | AJ44: 0 | AL44: *** | AM44: 0 | AN44: 0 | AP44: 0 | AR44: 0 | AS44: 0 | AT44: 0 | AV44: 22 | AX44: 0.21 | AY44: 0.28 | AZ44: 0.5
B45: R22 | C45: 未分類 | G45: FDCSJ | H45: FDCSJ784HKX2A | J45: FDCSJ280HKX2A-K | K45: FDCSJ224HKX2A-KT | L45: FDCSJ280HKX2A-KT | N45: その他 | O45: =12+5+7 -> 24 | T45: 0.03 | U45: 0 | W45: 0.06 | X45: 0 | Z45: 0.12 | AA45: 0 | AC45: 0.2 | AD45: 0 | AF45: 0.28 | AG45: 0 | AI45: 0.4 | AJ45: 0 | AL45: *** | AM45: 0 | AN45: 0 | AP45: 0 | AR45: 0 | AS45: 0 | AT45: 0 | AV45: 24 | AX45: 0.21 | AY45: 0.28 | AZ45: 0.5
B46: R22 | C46: 未分類 | G46: FDCSJ | H46: FDCSJ840HKX2A | J46: FDCSJ280HKX2A-K | K46: FDCSJ280HKX2A-KT | L46: FDCSJ280HKX2A-KT | N46: その他 | O46: =12+7+7 -> 26 | T46: 0.03 | U46: 0 | W46: 0.06 | X46: 0 | Z46: 0.12 | AA46: 0 | AC46: 0.2 | AD46: 0 | AF46: 0.28 | AG46: 0 | AI46: 0.4 | AJ46: 0 | AL46: *** | AM46: 0 | AN46: 0 | AP46: 0 | AR46: 0 | AS46: 0 | AT46: 0 | AV46: 26 | AX46: 0.21 | AY46: 0.28 | AZ46: 0.5
B47: R22 | C47: 未分類 | G47: FDCSJ | H47: FDCSJ500HKX2AF | J47: FDCSJ280HKX2A-K | K47: FDCSJ225HKX2A-KT | N47: その他 | O47: =12+5 -> 17 | T47: 0.03 | U47: 0 | W47: 0.06 | X47: 0 | Z47: 0.12 | AA47: 0 | AC47: 0.2 | AD47: 0 | AF47: 0.28 | AG47: 0 | AI47: 0.4 | AJ47: 0 | AL47: *** | AM47: 0 | AN47: 0 | AP47: 0 | AR47: 0 | AS47: 0 | AT47: 0 | AV47: 17 | AX47: 0.21 | AY47: 0.28 | AZ47: 0.5
B48: R22 | C48: 未分類 | F48: 560 | G48: FDCSJ | H48: FDCSJ560HKX2AF | J48: FDCSJ280HKX2A-K | K48: FDCSJ281HKX2A-KT | N48: その他 | O48: =12+7 -> 19 | T48: 0.03 | U48: 0 | W48: 0.06 | X48: 0 | Z48: 0.12 | AA48: 0 | AC48: 0.2 | AD48: 0 | AF48: 0.28 | AG48: 0 | AI48: 0.4 | AJ48: 0 | AL48: *** | AM48: 0 | AN48: 0 | AP48: 0 | AR48: 0 | AS48: 0 | AT48: 0 | AV48: 19 | AX48: 0.21 | AY48: 0.28 | AZ48: 0.5
B49: R22 | C49: 未分類 | G49: FDCSJ | H49: FDCSJ672HKX2AF | J49: FDCSJ224HKX2A-K | K49: FDCSJ225HKX2A-KT | L49: FDCSJ225HKX2A-KT | N49: その他 | O49: =12+5+5 -> 22 | T49: 0.03 | U49: 0 | W49: 0.06 | X49: 0 | Z49: 0.12 | AA49: 0 | AC49: 0.2 | AD49: 0 | AF49: 0.28 | AG49: 0 | AI49: 0.4 | AJ49: 0 | AL49: *** | AM49: 0 | AN49: 0 | AP49: 0 | AR49: 0 | AS49: 0 | AT49: 0 | AV49: 22 | AX49: 0.21 | AY49: 0.28 | AZ49: 0.5
B50: R22 | C50: 未分類 | G50: FDCSJ | H50: FDCSJ728HKX2AF | J50: FDCSJ280HKX2A-K | K50: FDCSJ225HKX2A-KT | L50: FDCSJ224HKX2A-KT | N50: その他 | O50: =12+5+5 -> 22 | T50: 0.03 | U50: 0 | W50: 0.06 | X50: 0 | Z50: 0.12 | AA50: 0 | AC50: 0.2 | AD50: 0 | AF50: 0.28 | AG50: 0 | AI50: 0.4 | AJ50: 0 | AL50: *** | AM50: 0 | AN50: 0 | AP50: 0 | AR50: 0 | AS50: 0 | AT50: 0 | AV50: 22 | AX50: 0.21 | AY50: 0.28 | AZ50: 0.5
B51: R22 | C51: 未分類 | G51: FDCSJ | H51: FDCSJ784HKX2AF | J51: FDCSJ280HKX2A-K | K51: FDCSJ225HKX2A-KT | L51: FDCSJ281HKX2A-KT | N51: その他 | O51: =12+5+7 -> 24 | T51: 0.03 | U51: 0 | W51: 0.06 | X51: 0 | Z51: 0.12 | AA51: 0 | AC51: 0.2 | AD51: 0 | AF51: 0.28 | AG51: 0 | AI51: 0.4 | AJ51: 0 | AL51: *** | AM51: 0 | AN51: 0 | AP51: 0 | AR51: 0 | AS51: 0 | AT51: 0 | AV51: 24 | AX51: 0.21 | AY51: 0.28 | AZ51: 0.5
B52: R22 | C52: 未分類 | G52: FDCSJ | H52: FDCSJ840HKX2AF | J52: FDCSJ280HKX2A-K | K52: FDCSJ281HKX2A-KT | L52: FDCSJ281HKX2A-KT | N52: その他 | O52: =12+7+7 -> 26 | T52: 0.03 | U52: 0 | W52: 0.06 | X52: 0 | Z52: 0.12 | AA52: 0 | AC52: 0.2 | AD52: 0 | AF52: 0.28 | AG52: 0 | AI52: 0.4 | AJ52: 0 | AL52: *** | AM52: 0 | AN52: 0 | AP52: 0 | AR52: 0 | AS52: 0 | AT52: 0 | AV52: 26 | AX52: 0.21 | AY52: 0.28 | AZ52: 0.5
B53: R22 | C53: 未分類 | F53: 224 | G53: FDCJ | H53: FDCJ224HKXRA | N53: その他 | O53: 11 | T53: 0.03 | U53: 0 | W53: 0.06 | X53: 0 | Z53: 0.12 | AA53: 0 | AC53: *** | AD53: 0 | AF53: *** | AG53: 0 | AI53: *** | AJ53: 0 | AL53: *** | AM53: 0 | AN53: 0 | AP53: 0 | AR53: 0 | AS53: 0 | AT53: 0 | AV53: 11 | AX53: 0.21 | AY53: 0.28 | AZ53: 0.5
B54: R22 | C54: 未分類 | F54: 280 | G54: FDCJ | H54: FDCJ280HKXRA | N54: その他 | O54: 11 | T54: 0.03 | U54: 0 | W54: 0.06 | X54: 0 | Z54: 0.12 | AA54: 0 | AC54: *** | AD54: 0 | AF54: *** | AG54: 0 | AI54: *** | AJ54: 0 | AL54: *** | AM54: 0 | AN54: 0 | AP54: 0 | AR54: 0 | AS54: 0 | AT54: 0 | AV54: 11 | AX54: 0.21 | AY54: 0.28 | AZ54: 0.5
B55: R22 | C55: 未分類 | F55: 560 | G55: FDCJ | H55: FDCJ560HKXRA | N55: その他 | O55: 29 | T55: 0.03 | U55: 0 | W55: 0.06 | X55: 0 | Z55: 0.12 | AA55: 0 | AC55: 0.2 | AD55: 0 | AF55: 0.28 | AG55: 0 | AI55: *** | AJ55: 0 | AL55: *** | AM55: 0 | AN55: 0 | AP55: 0 | AR55: 0 | AS55: 0 | AT55: 0 | AV55: 29 | AX55: 0.21 | AY55: 0.28 | AZ55: 0.5
B56: R22 | C56: 未分類 | F56: 224 | G56: FDCSJ | H56: FDCSJ224HKXRA | N56: その他 | O56: 11 | T56: 0.03 | U56: 0 | W56: 0.06 | X56: 0 | Z56: 0.12 | AA56: 0 | AC56: *** | AD56: 0 | AF56: *** | AG56: 0 | AI56: *** | AJ56: 0 | AL56: *** | AM56: 0 | AN56: 0 | AP56: 0 | AR56: 0 | AS56: 0 | AT56: 0 | AV56: 11 | AX56: 0.21 | AY56: 0.28 | AZ56: 0.5
B57: R22 | C57: 未分類 | F57: 280 | G57: FDCSJ | H57: FDCSJ280HKXRA | N57: その他 | O57: 11 | T57: 0.03 | U57: 0 | W57: 0.06 | X57: 0 | Z57: 0.12 | AA57: 0 | AC57: *** | AD57: 0 | AF57: *** | AG57: 0 | AI57: *** | AJ57: 0 | AL57: *** | AM57: 0 | AN57: 0 | AP57: 0 | AR57: 0 | AS57: 0 | AT57: 0 | AV57: 11 | AX57: 0.21 | AY57: 0.28 | AZ57: 0.5
B58: R22 | C58: 未分類 | F58: 560 | G58: FDCSJ | H58: FDCSJ560HKXRA | N58: その他 | O58: 29 | T58: 0.03 | U58: 0 | W58: 0.06 | X58: 0 | Z58: 0.12 | AA58: 0 | AC58: 0.2 | AD58: 0 | AF58: 0.28 | AG58: 0 | AI58: *** | AJ58: 0 | AL58: *** | AM58: 0 | AN58: 0 | AP58: 0 | AR58: 0 | AS58: 0 | AT58: 0 | AV58: 29 | AX58: 0.21 | AY58: 0.28 | AZ58: 0.5
B59: R22 | C59: 未分類 | F59: 224 | G59: FDCJ | H59: FDCJ224HKXRWA | N59: その他 | O59: 11 | T59: 0.03 | U59: 0 | W59: 0.06 | X59: 0 | Z59: 0.12 | AA59: 0 | AC59: *** | AD59: 0 | AF59: *** | AG59: 0 | AI59: *** | AJ59: 0 | AL59: *** | AM59: 0 | AN59: 0 | AP59: 0 | AR59: 0 | AS59: 0 | AT59: 0 | AV59: 11 | AX59: 0.21 | AY59: 0.28 | AZ59: 0.5
B60: R22 | C60: 未分類 | F60: 280 | G60: FDCJ | H60: FDCJ280HKXRWA | N60: その他 | O60: 11 | T60: 0.03 | U60: 0 | W60: 0.06 | X60: 0 | Z60: 0.12 | AA60: 0 | AC60: *** | AD60: 0 | AF60: *** | AG60: 0 | AI60: *** | AJ60: 0 | AL60: *** | AM60: 0 | AN60: 0 | AP60: 0 | AR60: 0 | AS60: 0 | AT60: 0 | AV60: 11 | AX60: 0.21 | AY60: 0.28 | AZ60: 0.5
B61: R22 | C61: 未分類 | F61: 224 | G61: FDCJ | H61: FDCJ224HMXA | N61: その他 | O61: 11 | T61: 0.03 | U61: 0 | W61: 0.06 | X61: 0 | Z61: 0.12 | AA61: 0 | AC61: *** | AD61: 0 | AF61: *** | AG61: 0 | AI61: *** | AJ61: 0 | AL61: *** | AM61: 0 | AN61: 0 | AP61: 0 | AR61: 0 | AS61: 0 | AT61: 0 | AV61: 11 | AX61: 0.21 | AY61: 0.28 | AZ61: 0.5
B62: R22 | C62: 未分類 | F62: 280 | G62: FDCJ | H62: FDCJ280HMXA | N62: その他 | O62: 11.4 | T62: 0.03 | U62: 0 | W62: 0.06 | X62: 0 | Z62: 0.12 | AA62: 0 | AC62: *** | AD62: 0 | AF62: *** | AG62: 0 | AI62: *** | AJ62: 0 | AL62: *** | AM62: 0 | AN62: 0 | AP62: 0 | AR62: 0 | AS62: 0 | AT62: 0 | AV62: 11.4 | AX62: 0.21 | AY62: 0.28 | AZ62: 0.5
B63: R22 | C63: 未分類 | F63: 224 | G63: FDCSJ | H63: FDCSJ224HMXA | N63: その他 | O63: 11 | T63: 0.03 | U63: 0 | W63: 0.06 | X63: 0 | Z63: 0.12 | AA63: 0 | AC63: *** | AD63: 0 | AF63: *** | AG63: 0 | AI63: *** | AJ63: 0 | AL63: *** | AM63: 0 | AN63: 0 | AP63: 0 | AR63: 0 | AS63: 0 | AT63: 0 | AV63: 11 | AX63: 0.21 | AY63: 0.28 | AZ63: 0.5
B64: R22 | C64: 未分類 | F64: 280 | G64: FDCSJ | H64: FDCSJ280HMXA | N64: その他 | O64: 11.4 | T64: 0.03 | U64: 0 | W64: 0.06 | X64: 0 | Z64: 0.12 | AA64: 0 | AC64: *** | AD64: 0 | AF64: *** | AG64: 0 | AI64: *** | AJ64: 0 | AL64: *** | AM64: 0 | AN64: 0 | AP64: 0 | AR64: 0 | AS64: 0 | AT64: 0 | AV64: 11.4 | AX64: 0.21 | AY64: 0.28 | AZ64: 0.5
B65: R22 | C65: 未分類 | F65: 224 | G65: FDCJ | H65: FDCJ224HMXA-K | N65: その他 | O65: 11 | T65: 0.03 | U65: 0 | W65: 0.06 | X65: 0 | Z65: 0.12 | AA65: 0 | AC65: 0.2 | AD65: 0 | AF65: 0.28 | AG65: 0 | AI65: 0.4 | AJ65: 0 | AL65: *** | AM65: 0 | AN65: 0 | AP65: 0 | AR65: 0 | AS65: 0 | AT65: 0 | AV65: 11 | AX65: 0.21 | AY65: 0.28 | AZ65: 0.5
B66: R22 | C66: 未分類 | F66: 280 | G66: FDCJ | H66: FDCJ280HMXA-K | N66: その他 | O66: 11.4 | T66: 0.03 | U66: 0 | W66: 0.06 | X66: 0 | Z66: 0.12 | AA66: 0 | AC66: 0.2 | AD66: 0 | AF66: 0.28 | AG66: 0 | AI66: 0.4 | AJ66: 0 | AL66: *** | AM66: 0 | AN66: 0 | AP66: 0 | AR66: 0 | AS66: 0 | AT66: 0 | AV66: 11.4 | AX66: 0.21 | AY66: 0.28 | AZ66: 0.5
B67: R22 | C67: 未分類 | F67: 224 | G67: FDCSJ | H67: FDCSJ224HMXA-K | N67: その他 | O67: 11 | T67: 0.03 | U67: 0 | W67: 0.06 | X67: 0 | Z67: 0.12 | AA67: 0 | AC67: 0.2 | AD67: 0 | AF67: 0.28 | AG67: 0 | AI67: 0.4 | AJ67: 0 | AL67: *** | AM67: 0 | AN67: 0 | AP67: 0 | AR67: 0 | AS67: 0 | AT67: 0 | AV67: 11 | AX67: 0.21 | AY67: 0.28 | AZ67: 0.5
B68: R22 | C68: 未分類 | F68: 280 | G68: FDCSJ | H68: FDCSJ280HMXA-K | N68: その他 | O68: 11.4 | T68: 0.03 | U68: 0 | W68: 0.06 | X68: 0 | Z68: 0.12 | AA68: 0 | AC68: 0.2 | AD68: 0 | AF68: 0.28 | AG68: 0 | AI68: 0.4 | AJ68: 0 | AL68: *** | AM68: 0 | AN68: 0 | AP68: 0 | AR68: 0 | AS68: 0 | AT68: 0 | AV68: 11.4 | AX68: 0.21 | AY68: 0.28 | AZ68: 0.5
B69: R22 | C69: 未分類 | F69: 450 | G69: FDCJ | H69: FDCJ450HMXA | J69: FDCJ224HMXA-K | K69: FDCJ224HMXA-K | N69: その他 | O69: =11+11 -> 22 | T69: 0.03 | U69: 0 | W69: 0.06 | X69: 0 | Z69: 0.12 | AA69: 0 | AC69: 0.2 | AD69: 0 | AF69: 0.28 | AG69: 0 | AI69: 0.4 | AJ69: 0 | AL69: *** | AM69: 0 | AN69: 0 | AP69: 0 | AR69: 0 | AS69: 0 | AT69: 0 | AV69: 22 | AX69: 0.21 | AY69: 0.28 | AZ69: 0.5
B70: R22 | C70: 未分類 | G70: FDCJ | H70: FDCJ500HMXA | J70: FDCJ224HMXA-K | K70: FDCJ280HMXA-K | N70: その他 | O70: =11+11.4 -> 22.4 | T70: 0.03 | U70: 0 | W70: 0.06 | X70: 0 | Z70: 0.12 | AA70: 0 | AC70: 0.2 | AD70: 0 | AF70: 0.28 | AG70: 0 | AI70: 0.4 | AJ70: 0 | AL70: *** | AM70: 0 | AN70: 0 | AP70: 0 | AR70: 0 | AS70: 0 | AT70: 0 | AV70: 22.4 | AX70: 0.21 | AY70: 0.28 | AZ70: 0.5
B71: R22 | C71: 未分類 | F71: 560 | G71: FDCJ | H71: FDCJ560HMXA | J71: FDCJ280HMXA-K | K71: FDCJ280HMXA-K | N71: その他 | O71: =11.4+11.4 -> 22.8 | R71: =IF(Q71="","",IF(Q71="90m未満",VLOOKUP(C71&D71&","&F71,主管サイズルックアップ用,5,FALSE),VLOOKUP(C71&D71&","&F71,主管サイズルックアップ用,6,FALSE))) ->  | T71: 0.03 | U71: =IF($R71="***","実長90m超使用不可",IF($R71<6.35,"-主管サイズを超過-",IF(T71="***","0",S71*T71))) -> 0 | W71: 0.06 | X71: =IF($R71="***","実長90m超使用不可",IF($R71<9.52,"-主管サイズを超過-",IF(W71="***","0",V71*W71))) -> 0 | Z71: 0.12 | AA71: =IF($R71="***","実長90m超使用不可",IF($R71<12.7,"-主管サイズを超過-",IF(Z71="***","0",Y71*Z71))) -> 0 | AC71: 0.2 | AD71: =IF($R71="***","実長90m超使用不可",IF($R71<15.88,"-主管サイズを超過-",IF(AC71="***","0",AB71*AC71))) -> 0 | AF71: 0.28 | AG71: =IF($R71="***","実長90m超使用不可",IF($R71<19.05,"-主管サイズを超過-",IF(AF71="***","0",AE71*AF71))) -> 0 | AI71: 0.4 | AJ71: =IF($R71="***","実長90m超使用不可",IF($R71<22.22,"-主管サイズを超過-",IF(AI71="***","0",AH71*AI71))) -> 0 | AL71: *** | AM71: =IF($R71="***","実長90m超使用不可",IF($R71<25.4,"-主管サイズを超過-",IF(AL71="***","0",AK71*AL71))) -> 0 | AN71: =IF(OR(U71="実長90m超使用不可",U71="-主管サイズを超過-"),0,U71)+IF(OR(X71="実長90m超使用不可",X71="-主管サイズを超過-"),0,X71)+IF(OR(AA71="実長90m超使用不可",AA71="-主管サイズを超過-"),0,AA71)+IF(OR(AD71="実長90m超使用不可",AD71="-主管サイズを超過-"),0,AD71)+IF(OR(AG71="実長90m超使用不可",AG71="-主管サイズを超過-"),0,AG71)+IF(OR(AJ71="実長90m超使用不可",AJ71="-主管サイズを超過-"),0,AJ71)+IF(OR(AM71="実長90m超使用不可",AM71="-主管サイズを超過-"),0,AM71) -> 0 | AP71: 0 | AR71: 0 | AS71: =AR71 -> 0 | AT71: =IF(AP71+AS71<0,0,AP71+AS71) -> 0 | AU71: =VLOOKUP(C71&D71&","&F71,封入上限ルックアップ用,5,FALSE) ->  | AV71: =O71+AT71 -> 22.8 | AW71: =IF(ISERROR(AV71/P71),"",AV71/P71) ->  | AX71: =IF(B71="R410A",0.39,IF(B71="R407C",0.27,IF(B71="R22",0.21,"NG"))) -> 0.21 | AY71: =IF(B71="R410A",0.42,IF(B71="R407C",0.46,IF(B71="R22",0.28,"NG"))) -> 0.28 | AZ71: =IF(B71="R410A",0.42,IF(B71="R407C",0.49,IF(B71="R22",0.5,"NG"))) -> 0.5 | BA71: =IF(AW71="","",IF(OR(AW71<=AX71,AND(N71="その他",AW71<=AY71)),"OK",IF(OR(AND(N71="最下層",AW71<=AY71),AND(N71="その他",AW71<=AZ71)),"対策が１つ必要です",IF(OR(AND(N71="最下層",AW71<=AZ71),AND(N71="その他",AW71>AZ71)),"対策が２つ必要です","システムの見直しが必要です")))) -> 
B72: R22 | C72: 未分類 | G72: FDCJ | H72: FDCJ672HMXA | J72: FDCJ224HMXA-K | K72: FDCJ224HMXA-K | L72: FDCJ224HMXA-K | N72: その他 | O72: =11+11+11 -> 33 | T72: 0.03 | U72: 0 | W72: 0.06 | X72: 0 | Z72: 0.12 | AA72: 0 | AC72: 0.2 | AD72: 0 | AF72: 0.28 | AG72: 0 | AI72: 0.4 | AJ72: 0 | AL72: *** | AM72: 0 | AN72: 0 | AP72: =AN72*AO72 -> 0 | AR72: 0 | AS72: 0 | AT72: 0 | AV72: 33 | AX72: 0.21 | AY72: 0.28 | AZ72: 0.5
B73: R22 | C73: 未分類 | G73: FDCJ | H73: FDCJ728HMXA | J73: FDCJ224HMXA-K | K73: FDCJ224HMXA-K | L73: FDCJ280HMXA-K | N73: その他 | O73: =11+11+11.4 -> 33.4 | T73: 0.03 | U73: 0 | W73: 0.06 | X73: 0 | Z73: 0.12 | AA73: 0 | AC73: 0.2 | AD73: 0 | AF73: 0.28 | AG73: 0 | AI73: 0.4 | AJ73: 0 | AL73: *** | AM73: 0 | AN73: 0 | AP73: 0 | AR73: 0 | AS73: 0 | AT73: 0 | AV73: 33.4 | AX73: 0.21 | AY73: 0.28 | AZ73: 0.5
B74: R22 | C74: 未分類 | G74: FDCJ | H74: FDCJ784HMXA | J74: FDCJ224HMXA-K | K74: FDCJ280HMXA-K | L74: FDCJ280HMXA-K | N74: その他 | O74: =11+11.4+11.4 -> 33.8 | T74: 0.03 | U74: 0 | W74: 0.06 | X74: 0 | Z74: 0.12 | AA74: 0 | AC74: 0.2 | AD74: 0 | AF74: 0.28 | AG74: 0 | AI74: 0.4 | AJ74: 0 | AL74: *** | AM74: 0 | AN74: 0 | AP74: 0 | AR74: 0 | AS74: 0 | AT74: 0 | AV74: 33.8 | AX74: 0.21 | AY74: 0.28 | AZ74: 0.5
B75: R22 | C75: 未分類 | G75: FDCJ | H75: FDCJ840HMXA | J75: FDCJ280HMXA-K | K75: FDCJ280HMXA-K | L75: FDCJ280HMXA-K | N75: その他 | O75: =11.4+11.4+11.4 -> 34.2 | T75: 0.03 | U75: 0 | W75: 0.06 | X75: 0 | Z75: 0.12 | AA75: 0 | AC75: 0.2 | AD75: 0 | AF75: 0.28 | AG75: 0 | AI75: 0.4 | AJ75: 0 | AL75: *** | AM75: 0 | AN75: 0 | AP75: 0 | AR75: 0 | AS75: 0 | AT75: 0 | AV75: 34.2 | AX75: 0.21 | AY75: 0.28 | AZ75: 0.5
B76: R22 | C76: 未分類 | F76: 450 | G76: FDCSJ | H76: FDCSJ450HMXA | J76: FDCSJ224HMXA-K | K76: FDCSJ224HMXA-K | N76: その他 | O76: =11+11 -> 22 | T76: 0.03 | U76: 0 | W76: 0.06 | X76: 0 | Z76: 0.12 | AA76: 0 | AC76: 0.2 | AD76: 0 | AF76: 0.28 | AG76: 0 | AI76: 0.4 | AJ76: 0 | AL76: *** | AM76: 0 | AN76: 0 | AP76: 0 | AR76: 0 | AS76: 0 | AT76: 0 | AV76: 22 | AX76: 0.21 | AY76: 0.28 | AZ76: 0.5
B77: R22 | C77: 未分類 | G77: FDCSJ | H77: FDCSJ500HMXA | J77: FDCSJ224HMXA-K | K77: FDCSJ280HMXA-K | N77: その他 | O77: =11+11.4 -> 22.4 | T77: 0.03 | U77: 0 | W77: 0.06 | X77: 0 | Z77: 0.12 | AA77: 0 | AC77: 0.2 | AD77: 0 | AF77: 0.28 | AG77: 0 | AI77: 0.4 | AJ77: 0 | AL77: *** | AM77: 0 | AN77: 0 | AP77: 0 | AR77: 0 | AS77: 0 | AT77: 0 | AV77: 22.4 | AX77: 0.21 | AY77: 0.28 | AZ77: 0.5
B78: R22 | C78: 未分類 | F78: 560 | G78: FDCSJ | H78: FDCSJ560HMXA | J78: FDCSJ280HMXA-K | K78: FDCSJ280HMXA-K | N78: その他 | O78: =11.4+11.4 -> 22.8 | T78: 0.03 | U78: 0 | W78: 0.06 | X78: 0 | Z78: 0.12 | AA78: 0 | AC78: 0.2 | AD78: 0 | AF78: 0.28 | AG78: 0 | AI78: 0.4 | AJ78: 0 | AL78: *** | AM78: 0 | AN78: 0 | AP78: 0 | AR78: 0 | AS78: 0 | AT78: 0 | AV78: 22.8 | AX78: 0.21 | AY78: 0.28 | AZ78: 0.5
B79: R22 | C79: 未分類 | G79: FDCSJ | H79: FDCSJ672HMXA | J79: FDCSJ224HMXA-K | K79: FDCSJ224HMXA-K | L79: FDCSJ224HMXA-K | N79: その他 | O79: =11+11+11 -> 33 | T79: 0.03 | U79: 0 | W79: 0.06 | X79: 0 | Z79: 0.12 | AA79: 0 | AC79: 0.2 | AD79: 0 | AF79: 0.28 | AG79: 0 | AI79: 0.4 | AJ79: 0 | AL79: *** | AM79: 0 | AN79: 0 | AP79: 0 | AR79: 0 | AS79: 0 | AT79: 0 | AV79: 33 | AX79: 0.21 | AY79: 0.28 | AZ79: 0.5
B80: R22 | C80: 未分類 | G80: FDCSJ | H80: FDCSJ728HMXA | J80: FDCSJ224HMXA-K | K80: FDCSJ224HMXA-K | L80: FDCSJ280HMXA-K | N80: その他 | O80: =11+11+11.4 -> 33.4 | T80: 0.03 | U80: 0 | W80: 0.06 | X80: 0 | Z80: 0.12 | AA80: 0 | AC80: 0.2 | AD80: 0 | AF80: 0.28 | AG80: 0 | AI80: 0.4 | AJ80: 0 | AL80: *** | AM80: 0 | AN80: 0 | AP80: 0 | AR80: 0 | AS80: 0 | AT80: 0 | AV80: 33.4 | AX80: 0.21 | AY80: 0.28 | AZ80: 0.5
B81: R22 | C81: 未分類 | G81: FDCSJ | H81: FDCSJ784HMXA | J81: FDCSJ224HMXA-K | K81: FDCSJ280HMXA-K | L81: FDCSJ280HMXA-K | N81: その他 | O81: =11+11.4+11.4 -> 33.8 | T81: 0.03 | U81: 0 | W81: 0.06 | X81: 0 | Z81: 0.12 | AA81: 0 | AC81: 0.2 | AD81: 0 | AF81: 0.28 | AG81: 0 | AI81: 0.4 | AJ81: 0 | AL81: *** | AM81: 0 | AN81: 0 | AP81: 0 | AR81: 0 | AS81: 0 | AT81: 0 | AV81: 33.8 | AX81: 0.21 | AY81: 0.28 | AZ81: 0.5
B82: R22 | C82: 未分類 | G82: FDCSJ | H82: FDCSJ840HMXA | J82: FDCSJ280HMXA-K | K82: FDCSJ280HMXA-K | L82: FDCSJ280HMXA-K | N82: その他 | O82: =11.4+11.4+11.4 -> 34.2 | T82: 0.03 | U82: 0 | W82: 0.06 | X82: 0 | Z82: 0.12 | AA82: 0 | AC82: 0.2 | AD82: 0 | AF82: 0.28 | AG82: 0 | AI82: 0.4 | AJ82: 0 | AL82: *** | AM82: 0 | AN82: 0 | AP82: 0 | AR82: 0 | AS82: 0 | AT82: 0 | AV82: 34.2 | AX82: 0.21 | AY82: 0.28 | AZ82: 0.5
B83: R22 | C83: 未分類 | F83: 112 | G83: FDCJ | H83: FDCJ112HSXA | N83: その他 | O83: 3.5 | T83: 0.03 | U83: 0 | W83: 0.06 | X83: 0 | Z83: *** | AA83: 0 | AC83: *** | AD83: 0 | AF83: *** | AG83: 0 | AI83: *** | AJ83: 0 | AL83: *** | AM83: 0 | AN83: 0 | AP83: 0 | AR83: 0 | AS83: 0 | AT83: 0 | AV83: 3.5 | AX83: 0.21 | AY83: 0.28 | AZ83: 0.5
B84: R22 | C84: 未分類 | F84: 140 | G84: FDCJ | H84: FDCJ140HSXA | N84: その他 | O84: 3.5 | T84: 0.03 | U84: 0 | W84: 0.06 | X84: 0 | Z84: *** | AA84: 0 | AC84: *** | AD84: 0 | AF84: *** | AG84: 0 | AI84: *** | AJ84: 0 | AL84: *** | AM84: 0 | AN84: 0 | AP84: 0 | AR84: 0 | AS84: 0 | AT84: 0 | AV84: 3.5 | AX84: 0.21 | AY84: 0.28 | AZ84: 0.5
B85: R22 | C85: 未分類 | F85: 160 | G85: FDCJ | H85: FDCJ160HSXA | N85: その他 | O85: 3.5 | T85: 0.03 | U85: 0 | W85: 0.06 | X85: 0 | Z85: *** | AA85: 0 | AC85: *** | AD85: 0 | AF85: *** | AG85: 0 | AI85: *** | AJ85: 0 | AL85: *** | AM85: 0 | AN85: 0 | AP85: 0 | AR85: 0 | AS85: 0 | AT85: 0 | AV85: 3.5 | AX85: 0.21 | AY85: 0.28 | AZ85: 0.5
B86: R22 | C86: 未分類 | F86: 112 | G86: FDCSJ | H86: FDCSJ112HSXA | N86: その他 | O86: 3.5 | T86: 0.03 | U86: 0 | W86: 0.06 | X86: 0 | Z86: *** | AA86: 0 | AC86: *** | AD86: 0 | AF86: *** | AG86: 0 | AI86: *** | AJ86: 0 | AL86: *** | AM86: 0 | AN86: 0 | AP86: 0 | AR86: 0 | AS86: 0 | AT86: 0 | AV86: 3.5 | AX86: 0.21 | AY86: 0.28 | AZ86: 0.5
B87: R22 | C87: 未分類 | F87: 140 | G87: FDCSJ | H87: FDCSJ140HSXA | N87: その他 | O87: 3.5 | T87: 0.03 | U87: 0 | W87: 0.06 | X87: 0 | Z87: *** | AA87: 0 | AC87: *** | AD87: 0 | AF87: *** | AG87: 0 | AI87: *** | AJ87: 0 | AL87: *** | AM87: 0 | AN87: 0 | AP87: 0 | AR87: 0 | AS87: 0 | AT87: 0 | AV87: 3.5 | AX87: 0.21 | AY87: 0.28 | AZ87: 0.5
B88: R22 | C88: 未分類 | F88: 160 | G88: FDCSJ | H88: FDCSJ160HSXA | N88: その他 | O88: 3.5 | T88: 0.03 | U88: 0 | W88: 0.06 | X88: 0 | Z88: *** | AA88: 0 | AC88: *** | AD88: 0 | AF88: *** | AG88: 0 | AI88: *** | AJ88: 0 | AL88: *** | AM88: 0 | AN88: 0 | AP88: 0 | AR88: 0 | AS88: 0 | AT88: 0 | AV88: 3.5 | AX88: 0.21 | AY88: 0.28 | AZ88: 0.5
B89: R407C | C89: 未分類 | F89: 140 | G89: FDCP | H89: FDCP140HKX2A | N89: その他 | O89: 9 | T89: 0.03 | U89: 0 | W89: 0.06 | X89: 0 | Z89: 0.12 | AA89: 0 | AC89: *** | AD89: 0 | AF89: *** | AG89: 0 | AI89: *** | AJ89: 0 | AL89: *** | AM89: 0 | AN89: 0 | AP89: 0 | AR89: 0 | AS89: 0 | AT89: 0 | AV89: 9 | AX89: 0.27 | AY89: 0.46 | AZ89: 0.49
B90: R407C | C90: 未分類 | F90: 160 | G90: FDCP | H90: FDCP160HKX2A | N90: その他 | O90: 9 | T90: 0.03 | U90: 0 | W90: 0.06 | X90: 0 | Z90: 0.12 | AA90: 0 | AC90: *** | AD90: 0 | AF90: *** | AG90: 0 | AI90: *** | AJ90: 0 | AL90: *** | AM90: 0 | AN90: 0 | AP90: 0 | AR90: 0 | AS90: 0 | AT90: 0 | AV90: 9 | AX90: 0.27 | AY90: 0.46 | AZ90: 0.49
B91: R407C | C91: 未分類 | F91: 224 | G91: FDCP | H91: FDCP224HKX2A | N91: その他 | O91: 12 | T91: 0.03 | U91: 0 | W91: 0.06 | X91: 0 | Z91: 0.12 | AA91: 0 | AC91: *** | AD91: 0 | AF91: *** | AG91: 0 | AI91: *** | AJ91: 0 | AL91: *** | AM91: 0 | AN91: 0 | AP91: 0 | AR91: 0 | AS91: 0 | AT91: 0 | AV91: 12 | AX91: 0.27 | AY91: 0.46 | AZ91: 0.49
B92: R407C | C92: 未分類 | F92: 280 | G92: FDCP | H92: FDCP280HKX2A | N92: その他 | O92: 12 | T92: 0.03 | U92: 0 | W92: 0.06 | X92: 0 | Z92: 0.12 | AA92: 0 | AC92: *** | AD92: 0 | AF92: *** | AG92: 0 | AI92: *** | AJ92: 0 | AL92: *** | AM92: 0 | AN92: 0 | AP92: 0 | AR92: 0 | AS92: 0 | AT92: 0 | AV92: 12 | AX92: 0.27 | AY92: 0.46 | AZ92: 0.49
B93: R22 | C93: 未分類 | F93: 140 | G93: FDCSJ | H93: FDCSJ140HKX2A | N93: その他 | O93: 9 | T93: 0.03 | U93: 0 | W93: 0.06 | X93: 0 | Z93: 0.12 | AA93: 0 | AC93: *** | AD93: 0 | AF93: *** | AG93: 0 | AI93: *** | AJ93: 0 | AL93: *** | AM93: 0 | AN93: 0 | AP93: 0 | AR93: 0 | AS93: 0 | AT93: 0 | AV93: 9 | AX93: 0.21 | AY93: 0.28 | AZ93: 0.5
B94: R22 | C94: 未分類 | F94: 160 | G94: FDCSJ | H94: FDCSJ160HKX2A | N94: その他 | O94: 9 | T94: 0.03 | U94: 0 | W94: 0.06 | X94: 0 | Z94: 0.12 | AA94: 0 | AC94: *** | AD94: 0 | AF94: *** | AG94: 0 | AI94: *** | AJ94: 0 | AL94: *** | AM94: 0 | AN94: 0 | AP94: 0 | AR94: 0 | AS94: 0 | AT94: 0 | AV94: 9 | AX94: 0.21 | AY94: 0.28 | AZ94: 0.5
B95: R22 | C95: 未分類 | F95: 224 | G95: FDCSJ | H95: FDCSJ224HKX2A | N95: その他 | O95: 12 | T95: 0.03 | U95: 0 | W95: 0.06 | X95: 0 | Z95: 0.12 | AA95: 0 | AC95: *** | AD95: 0 | AF95: *** | AG95: 0 | AI95: *** | AJ95: 0 | AL95: *** | AM95: 0 | AN95: 0 | AP95: 0 | AR95: 0 | AS95: 0 | AT95: 0 | AV95: 12 | AX95: 0.21 | AY95: 0.28 | AZ95: 0.5
B96: R22 | C96: 未分類 | F96: 280 | G96: FDCSJ | H96: FDCSJ280HKX2A | N96: その他 | O96: 12 | T96: 0.03 | U96: 0 | W96: 0.06 | X96: 0 | Z96: 0.12 | AA96: 0 | AC96: *** | AD96: 0 | AF96: *** | AG96: 0 | AI96: *** | AJ96: 0 | AL96: *** | AM96: 0 | AN96: 0 | AP96: 0 | AR96: 0 | AS96: 0 | AT96: 0 | AV96: 12 | AX96: 0.21 | AY96: 0.28 | AZ96: 0.5
B97: R22 | C97: 未分類 | F97: 355 | G97: FDCSJ | H97: FDCSJ355HKX2A | N97: その他 | O97: 16.35 | T97: 0.03 | U97: 0 | W97: 0.06 | X97: 0 | Z97: 0.12 | AA97: 0 | AC97: 0.2 | AD97: 0 | AF97: *** | AG97: 0 | AI97: *** | AJ97: 0 | AL97: *** | AM97: 0 | AN97: 0 | AP97: 0 | AR97: 0 | AS97: 0 | AT97: 0 | AV97: 16.35 | AX97: =IF(B97="R410A",0.39,IF(B97="R407C",0.27,IF(B97="R22",0.21,"NG"))) -> 0.21 | AY97: =IF(B97="R410A",0.42,IF(B97="R407C",0.46,IF(B97="R22",0.28,"NG"))) -> 0.28 | AZ97: 0.5
B98: R22 | C98: 未分類 | F98: 450 | G98: FDCSJ | H98: FDCSJ450HKX2A | N98: その他 | O98: 20 | T98: 0.03 | U98: 0 | W98: 0.06 | X98: 0 | Z98: 0.12 | AA98: 0 | AC98: 0.2 | AD98: 0 | AF98: *** | AG98: 0 | AI98: *** | AJ98: 0 | AL98: *** | AM98: 0 | AN98: 0 | AP98: 0 | AR98: 0 | AS98: 0 | AT98: 0 | AV98: 20 | AX98: =IF(B98="R410A",0.39,IF(B98="R407C",0.27,IF(B98="R22",0.21,"NG"))) -> 0.21 | AY98: =IF(B98="R410A",0.42,IF(B98="R407C",0.46,IF(B98="R22",0.28,"NG"))) -> 0.28 | AZ98: 0.5
B99: R22 | C99: 未分類 | F99: 355 | G99: FDCSJ | H99: FDCSJ355HKXA | N99: その他 | O99: 20 | T99: 0.03 | U99: 0 | W99: 0.06 | X99: 0 | Z99: 0.12 | AA99: 0 | AC99: 0.2 | AD99: 0 | AF99: 0.28 | AG99: 0 | AI99: *** | AJ99: 0 | AL99: *** | AM99: 0 | AN99: 0 | AP99: 0 | AR99: =IF(AQ99<=8,0,IF(AQ99<=13,(ROUNDDOWN(AQ99,0)-8)*0.5,"台数ｵｰﾊﾞ")) -> 0 | AS99: 0 | AT99: 0 | AV99: 20 | AX99: 0.21 | AY99: 0.28 | AZ99: 0.5
B100: R22 | C100: 未分類 | F100: 450 | G100: FDCSJ | H100: FDCSJ450HKXA | N100: その他 | O100: 20 | T100: 0.03 | U100: 0 | W100: 0.06 | X100: 0 | Z100: 0.12 | AA100: 0 | AC100: 0.2 | AD100: 0 | AF100: 0.28 | AG100: 0 | AI100: *** | AJ100: 0 | AL100: *** | AM100: 0 | AN100: 0 | AP100: 0 | AR100: =IF(AQ100<=8,0,IF(AQ100<=16,(ROUNDDOWN(AQ100,0)-8)*0.5,"台数ｵｰﾊﾞ")) -> 0 | AS100: 0 | AT100: 0 | AV100: 20 | AX100: 0.21 | AY100: 0.28 | AZ100: 0.5
B101: R22 | C101: 未分類 | F101: 560 | G101: FDCSJ | H101: FDCSJ560HKXA | N101: その他 | O101: 26 | T101: 0.03 | U101: 0 | W101: 0.06 | X101: 0 | Z101: 0.12 | AA101: 0 | AC101: 0.2 | AD101: 0 | AF101: 0.28 | AG101: 0 | AI101: *** | AJ101: 0 | AL101: *** | AM101: 0 | AN101: 0 | AP101: 0 | AR101: =IF(AQ101<=8,0,IF(AQ101<=16,(ROUNDDOWN(AQ101,0)-8)*0.5,"台数ｵｰﾊﾞ")) -> 0 | AS101: 0 | AT101: 0 | AV101: 26 | AX101: 0.21 | AY101: 0.28 | AZ101: 0.5
B102: R22 | C102: 未分類 | G102: FDCSJ | H102: FDCSJ672HKXA | N102: その他 | O102: 26 | T102: 0.03 | U102: 0 | W102: 0.06 | X102: 0 | Z102: 0.12 | AA102: 0 | AC102: 0.2 | AD102: 0 | AF102: 0.28 | AG102: 0 | AI102: *** | AJ102: 0 | AL102: *** | AM102: 0 | AN102: 0 | AP102: 0 | AR102: 0 | AS102: 0 | AT102: 0 | AV102: 26 | AX102: =IF(B102="R410A",0.39,IF(B102="R407C",0.27,IF(B102="R22",0.21,"NG"))) -> 0.21 | AY102: =IF(B102="R410A",0.42,IF(B102="R407C",0.46,IF(B102="R22",0.28,"NG"))) -> 0.28 | AZ102: 0.5
B103: R22 | C103: 未分類 | G103: FDCSJ | H103: FDCSJ728HKXA | N103: その他 | O103: 40 | T103: 0.03 | U103: 0 | W103: 0.06 | X103: 0 | Z103: 0.12 | AA103: 0 | AC103: 0.2 | AD103: 0 | AF103: 0.28 | AG103: 0 | AI103: 0.4 | AJ103: 0 | AL103: *** | AM103: 0 | AN103: 0 | AP103: 0 | AR103: 0 | AS103: 0 | AT103: 0 | AV103: 40 | AX103: =IF(B103="R410A",0.39,IF(B103="R407C",0.27,IF(B103="R22",0.21,"NG"))) -> 0.21 | AY103: =IF(B103="R410A",0.42,IF(B103="R407C",0.46,IF(B103="R22",0.28,"NG"))) -> 0.28 | AZ103: 0.5
B104: R22 | C104: 未分類 | G104: FDCSJ | H104: FDCSJ784HKXA | N104: その他 | O104: 40 | T104: 0.03 | U104: 0 | W104: 0.06 | X104: 0 | Z104: 0.12 | AA104: 0 | AC104: 0.2 | AD104: 0 | AF104: 0.28 | AG104: 0 | AI104: 0.4 | AJ104: 0 | AL104: *** | AM104: 0 | AN104: 0 | AP104: 0 | AR104: 0 | AS104: 0 | AT104: 0 | AV104: 40 | AX104: =IF(B104="R410A",0.39,IF(B104="R407C",0.27,IF(B104="R22",0.21,"NG"))) -> 0.21 | AY104: =IF(B104="R410A",0.42,IF(B104="R407C",0.46,IF(B104="R22",0.28,"NG"))) -> 0.28 | AZ104: 0.5
B105: R22 | C105: 未分類 | G105: FDCSJ | H105: FDCSJ840HKXA | N105: その他 | O105: 40 | T105: 0.03 | U105: 0 | W105: 0.06 | X105: 0 | Z105: 0.12 | AA105: 0 | AC105: 0.2 | AD105: 0 | AF105: 0.28 | AG105: 0 | AI105: 0.4 | AJ105: 0 | AL105: *** | AM105: 0 | AN105: 0 | AP105: 0 | AR105: 0 | AS105: 0 | AT105: 0 | AV105: 40 | AX105: =IF(B105="R410A",0.39,IF(B105="R407C",0.27,IF(B105="R22",0.21,"NG"))) -> 0.21 | AY105: =IF(B105="R410A",0.42,IF(B105="R407C",0.46,IF(B105="R22",0.28,"NG"))) -> 0.28 | AZ105: 0.5
B106: R22 | C106: 未分類 | F106: 560 | G106: FDCJ | H106: FDCJ560HKXA | N106: その他 | O106: 26 | T106: 0.03 | U106: 0 | W106: 0.06 | X106: 0 | Z106: 0.12 | AA106: 0 | AC106: 0.2 | AD106: 0 | AF106: 0.28 | AG106: 0 | AI106: *** | AJ106: 0 | AL106: *** | AM106: 0 | AN106: 0 | AP106: 0 | AR106: =IF(AQ106<=8,0,IF(AQ106<=16,(ROUNDDOWN(AQ106,0)-8)*0.5,"台数ｵｰﾊﾞ")) -> 0 | AS106: 0 | AT106: 0 | AV106: 26 | AX106: 0.21 | AY106: 0.28 | AZ106: 0.5
B107: R22 | C107: 未分類 | G107: FDCJ | H107: FDCJ672HKXA | N107: その他 | O107: 26 | T107: 0.03 | U107: 0 | W107: 0.06 | X107: 0 | Z107: 0.12 | AA107: 0 | AC107: 0.2 | AD107: 0 | AF107: 0.28 | AG107: 0 | AI107: *** | AJ107: 0 | AL107: *** | AM107: 0 | AN107: 0 | AP107: 0 | AR107: 0 | AS107: 0 | AT107: 0 | AV107: 26 | AX107: 0.21 | AY107: 0.28 | AZ107: 0.5
B108: R22 | C108: 未分類 | G108: FDCJ | H108: FDCJ728HKXA | N108: その他 | O108: 40 | T108: 0.03 | U108: 0 | W108: 0.06 | X108: 0 | Z108: 0.12 | AA108: 0 | AC108: 0.2 | AD108: 0 | AF108: 0.28 | AG108: 0 | AI108: 0.4 | AJ108: 0 | AL108: *** | AM108: 0 | AN108: 0 | AP108: 0 | AR108: 0 | AS108: 0 | AT108: 0 | AV108: 40 | AX108: 0.21 | AY108: 0.28 | AZ108: 0.5
B109: R22 | C109: 未分類 | G109: FDCJ | H109: FDCJ784HKXA | N109: その他 | O109: 40 | T109: 0.03 | U109: 0 | W109: 0.06 | X109: 0 | Z109: 0.12 | AA109: 0 | AC109: 0.2 | AD109: 0 | AF109: 0.28 | AG109: 0 | AI109: 0.4 | AJ109: 0 | AL109: *** | AM109: 0 | AN109: 0 | AP109: 0 | AR109: 0 | AS109: 0 | AT109: 0 | AV109: 40 | AX109: 0.21 | AY109: 0.28 | AZ109: 0.5
B110: R22 | C110: 未分類 | G110: FDCJ | H110: FDCJ840HKXA | N110: その他 | O110: 40 | T110: 0.03 | U110: 0 | W110: 0.06 | X110: 0 | Z110: 0.12 | AA110: 0 | AC110: 0.2 | AD110: 0 | AF110: 0.28 | AG110: 0 | AI110: 0.4 | AJ110: 0 | AL110: *** | AM110: 0 | AN110: 0 | AP110: 0 | AR110: 0 | AS110: 0 | AT110: 0 | AV110: 40 | AX110: 0.21 | AY110: 0.28 | AZ110: 0.5
B111: R22 | C111: 未分類 | F111: 355 | G111: FDCJ | H111: FDCJ355HKX2A | N111: その他 | O111: 16.35 | T111: 0.03 | U111: 0 | W111: 0.06 | X111: 0 | Z111: 0.12 | AA111: 0 | AC111: 0.2 | AD111: 0 | AF111: *** | AG111: 0 | AI111: *** | AJ111: 0 | AL111: *** | AM111: 0 | AN111: 0 | AP111: 0 | AR111: 0 | AS111: 0 | AT111: 0 | AV111: 16.35 | AX111: 0.21 | AY111: 0.28 | AZ111: 0.5
B112: R22 | C112: 未分類 | F112: 450 | G112: FDCJ | H112: FDCJ450HKX2A | N112: その他 | O112: 20 | T112: 0.03 | U112: 0 | W112: 0.06 | X112: 0 | Z112: 0.12 | AA112: 0 | AC112: 0.2 | AD112: 0 | AF112: *** | AG112: 0 | AI112: *** | AJ112: 0 | AL112: *** | AM112: 0 | AN112: 0 | AP112: 0 | AR112: 0 | AS112: 0 | AT112: 0 | AV112: 20 | AX112: 0.21 | AY112: 0.28 | AZ112: 0.5
B113: R22 | C113: 未分類 | F113: 140 | G113: FDCJ | H113: FDCJ140HKX2A | I113: A | N113: その他 | O113: 9 | T113: 0.03 | U113: 0 | W113: 0.06 | X113: 0 | Z113: 0.12 | AA113: 0 | AC113: *** | AD113: 0 | AF113: *** | AG113: 0 | AI113: *** | AJ113: 0 | AL113: *** | AM113: 0 | AN113: 0 | AP113: 0 | AR113: 0 | AS113: 0 | AT113: 0 | AV113: 9 | AX113: 0.21 | AY113: 0.28 | AZ113: 0.5
B114: R22 | C114: 未分類 | F114: 160 | G114: FDCJ | H114: FDCJ160HKX2A | I114: A | N114: その他 | O114: 9 | T114: 0.03 | U114: 0 | W114: 0.06 | X114: 0 | Z114: 0.12 | AA114: 0 | AC114: *** | AD114: 0 | AF114: *** | AG114: 0 | AI114: *** | AJ114: 0 | AL114: *** | AM114: 0 | AN114: 0 | AP114: 0 | AR114: 0 | AS114: 0 | AT114: 0 | AV114: 9 | AX114: 0.21 | AY114: 0.28 | AZ114: 0.5
B115: R22 | C115: 未分類 | F115: 224 | G115: FDCJ | H115: FDCJ224HKX2A | I115: A | N115: その他 | O115: 12 | T115: 0.03 | U115: 0 | W115: 0.06 | X115: 0 | Z115: 0.12 | AA115: 0 | AC115: *** | AD115: 0 | AF115: *** | AG115: 0 | AI115: *** | AJ115: 0 | AL115: *** | AM115: 0 | AN115: 0 | AP115: 0 | AR115: 0 | AS115: 0 | AT115: 0 | AV115: 12 | AX115: 0.21 | AY115: 0.28 | AZ115: 0.5
B116: R22 | C116: 未分類 | F116: 280 | G116: FDCJ | H116: FDCJ280HKX2A | I116: A | N116: その他 | O116: 12 | T116: 0.03 | U116: 0 | W116: 0.06 | X116: 0 | Z116: 0.12 | AA116: 0 | AC116: *** | AD116: 0 | AF116: *** | AG116: 0 | AI116: *** | AJ116: 0 | AL116: *** | AM116: 0 | AN116: 0 | AP116: 0 | AR116: 0 | AS116: 0 | AT116: 0 | AV116: 12 | AX116: 0.21 | AY116: 0.28 | AZ116: 0.5
B117: R407C | C117: 未分類 | F117: 140 | G117: FDCP | H117: FDCP140HKX2A | I117: A | N117: その他 | O117: 9 | T117: 0.03 | U117: 0 | W117: 0.06 | X117: 0 | Z117: 0.12 | AA117: 0 | AC117: *** | AD117: 0 | AF117: *** | AG117: 0 | AI117: *** | AJ117: 0 | AL117: *** | AM117: 0 | AN117: 0 | AP117: 0 | AR117: 0 | AS117: 0 | AT117: 0 | AV117: 9 | AX117: 0.27 | AY117: 0.46 | AZ117: 0.49
B118: R407C | C118: 未分類 | F118: 160 | G118: FDCP | H118: FDCP160HKX2A | I118: A | N118: その他 | O118: 9 | T118: 0.03 | U118: 0 | W118: 0.06 | X118: 0 | Z118: 0.12 | AA118: 0 | AC118: *** | AD118: 0 | AF118: *** | AG118: 0 | AI118: *** | AJ118: 0 | AL118: *** | AM118: 0 | AN118: 0 | AP118: 0 | AR118: 0 | AS118: 0 | AT118: 0 | AV118: 9 | AX118: 0.27 | AY118: 0.46 | AZ118: 0.49
B119: R407C | C119: 未分類 | F119: 224 | G119: FDCP | H119: FDCP224HKX2A | I119: A | N119: その他 | O119: 12 | T119: 0.03 | U119: 0 | W119: 0.06 | X119: 0 | Z119: 0.12 | AA119: 0 | AC119: *** | AD119: 0 | AF119: *** | AG119: 0 | AI119: *** | AJ119: 0 | AL119: *** | AM119: 0 | AN119: 0 | AP119: 0 | AR119: 0 | AS119: 0 | AT119: 0 | AV119: 12 | AX119: 0.27 | AY119: 0.46 | AZ119: 0.49
B120: R407C | C120: 未分類 | F120: 280 | G120: FDCP | H120: FDCP280HKX2A | I120: A | N120: その他 | O120: 12 | T120: 0.03 | U120: 0 | W120: 0.06 | X120: 0 | Z120: 0.12 | AA120: 0 | AC120: *** | AD120: 0 | AF120: *** | AG120: 0 | AI120: *** | AJ120: 0 | AL120: *** | AM120: 0 | AN120: 0 | AP120: 0 | AR120: 0 | AS120: 0 | AT120: 0 | AV120: 12 | AX120: 0.27 | AY120: 0.46 | AZ120: 0.49
B121: R407C | C121: 未分類 | F121: 355 | G121: FDCP | H121: FDCP355HKX2A | N121: その他 | O121: 16.35 | T121: 0.03 | U121: 0 | W121: 0.06 | X121: 0 | Z121: 0.12 | AA121: 0 | AC121: 0.2 | AD121: 0 | AF121: *** | AG121: 0 | AI121: *** | AJ121: 0 | AL121: *** | AM121: 0 | AN121: 0 | AP121: 0 | AR121: 0 | AS121: 0 | AT121: 0 | AV121: 16.35 | AX121: 0.27 | AY121: 0.46 | AZ121: 0.49
B122: R407C | C122: 未分類 | F122: 450 | G122: FDCP | H122: FDCP450HKX2A | N122: その他 | O122: 20 | T122: 0.03 | U122: 0 | W122: 0.06 | X122: 0 | Z122: 0.12 | AA122: 0 | AC122: 0.2 | AD122: 0 | AF122: *** | AG122: 0 | AI122: *** | AJ122: 0 | AL122: *** | AM122: 0 | AN122: 0 | AP122: 0 | AR122: 0 | AS122: 0 | AT122: 0 | AV122: 20 | AX122: 0.27 | AY122: 0.46 | AZ122: 0.49
B123: R22 | C123: 未分類 | F123: 224 | G123: FDCJ | H123: FDCJ224HKX2B-K | N123: その他 | O123: 12 | T123: 0.03 | U123: 0 | W123: 0.06 | X123: 0 | Z123: 0.12 | AA123: 0 | AC123: 0.2 | AD123: 0 | AF123: 0.28 | AG123: 0 | AI123: 0.4 | AJ123: 0 | AL123: 0.53 | AM123: 0 | AN123: 0 | AP123: 0 | AR123: 0 | AS123: 0 | AT123: 0 | AV123: 12 | AX123: 0.21 | AY123: 0.28 | AZ123: 0.5 | BC123: 組合せ専用機
B124: R22 | C124: 未分類 | F124: 280 | G124: FDCJ | H124: FDCJ280HKX2B-K | N124: その他 | O124: 12 | T124: 0.03 | U124: 0 | W124: 0.06 | X124: 0 | Z124: 0.12 | AA124: 0 | AC124: 0.2 | AD124: 0 | AF124: 0.28 | AG124: 0 | AI124: 0.4 | AJ124: 0 | AL124: 0.53 | AM124: 0 | AN124: 0 | AP124: 0 | AR124: 0 | AS124: 0 | AT124: 0 | AV124: 12 | AX124: 0.21 | AY124: 0.28 | AZ124: 0.5 | BC124: 組合せ専用機
B125: R22 | C125: 未分類 | F125: 224 | G125: FDCSJ | H125: FDCSJ224HKX2B-K | N125: その他 | O125: 12 | T125: 0.03 | U125: 0 | W125: 0.06 | X125: 0 | Z125: 0.12 | AA125: 0 | AC125: 0.2 | AD125: 0 | AF125: 0.28 | AG125: 0 | AI125: 0.4 | AJ125: 0 | AL125: 0.53 | AM125: 0 | AN125: 0 | AP125: 0 | AR125: 0 | AS125: 0 | AT125: 0 | AV125: 12 | AX125: 0.21 | AY125: 0.28 | AZ125: 0.5 | BC125: 組合せ専用機
B126: R22 | C126: 未分類 | F126: 280 | G126: FDCSJ | H126: FDCSJ280HKX2B-K | N126: その他 | O126: 12 | T126: 0.03 | U126: 0 | W126: 0.06 | X126: 0 | Z126: 0.12 | AA126: 0 | AC126: 0.2 | AD126: 0 | AF126: 0.28 | AG126: 0 | AI126: 0.4 | AJ126: 0 | AL126: 0.53 | AM126: 0 | AN126: 0 | AP126: 0 | AR126: 0 | AS126: 0 | AT126: 0 | AV126: 12 | AX126: 0.21 | AY126: 0.28 | AZ126: 0.5 | BC126: 組合せ専用機
B127: R407C | C127: 未分類 | F127: 224 | G127: FDCP | H127: FDCP224HKX2B-K | N127: その他 | O127: 12 | T127: 0.03 | U127: 0 | W127: 0.06 | X127: 0 | Z127: 0.12 | AA127: 0 | AC127: 0.2 | AD127: 0 | AF127: 0.28 | AG127: 0 | AI127: 0.4 | AJ127: 0 | AL127: 0.53 | AM127: 0 | AN127: 0 | AP127: 0 | AR127: 0 | AS127: 0 | AT127: 0 | AV127: 12 | AX127: 0.27 | AY127: 0.46 | AZ127: 0.49 | BC127: 組合せ専用機
B128: R407C | C128: 未分類 | F128: 280 | G128: FDCP | H128: FDCP280HKX2B-K | N128: その他 | O128: 12 | T128: 0.03 | U128: 0 | W128: 0.06 | X128: 0 | Z128: 0.12 | AA128: 0 | AC128: 0.2 | AD128: 0 | AF128: 0.28 | AG128: 0 | AI128: 0.4 | AJ128: 0 | AL128: 0.53 | AM128: 0 | AN128: 0 | AP128: 0 | AR128: 0 | AS128: 0 | AT128: 0 | AV128: 12 | AX128: 0.27 | AY128: 0.46 | AZ128: 0.49 | BC128: 組合せ専用機
B129: R407C | C129: 未分類 | F129: 224 | G129: FDCP | H129: FDCP224HKX2A-KT | N129: その他 | O129: 5 | T129: 0.03 | U129: 0 | W129: 0.06 | X129: 0 | Z129: 0.12 | AA129: 0 | AC129: 0.2 | AD129: 0 | AF129: 0.28 | AG129: 0 | AI129: 0.4 | AJ129: 0 | AL129: 0.53 | AM129: 0 | AN129: 0 | AP129: 0 | AR129: 0 | AS129: 0 | AT129: 0 | AV129: 5 | AX129: 0.27 | AY129: 0.46 | AZ129: 0.49 | BC129: 組合せ専用機
B130: R407C | C130: 未分類 | F130: 280 | G130: FDCP | H130: FDCP280HKX2A-KT | N130: その他 | O130: 7 | T130: 0.03 | U130: 0 | W130: 0.06 | X130: 0 | Z130: 0.12 | AA130: 0 | AC130: 0.2 | AD130: 0 | AF130: 0.28 | AG130: 0 | AI130: 0.4 | AJ130: 0 | AL130: 0.53 | AM130: 0 | AN130: 0 | AP130: 0 | AR130: 0 | AS130: 0 | AT130: 0 | AV130: 7 | AX130: 0.27 | AY130: 0.46 | AZ130: 0.49 | BC130: 組合せ専用機
B131: R407C | C131: 未分類 | G131: FDCP | H131: FDCP225HKX2A-KT | N131: その他 | O131: 5 | T131: 0.03 | U131: 0 | W131: 0.06 | X131: 0 | Z131: 0.12 | AA131: 0 | AC131: 0.2 | AD131: 0 | AF131: 0.28 | AG131: 0 | AI131: 0.4 | AJ131: 0 | AL131: 0.53 | AM131: 0 | AN131: 0 | AP131: 0 | AR131: 0 | AS131: 0 | AT131: 0 | AV131: 5 | AX131: 0.27 | AY131: 0.46 | AZ131: 0.49 | BC131: 組合せ専用機
B132: R407C | C132: 未分類 | G132: FDCP | H132: FDCP281HKX2A-KT | N132: その他 | O132: 7 | T132: 0.03 | U132: 0 | W132: 0.06 | X132: 0 | Z132: 0.12 | AA132: 0 | AC132: 0.2 | AD132: 0 | AF132: 0.28 | AG132: 0 | AI132: 0.4 | AJ132: 0 | AL132: 0.53 | AM132: 0 | AN132: 0 | AP132: 0 | AR132: 0 | AS132: 0 | AT132: 0 | AV132: 7 | AX132: 0.27 | AY132: 0.46 | AZ132: 0.49 | BC132: 組合せ専用機
B133: R407C | C133: 未分類 | F133: 224 | G133: FDCSP | H133: FDCSP224HKX2B-K | N133: その他 | O133: 5 | T133: 0.03 | U133: 0 | W133: 0.06 | X133: 0 | Z133: 0.12 | AA133: 0 | AC133: 0.2 | AD133: 0 | AF133: 0.28 | AG133: 0 | AI133: 0.4 | AJ133: 0 | AL133: 0.53 | AM133: 0 | AN133: 0 | AP133: 0 | AR133: 0 | AS133: 0 | AT133: 0 | AV133: 5 | AX133: 0.27 | AY133: 0.46 | AZ133: 0.49 | BC133: 組合せ専用機
B134: R407C | C134: 未分類 | F134: 280 | G134: FDCSP | H134: FDCSP280HKX2B-K | N134: その他 | O134: 7 | T134: 0.03 | U134: 0 | W134: 0.06 | X134: 0 | Z134: 0.12 | AA134: 0 | AC134: 0.2 | AD134: 0 | AF134: 0.28 | AG134: 0 | AI134: 0.4 | AJ134: 0 | AL134: 0.53 | AM134: 0 | AN134: 0 | AP134: 0 | AR134: 0 | AS134: 0 | AT134: 0 | AV134: 7 | AX134: 0.27 | AY134: 0.46 | AZ134: 0.49 | BC134: 組合せ専用機
B135: R407C | C135: 未分類 | F135: 224 | G135: FDCSP | H135: FDCSP224HKX2A-KT | N135: その他 | O135: 5 | R135: =IF(Q135="","",IF(Q135="90m未満",VLOOKUP(C135&D135&","&F135,主管サイズルックアップ用,5,FALSE),VLOOKUP(C135&D135&","&F135,主管サイズルックアップ用,6,FALSE))) ->  | T135: 0.03 | U135: =IF($R135="***","実長90m超使用不可",IF($R135<6.35,"-主管サイズを超過-",IF(T135="***","0",S135*T135))) -> 0 | W135: 0.06 | X135: =IF($R135="***","実長90m超使用不可",IF($R135<9.52,"-主管サイズを超過-",IF(W135="***","0",V135*W135))) -> 0 | Z135: 0.12 | AA135: =IF($R135="***","実長90m超使用不可",IF($R135<12.7,"-主管サイズを超過-",IF(Z135="***","0",Y135*Z135))) -> 0 | AC135: 0.2 | AD135: =IF($R135="***","実長90m超使用不可",IF($R135<15.88,"-主管サイズを超過-",IF(AC135="***","0",AB135*AC135))) -> 0 | AF135: 0.28 | AG135: =IF($R135="***","実長90m超使用不可",IF($R135<19.05,"-主管サイズを超過-",IF(AF135="***","0",AE135*AF135))) -> 0 | AI135: 0.4 | AJ135: =IF($R135="***","実長90m超使用不可",IF($R135<22.22,"-主管サイズを超過-",IF(AI135="***","0",AH135*AI135))) -> 0 | AL135: 0.53 | AM135: =IF($R135="***","実長90m超使用不可",IF($R135<25.4,"-主管サイズを超過-",IF(AL135="***","0",AK135*AL135))) -> 0 | AN135: =IF(OR(U135="実長90m超使用不可",U135="-主管サイズを超過-"),0,U135)+IF(OR(X135="実長90m超使用不可",X135="-主管サイズを超過-"),0,X135)+IF(OR(AA135="実長90m超使用不可",AA135="-主管サイズを超過-"),0,AA135)+IF(OR(AD135="実長90m超使用不可",AD135="-主管サイズを超過-"),0,AD135)+IF(OR(AG135="実長90m超使用不可",AG135="-主管サイズを超過-"),0,AG135)+IF(OR(AJ135="実長90m超使用不可",AJ135="-主管サイズを超過-"),0,AJ135)+IF(OR(AM135="実長90m超使用不可",AM135="-主管サイズを超過-"),0,AM135) -> 0 | AP135: 0 | AR135: 0 | AS135: =AR135 -> 0 | AT135: =IF(AP135+AS135<0,0,AP135+AS135) -> 0 | AU135: =VLOOKUP(C135&D135&","&F135,封入上限ルックアップ用,5,FALSE) ->  | AV135: =O135+AT135 -> 5 | AW135: =IF(ISERROR(AV135/P135),"",AV135/P135) ->  | AX135: =IF(B135="R410A",0.39,IF(B135="R407C",0.27,IF(B135="R22",0.21,"NG"))) -> 0.27 | AY135: =IF(B135="R410A",0.42,IF(B135="R407C",0.46,IF(B135="R22",0.28,"NG"))) -> 0.46 | AZ135: =IF(B135="R410A",0.42,IF(B135="R407C",0.49,IF(B135="R22",0.5,"NG"))) -> 0.49 | BA135: =IF(AW135="","",IF(OR(AW135<=AX135,AND(N135="その他",AW135<=AY135)),"OK",IF(OR(AND(N135="最下層",AW135<=AY135),AND(N135="その他",AW135<=AZ135)),"対策が１つ必要です",IF(OR(AND(N135="最下層",AW135<=AZ135),AND(N135="その他",AW135>AZ135)),"対策が２つ必要です","システムの見直しが必要です")))) ->  | BC135: 組合せ専用機
B136: R407C | C136: 未分類 | F136: 280 | G136: FDCSP | H136: FDCSP280HKX2A-KT | N136: その他 | O136: 7 | T136: 0.03 | U136: 0 | W136: 0.06 | X136: 0 | Z136: 0.12 | AA136: 0 | AC136: 0.2 | AD136: 0 | AF136: 0.28 | AG136: 0 | AI136: 0.4 | AJ136: 0 | AL136: 0.53 | AM136: 0 | AN136: 0 | AP136: =AN136*AO136 -> 0 | AR136: 0 | AS136: 0 | AT136: 0 | AV136: 7 | AX136: 0.27 | AY136: 0.46 | AZ136: 0.49 | BC136: 組合せ専用機
B137: R407C | C137: 未分類 | G137: FDCSP | H137: FDCSP281HKX2A-KT | N137: その他 | O137: 5 | T137: 0.03 | U137: 0 | W137: 0.06 | X137: 0 | Z137: 0.12 | AA137: 0 | AC137: 0.2 | AD137: 0 | AF137: 0.28 | AG137: 0 | AI137: 0.4 | AJ137: 0 | AL137: 0.53 | AM137: 0 | AN137: 0 | AP137: 0 | AR137: 0 | AS137: 0 | AT137: 0 | AV137: 5 | AX137: 0.27 | AY137: 0.46 | AZ137: 0.49 | BC137: 組合せ専用機
B138: R407C | C138: 未分類 | G138: FDCSP | H138: FDCSP225HKX2A-KT | N138: その他 | O138: 7 | T138: 0.03 | U138: 0 | W138: 0.06 | X138: 0 | Z138: 0.12 | AA138: 0 | AC138: 0.2 | AD138: 0 | AF138: 0.28 | AG138: 0 | AI138: 0.4 | AJ138: 0 | AL138: 0.53 | AM138: 0 | AN138: 0 | AP138: 0 | AR138: 0 | AS138: 0 | AT138: 0 | AV138: 7 | AX138: 0.27 | AY138: 0.46 | AZ138: 0.49 | BC138: 組合せ専用機
B139: R22 | C139: 未分類 | F139: 140 | G139: FDCJ | H139: FDCJ140HKX2B | N139: その他 | O139: 9 | T139: 0.03 | U139: 0 | W139: 0.06 | X139: 0 | Z139: 0.12 | AA139: 0 | AC139: *** | AD139: 0 | AF139: *** | AG139: 0 | AI139: *** | AJ139: 0 | AL139: *** | AM139: 0 | AN139: 0 | AP139: 0 | AR139: 0 | AS139: 0 | AT139: 0 | AV139: 9 | AX139: 0.21 | AY139: 0.28 | AZ139: 0.5
B140: R22 | C140: 未分類 | F140: 160 | G140: FDCJ | H140: FDCJ160HKX2B | N140: その他 | O140: 9 | T140: 0.03 | U140: 0 | W140: 0.06 | X140: 0 | Z140: 0.12 | AA140: 0 | AC140: *** | AD140: 0 | AF140: *** | AG140: 0 | AI140: *** | AJ140: 0 | AL140: *** | AM140: 0 | AN140: 0 | AP140: 0 | AR140: 0 | AS140: 0 | AT140: 0 | AV140: 9 | AX140: 0.21 | AY140: 0.28 | AZ140: 0.5
B141: R22 | C141: 未分類 | F141: 224 | G141: FDCJ | H141: FDCJ224HKX2B | N141: その他 | O141: 12 | T141: 0.03 | U141: 0 | W141: 0.06 | X141: 0 | Z141: 0.12 | AA141: 0 | AC141: *** | AD141: 0 | AF141: *** | AG141: 0 | AI141: *** | AJ141: 0 | AL141: *** | AM141: 0 | AN141: 0 | AP141: 0 | AR141: 0 | AS141: 0 | AT141: 0 | AV141: 12 | AX141: 0.21 | AY141: 0.28 | AZ141: 0.5
B142: R22 | C142: 未分類 | F142: 280 | G142: FDCJ | H142: FDCJ280HKX2B | N142: その他 | O142: 12 | T142: 0.03 | U142: 0 | W142: 0.06 | X142: 0 | Z142: 0.12 | AA142: 0 | AC142: *** | AD142: 0 | AF142: *** | AG142: 0 | AI142: *** | AJ142: 0 | AL142: *** | AM142: 0 | AN142: 0 | AP142: 0 | AR142: 0 | AS142: 0 | AT142: 0 | AV142: 12 | AX142: 0.21 | AY142: 0.28 | AZ142: 0.5
B143: R22 | C143: 未分類 | F143: 140 | G143: FDCSJ | H143: FDCSJ140HKX2B | N143: その他 | O143: 9 | T143: 0.03 | U143: 0 | W143: 0.06 | X143: 0 | Z143: 0.12 | AA143: 0 | AC143: *** | AD143: 0 | AF143: *** | AG143: 0 | AI143: *** | AJ143: 0 | AL143: *** | AM143: 0 | AN143: 0 | AP143: 0 | AR143: 0 | AS143: 0 | AT143: 0 | AV143: 9 | AX143: 0.21 | AY143: 0.28 | AZ143: 0.5
B144: R22 | C144: 未分類 | F144: 160 | G144: FDCSJ | H144: FDCSJ160HKX2B | N144: その他 | O144: 9 | T144: 0.03 | U144: 0 | W144: 0.06 | X144: 0 | Z144: 0.12 | AA144: 0 | AC144: *** | AD144: 0 | AF144: *** | AG144: 0 | AI144: *** | AJ144: 0 | AL144: *** | AM144: 0 | AN144: 0 | AP144: 0 | AR144: 0 | AS144: 0 | AT144: 0 | AV144: 9 | AX144: 0.21 | AY144: 0.28 | AZ144: 0.5
B145: R22 | C145: 未分類 | F145: 224 | G145: FDCSJ | H145: FDCSJ224HKX2B | N145: その他 | O145: 12 | T145: 0.03 | U145: 0 | W145: 0.06 | X145: 0 | Z145: 0.12 | AA145: 0 | AC145: *** | AD145: 0 | AF145: *** | AG145: 0 | AI145: *** | AJ145: 0 | AL145: *** | AM145: 0 | AN145: 0 | AP145: 0 | AR145: 0 | AS145: 0 | AT145: 0 | AV145: 12 | AX145: 0.21 | AY145: 0.28 | AZ145: 0.5
B146: R22 | C146: 未分類 | F146: 280 | G146: FDCSJ | H146: FDCSJ280HKX2B | N146: その他 | O146: 12 | T146: 0.03 | U146: 0 | W146: 0.06 | X146: 0 | Z146: 0.12 | AA146: 0 | AC146: *** | AD146: 0 | AF146: *** | AG146: 0 | AI146: *** | AJ146: 0 | AL146: *** | AM146: 0 | AN146: 0 | AP146: 0 | AR146: 0 | AS146: 0 | AT146: 0 | AV146: 12 | AX146: 0.21 | AY146: 0.28 | AZ146: 0.5
B147: R407C | C147: 未分類 | F147: 140 | G147: FDCP | H147: FDCP140HKX2B | N147: その他 | O147: 9 | T147: 0.03 | U147: 0 | W147: 0.06 | X147: 0 | Z147: 0.12 | AA147: 0 | AC147: *** | AD147: 0 | AF147: *** | AG147: 0 | AI147: *** | AJ147: 0 | AL147: *** | AM147: 0 | AN147: 0 | AP147: 0 | AR147: 0 | AS147: 0 | AT147: 0 | AV147: 9 | AX147: 0.27 | AY147: 0.46 | AZ147: 0.49
B148: R407C | C148: 未分類 | F148: 160 | G148: FDCP | H148: FDCP160HKX2B | N148: その他 | O148: 9 | T148: 0.03 | U148: 0 | W148: 0.06 | X148: 0 | Z148: 0.12 | AA148: 0 | AC148: *** | AD148: 0 | AF148: *** | AG148: 0 | AI148: *** | AJ148: 0 | AL148: *** | AM148: 0 | AN148: 0 | AP148: 0 | AR148: 0 | AS148: 0 | AT148: 0 | AV148: 9 | AX148: 0.27 | AY148: 0.46 | AZ148: 0.49
B149: R407C | C149: 未分類 | F149: 224 | G149: FDCP | H149: FDCP224HKX2B | N149: その他 | O149: 12 | T149: 0.03 | U149: 0 | W149: 0.06 | X149: 0 | Z149: 0.12 | AA149: 0 | AC149: *** | AD149: 0 | AF149: *** | AG149: 0 | AI149: *** | AJ149: 0 | AL149: *** | AM149: 0 | AN149: 0 | AP149: 0 | AR149: 0 | AS149: 0 | AT149: 0 | AV149: 12 | AX149: 0.27 | AY149: 0.46 | AZ149: 0.49
B150: R407C | C150: 未分類 | F150: 280 | G150: FDCP | H150: FDCP280HKX2B | N150: その他 | O150: 12 | T150: 0.03 | U150: 0 | W150: 0.06 | X150: 0 | Z150: 0.12 | AA150: 0 | AC150: *** | AD150: 0 | AF150: *** | AG150: 0 | AI150: *** | AJ150: 0 | AL150: *** | AM150: 0 | AN150: 0 | AP150: 0 | AR150: 0 | AS150: 0 | AT150: 0 | AV150: 12 | AX150: 0.27 | AY150: 0.46 | AZ150: 0.49
B151: R407C | C151: 未分類 | F151: 140 | G151: FDCSP | H151: FDCSP140HKX2B | N151: その他 | O151: 9 | T151: 0.03 | U151: 0 | W151: 0.06 | X151: 0 | Z151: 0.12 | AA151: 0 | AC151: *** | AD151: 0 | AF151: *** | AG151: 0 | AI151: *** | AJ151: 0 | AL151: *** | AM151: 0 | AN151: 0 | AP151: 0 | AR151: 0 | AS151: 0 | AT151: 0 | AV151: 9 | AX151: 0.27 | AY151: 0.46 | AZ151: =IF(B151="R410A",0.42,IF(B151="R407C",0.49,IF(B151="R22",0.5,"NG"))) -> 0.49
B152: R407C | C152: 未分類 | F152: 160 | G152: FDCSP | H152: FDCSP160HKX2B | N152: その他 | O152: 9 | T152: 0.03 | U152: 0 | W152: 0.06 | X152: 0 | Z152: 0.12 | AA152: 0 | AC152: *** | AD152: 0 | AF152: *** | AG152: 0 | AI152: *** | AJ152: 0 | AL152: *** | AM152: 0 | AN152: 0 | AP152: 0 | AR152: 0 | AS152: 0 | AT152: 0 | AV152: 9 | AX152: 0.27 | AY152: 0.46 | AZ152: =IF(B152="R410A",0.42,IF(B152="R407C",0.49,IF(B152="R22",0.5,"NG"))) -> 0.49
B153: R407C | C153: 未分類 | F153: 224 | G153: FDCSP | H153: FDCSP224HKX2B | N153: その他 | O153: 12 | T153: 0.03 | U153: 0 | W153: 0.06 | X153: 0 | Z153: 0.12 | AA153: 0 | AC153: *** | AD153: 0 | AF153: *** | AG153: 0 | AI153: *** | AJ153: 0 | AL153: *** | AM153: 0 | AN153: 0 | AP153: 0 | AR153: 0 | AS153: 0 | AT153: 0 | AV153: 12 | AX153: 0.27 | AY153: 0.46 | AZ153: =IF(B153="R410A",0.42,IF(B153="R407C",0.49,IF(B153="R22",0.5,"NG"))) -> 0.49
B154: R407C | C154: 未分類 | F154: 280 | G154: FDCSP | H154: FDCSP280HKX2B | N154: その他 | O154: 12 | T154: 0.03 | U154: 0 | W154: 0.06 | X154: 0 | Z154: 0.12 | AA154: 0 | AC154: *** | AD154: 0 | AF154: *** | AG154: 0 | AI154: *** | AJ154: 0 | AL154: *** | AM154: 0 | AN154: 0 | AP154: 0 | AR154: 0 | AS154: 0 | AT154: 0 | AV154: 12 | AX154: 0.27 | AY154: 0.46 | AZ154: =IF(B154="R410A",0.42,IF(B154="R407C",0.49,IF(B154="R22",0.5,"NG"))) -> 0.49
B155: R22 | C155: 未分類 | F155: 224 | G155: FDCSJ | H155: FDCSJ224HKXIB | J155: ISU10HKX | K155: FDCSJ224HKXIB | N155: その他 | O155: 12 | T155: 0.03 | U155: 0 | W155: 0.06 | X155: 0 | Z155: 0.12 | AA155: 0 | AC155: *** | AD155: 0 | AF155: *** | AG155: 0 | AI155: *** | AJ155: 0 | AL155: *** | AM155: 0 | AN155: 0 | AP155: 0 | AR155: 1.2 | AS155: 1.2 | AT155: 1.2 | AV155: 13.2 | AX155: 0.21 | AY155: 0.28 | AZ155: 0.5
B156: R22 | C156: 未分類 | F156: 280 | G156: FDCSJ | H156: FDCSJ280HKXIB | J156: ISU13HKX | K156: FDCSJ280HKXIB | N156: その他 | O156: 12 | T156: 0.03 | U156: 0 | W156: 0.06 | X156: 0 | Z156: 0.12 | AA156: 0 | AC156: *** | AD156: 0 | AF156: *** | AG156: 0 | AI156: *** | AJ156: 0 | AL156: *** | AM156: 0 | AN156: 0 | AP156: 0 | AR156: 2.2 | AS156: 2.2 | AT156: 2.2 | AV156: 14.2 | AX156: 0.21 | AY156: 0.28 | AZ156: 0.5
B157: R407C | C157: 未分類 | F157: 355 | G157: FDCSP | H157: FDCSP355HKX2A | N157: その他 | O157: 16.35 | T157: 0.03 | U157: 0 | W157: 0.06 | X157: 0 | Z157: 0.12 | AA157: 0 | AC157: 0.2 | AD157: 0 | AF157: *** | AG157: 0 | AI157: *** | AJ157: 0 | AL157: *** | AM157: 0 | AN157: 0 | AP157: 0 | AR157: 0 | AS157: 0 | AT157: 0 | AV157: 16.35 | AX157: 0.27 | AY157: 0.46 | AZ157: 0.49
B158: R407C | C158: 未分類 | F158: 450 | G158: FDCSP | H158: FDCSP450HKX2A | N158: その他 | O158: 20 | T158: 0.03 | U158: 0 | W158: 0.06 | X158: 0 | Z158: 0.12 | AA158: 0 | AC158: 0.2 | AD158: 0 | AF158: *** | AG158: 0 | AI158: *** | AJ158: 0 | AL158: *** | AM158: 0 | AN158: 0 | AP158: 0 | AR158: 0 | AS158: =AR158 -> 0 | AT158: 0 | AV158: 20 | AX158: 0.27 | AY158: 0.46 | AZ158: =IF(B158="R410A",0.42,IF(B158="R407C",0.49,IF(B158="R22",0.5,"NG"))) -> 0.49
B159: R407C | C159: 未分類 | F159: 140 | G159: FDCSP | H159: FDCSP140HKX2B-C | N159: その他 | O159: 9 | T159: 0.03 | U159: 0 | W159: 0.06 | X159: 0 | Z159: 0.12 | AA159: 0 | AC159: *** | AD159: 0 | AF159: *** | AG159: 0 | AI159: *** | AJ159: 0 | AL159: *** | AM159: 0 | AN159: 0 | AP159: 0 | AR159: 0 | AS159: 0 | AT159: 0 | AV159: 9 | AX159: 0.27 | AY159: 0.46 | AZ159: 0.49
B160: R22 | C160: 未分類 | F160: 224 | G160: FDCJ | H160: FDCJ224HKX2D | N160: その他 | O160: 12 | T160: 0.03 | U160: 0 | W160: 0.06 | X160: 0 | Z160: 0.12 | AA160: 0 | AC160: *** | AD160: 0 | AF160: *** | AG160: 0 | AI160: *** | AJ160: 0 | AL160: *** | AM160: 0 | AN160: 0 | AP160: 0 | AR160: 0 | AS160: =AR160 -> 0 | AT160: 0 | AV160: 12 | AX160: =IF(B160="R410A",0.39,IF(B160="R407C",0.27,IF(B160="R22",0.21,"NG"))) -> 0.21 | AY160: =IF(B160="R410A",0.42,IF(B160="R407C",0.46,IF(B160="R22",0.28,"NG"))) -> 0.28 | AZ160: =IF(B160="R410A",0.42,IF(B160="R407C",0.49,IF(B160="R22",0.5,"NG"))) -> 0.5
B161: R22 | C161: 未分類 | F161: 280 | G161: FDCJ | H161: FDCJ280HKX2D | N161: その他 | O161: 12 | T161: 0.03 | U161: 0 | W161: 0.06 | X161: 0 | Z161: 0.12 | AA161: 0 | AC161: *** | AD161: 0 | AF161: *** | AG161: 0 | AI161: *** | AJ161: 0 | AL161: *** | AM161: 0 | AN161: 0 | AP161: 0 | AR161: 0 | AS161: =AR161 -> 0 | AT161: 0 | AV161: 12 | AX161: =IF(B161="R410A",0.39,IF(B161="R407C",0.27,IF(B161="R22",0.21,"NG"))) -> 0.21 | AY161: =IF(B161="R410A",0.42,IF(B161="R407C",0.46,IF(B161="R22",0.28,"NG"))) -> 0.28 | AZ161: =IF(B161="R410A",0.42,IF(B161="R407C",0.49,IF(B161="R22",0.5,"NG"))) -> 0.5
B162: R22 | C162: 未分類 | F162: 355 | G162: FDCJ | H162: FDCJ355HKX2D | N162: その他 | O162: 16.35 | T162: 0.03 | U162: 0 | W162: 0.06 | X162: 0 | Z162: 0.12 | AA162: 0 | AC162: 0.2 | AD162: 0 | AF162: *** | AG162: 0 | AI162: *** | AJ162: 0 | AL162: *** | AM162: 0 | AN162: 0 | AP162: 0 | AR162: 0 | AS162: 0 | AT162: 0 | AV162: 16.35 | AX162: 0.21 | AY162: 0.28 | AZ162: 0.5
B163: R22 | C163: 未分類 | F163: 450 | G163: FDCJ | H163: FDCJ450HKX2D | N163: その他 | O163: 20 | T163: 0.03 | U163: 0 | W163: 0.06 | X163: 0 | Z163: 0.12 | AA163: 0 | AC163: 0.2 | AD163: 0 | AF163: *** | AG163: 0 | AI163: *** | AJ163: 0 | AL163: *** | AM163: 0 | AN163: 0 | AP163: 0 | AR163: 0 | AS163: 0 | AT163: 0 | AV163: 20 | AX163: 0.21 | AY163: 0.28 | AZ163: 0.5
B164: R407C | C164: 未分類 | F164: 355 | G164: FDCP | H164: FDCP355HKX2D | N164: その他 | O164: 16.35 | T164: 0.03 | U164: 0 | W164: 0.06 | X164: 0 | Z164: 0.12 | AA164: 0 | AC164: 0.2 | AD164: 0 | AF164: *** | AG164: 0 | AI164: *** | AJ164: 0 | AL164: *** | AM164: 0 | AN164: 0 | AP164: 0 | AR164: 0 | AS164: 0 | AT164: 0 | AV164: 16.35 | AX164: 0.27 | AY164: 0.46 | AZ164: 0.49
B165: R407C | C165: 未分類 | F165: 450 | G165: FDCP | H165: FDCP450HKX2D | N165: その他 | O165: 20 | T165: 0.03 | U165: 0 | W165: 0.06 | X165: 0 | Z165: 0.12 | AA165: 0 | AC165: 0.2 | AD165: 0 | AF165: *** | AG165: 0 | AI165: *** | AJ165: 0 | AL165: *** | AM165: 0 | AN165: 0 | AP165: 0 | AR165: 0 | AS165: =AR165 -> 0 | AT165: 0 | AV165: 20 | AX165: =IF(B165="R410A",0.39,IF(B165="R407C",0.27,IF(B165="R22",0.21,"NG"))) -> 0.27 | AY165: =IF(B165="R410A",0.42,IF(B165="R407C",0.46,IF(B165="R22",0.28,"NG"))) -> 0.46 | AZ165: =IF(B165="R410A",0.42,IF(B165="R407C",0.49,IF(B165="R22",0.5,"NG"))) -> 0.49
B166: R22 | C166: 未分類 | F166: 224 | G166: FDCJ | H166: FDCJ224HKX2D-K | N166: その他 | O166: 12 | T166: 0.03 | U166: 0 | W166: 0.06 | X166: 0 | Z166: 0.12 | AA166: 0 | AC166: 0.2 | AD166: 0 | AF166: 0.28 | AG166: 0 | AI166: 0.4 | AJ166: 0 | AL166: 0.53 | AM166: 0 | AN166: 0 | AP166: 0 | AR166: 0 | AS166: 0 | AT166: 0 | AV166: 12 | AX166: 0.21 | AY166: 0.28 | AZ166: 0.5 | BC166: 組合せ専用機
B167: R22 | C167: 未分類 | F167: 280 | G167: FDCJ | H167: FDCJ280HKX2D-K | N167: その他 | O167: 12 | T167: 0.03 | U167: 0 | W167: 0.06 | X167: 0 | Z167: 0.12 | AA167: 0 | AC167: 0.2 | AD167: 0 | AF167: 0.28 | AG167: 0 | AI167: 0.4 | AJ167: 0 | AL167: 0.53 | AM167: 0 | AN167: 0 | AP167: 0 | AR167: 0 | AS167: 0 | AT167: 0 | AV167: 12 | AX167: 0.21 | AY167: 0.28 | AZ167: 0.5 | BC167: 組合せ専用機
B168: R22 | C168: 未分類 | F168: 224 | G168: FDCSJ | H168: FDCSJ224HKX2D-K | N168: その他 | O168: 12 | T168: 0.03 | U168: 0 | W168: 0.06 | X168: 0 | Z168: 0.12 | AA168: 0 | AC168: 0.2 | AD168: 0 | AF168: 0.28 | AG168: 0 | AI168: 0.4 | AJ168: 0 | AL168: 0.53 | AM168: 0 | AN168: 0 | AP168: 0 | AR168: 0 | AS168: =AR168 -> 0 | AT168: 0 | AV168: 12 | AX168: =IF(B168="R410A",0.39,IF(B168="R407C",0.27,IF(B168="R22",0.21,"NG"))) -> 0.21 | AY168: =IF(B168="R410A",0.42,IF(B168="R407C",0.46,IF(B168="R22",0.28,"NG"))) -> 0.28 | AZ168: =IF(B168="R410A",0.42,IF(B168="R407C",0.49,IF(B168="R22",0.5,"NG"))) -> 0.5 | BC168: 組合せ専用機
B169: R22 | C169: 未分類 | F169: 280 | G169: FDCSJ | H169: FDCSJ280HKX2D-K | N169: その他 | O169: 12 | T169: 0.03 | U169: 0 | W169: 0.06 | X169: 0 | Z169: 0.12 | AA169: 0 | AC169: 0.2 | AD169: 0 | AF169: 0.28 | AG169: 0 | AI169: 0.4 | AJ169: 0 | AL169: 0.53 | AM169: 0 | AN169: 0 | AP169: 0 | AR169: 0 | AS169: =AR169 -> 0 | AT169: 0 | AV169: 12 | AX169: =IF(B169="R410A",0.39,IF(B169="R407C",0.27,IF(B169="R22",0.21,"NG"))) -> 0.21 | AY169: =IF(B169="R410A",0.42,IF(B169="R407C",0.46,IF(B169="R22",0.28,"NG"))) -> 0.28 | AZ169: =IF(B169="R410A",0.42,IF(B169="R407C",0.49,IF(B169="R22",0.5,"NG"))) -> 0.5 | BC169: 組合せ専用機
B170: R407C | C170: 未分類 | F170: 224 | G170: FDCP | H170: FDCP224HKX2D-K | N170: その他 | O170: 12 | T170: 0.03 | U170: 0 | W170: 0.06 | X170: 0 | Z170: 0.12 | AA170: 0 | AC170: 0.2 | AD170: 0 | AF170: 0.28 | AG170: 0 | AI170: 0.4 | AJ170: 0 | AL170: 0.53 | AM170: 0 | AN170: 0 | AP170: 0 | AR170: 0 | AS170: 0 | AT170: 0 | AV170: 12 | AX170: 0.27 | AY170: 0.46 | AZ170: 0.49 | BC170: 組合せ専用機
B171: R407C | C171: 未分類 | F171: 280 | G171: FDCP | H171: FDCP280HKX2D-K | N171: その他 | O171: 12 | T171: 0.03 | U171: 0 | W171: 0.06 | X171: 0 | Z171: 0.12 | AA171: 0 | AC171: 0.2 | AD171: 0 | AF171: 0.28 | AG171: 0 | AI171: 0.4 | AJ171: 0 | AL171: 0.53 | AM171: 0 | AN171: 0 | AP171: 0 | AR171: 0 | AS171: 0 | AT171: 0 | AV171: 12 | AX171: 0.27 | AY171: 0.46 | AZ171: 0.49 | BC171: 組合せ専用機
B172: R407C | C172: 未分類 | F172: 224 | G172: FDCSP | H172: FDCSP224HKX2D-K | N172: その他 | O172: 12 | T172: 0.03 | U172: 0 | W172: 0.06 | X172: 0 | Z172: 0.12 | AA172: 0 | AC172: 0.2 | AD172: 0 | AF172: 0.28 | AG172: 0 | AI172: 0.4 | AJ172: 0 | AL172: 0.53 | AM172: 0 | AN172: 0 | AP172: 0 | AR172: 0 | AS172: =AR172 -> 0 | AT172: 0 | AV172: 12 | AX172: =IF(B172="R410A",0.39,IF(B172="R407C",0.27,IF(B172="R22",0.21,"NG"))) -> 0.27 | AY172: =IF(B172="R410A",0.42,IF(B172="R407C",0.46,IF(B172="R22",0.28,"NG"))) -> 0.46 | AZ172: =IF(B172="R410A",0.42,IF(B172="R407C",0.49,IF(B172="R22",0.5,"NG"))) -> 0.49 | BC172: 組合せ専用機
B173: R407C | C173: 未分類 | F173: 280 | G173: FDCSP | H173: FDCSP280HKX2D-K | N173: その他 | O173: 12 | T173: 0.03 | U173: 0 | W173: 0.06 | X173: 0 | Z173: 0.12 | AA173: 0 | AC173: 0.2 | AD173: 0 | AF173: 0.28 | AG173: 0 | AI173: 0.4 | AJ173: 0 | AL173: 0.53 | AM173: 0 | AN173: 0 | AP173: 0 | AR173: 0 | AS173: =AR173 -> 0 | AT173: 0 | AV173: 12 | AX173: =IF(B173="R410A",0.39,IF(B173="R407C",0.27,IF(B173="R22",0.21,"NG"))) -> 0.27 | AY173: =IF(B173="R410A",0.42,IF(B173="R407C",0.46,IF(B173="R22",0.28,"NG"))) -> 0.46 | AZ173: =IF(B173="R410A",0.42,IF(B173="R407C",0.49,IF(B173="R22",0.5,"NG"))) -> 0.49 | BC173: 組合せ専用機
B174: R22 | C174: 未分類 | F174: 224 | G174: FDCSJ | H174: FDCSJ224HKX2D | N174: その他 | O174: 12 | T174: 0.03 | U174: 0 | W174: 0.06 | X174: 0 | Z174: 0.12 | AA174: 0 | AC174: *** | AD174: 0 | AF174: *** | AG174: 0 | AI174: *** | AJ174: 0 | AL174: *** | AM174: 0 | AN174: 0 | AP174: 0 | AR174: 0 | AS174: 0 | AT174: 0 | AV174: 12 | AX174: 0.21 | AY174: 0.28 | AZ174: 0.5
B175: R22 | C175: 未分類 | F175: 280 | G175: FDCSJ | H175: FDCSJ280HKX2D | N175: その他 | O175: 12 | T175: 0.03 | U175: 0 | W175: 0.06 | X175: 0 | Z175: 0.12 | AA175: 0 | AC175: *** | AD175: 0 | AF175: *** | AG175: 0 | AI175: *** | AJ175: 0 | AL175: *** | AM175: 0 | AN175: 0 | AP175: 0 | AR175: 0 | AS175: =AR175 -> 0 | AT175: 0 | AV175: 12 | AX175: =IF(B175="R410A",0.39,IF(B175="R407C",0.27,IF(B175="R22",0.21,"NG"))) -> 0.21 | AY175: =IF(B175="R410A",0.42,IF(B175="R407C",0.46,IF(B175="R22",0.28,"NG"))) -> 0.28 | AZ175: =IF(B175="R410A",0.42,IF(B175="R407C",0.49,IF(B175="R22",0.5,"NG"))) -> 0.5
B176: R22 | C176: 未分類 | F176: 355 | G176: FDCSJ | H176: FDCSJ355HKX2D | N176: その他 | O176: 16.35 | T176: 0.03 | U176: 0 | W176: 0.06 | X176: 0 | Z176: 0.12 | AA176: 0 | AC176: 0.2 | AD176: 0 | AF176: *** | AG176: 0 | AI176: *** | AJ176: 0 | AL176: *** | AM176: 0 | AN176: 0 | AP176: 0 | AR176: 0 | AS176: 0 | AT176: 0 | AV176: 16.35 | AX176: 0.21 | AY176: 0.28 | AZ176: 0.5
B177: R22 | C177: 未分類 | F177: 450 | G177: FDCSJ | H177: FDCSJ450HKX2D | N177: その他 | O177: 20 | T177: 0.03 | U177: 0 | W177: 0.06 | X177: 0 | Z177: 0.12 | AA177: 0 | AC177: 0.2 | AD177: 0 | AF177: *** | AG177: 0 | AI177: *** | AJ177: 0 | AL177: *** | AM177: 0 | AN177: 0 | AP177: 0 | AR177: 0 | AS177: 0 | AT177: 0 | AV177: 20 | AX177: 0.21 | AY177: 0.28 | AZ177: 0.5
B178: R407C | C178: 未分類 | F178: 355 | G178: FDCSP | H178: FDCSP355HKX2D | N178: その他 | O178: 16.35 | T178: 0.03 | U178: 0 | W178: 0.06 | X178: 0 | Z178: 0.12 | AA178: 0 | AC178: 0.2 | AD178: 0 | AF178: *** | AG178: 0 | AI178: *** | AJ178: 0 | AL178: *** | AM178: 0 | AN178: 0 | AP178: 0 | AR178: 0 | AS178: 0 | AT178: 0 | AV178: 16.35 | AX178: 0.27 | AY178: 0.46 | AZ178: 0.49
B179: R407C | C179: 未分類 | F179: 450 | G179: FDCSP | H179: FDCSP450HKX2D | N179: その他 | O179: 20 | T179: 0.03 | U179: 0 | W179: 0.06 | X179: 0 | Z179: 0.12 | AA179: 0 | AC179: 0.2 | AD179: 0 | AF179: *** | AG179: 0 | AI179: *** | AJ179: 0 | AL179: *** | AM179: 0 | AN179: 0 | AP179: 0 | AR179: 0 | AS179: 0 | AT179: 0 | AV179: 20 | AX179: 0.27 | AY179: 0.46 | AZ179: 0.49
B180: R407C | C180: 未分類 | F180: 224 | G180: FDCP | H180: FDCP224HKX2D | N180: その他 | O180: 12 | T180: 0.03 | U180: 0 | W180: 0.06 | X180: 0 | Z180: 0.12 | AA180: 0 | AC180: *** | AD180: 0 | AF180: *** | AG180: 0 | AI180: *** | AJ180: 0 | AL180: *** | AM180: 0 | AN180: 0 | AP180: 0 | AR180: 0 | AS180: 0 | AT180: 0 | AV180: 12 | AX180: 0.27 | AY180: 0.46 | AZ180: 0.49
B181: R407C | C181: 未分類 | F181: 280 | G181: FDCP | H181: FDCP280HKX2D | N181: その他 | O181: 12 | T181: 0.03 | U181: 0 | W181: 0.06 | X181: 0 | Z181: 0.12 | AA181: 0 | AC181: *** | AD181: 0 | AF181: *** | AG181: 0 | AI181: *** | AJ181: 0 | AL181: *** | AM181: 0 | AN181: 0 | AP181: 0 | AR181: 0 | AS181: 0 | AT181: 0 | AV181: 12 | AX181: 0.27 | AY181: 0.46 | AZ181: 0.49
B182: R407C | C182: 未分類 | F182: 224 | G182: FDCSP | H182: FDCSP224HKX2D | N182: その他 | O182: 12 | T182: 0.03 | U182: 0 | W182: 0.06 | X182: 0 | Z182: 0.12 | AA182: 0 | AC182: *** | AD182: 0 | AF182: *** | AG182: 0 | AI182: *** | AJ182: 0 | AL182: *** | AM182: 0 | AN182: 0 | AP182: 0 | AR182: 0 | AS182: 0 | AT182: 0 | AV182: 12 | AX182: 0.27 | AY182: 0.46 | AZ182: 0.49
B183: R407C | C183: 未分類 | F183: 280 | G183: FDCSP | H183: FDCSP280HKX2D | N183: その他 | O183: 12 | T183: 0.03 | U183: 0 | W183: 0.06 | X183: 0 | Z183: 0.12 | AA183: 0 | AC183: *** | AD183: 0 | AF183: *** | AG183: 0 | AI183: *** | AJ183: 0 | AL183: *** | AM183: 0 | AN183: 0 | AP183: 0 | AR183: 0 | AS183: =AR183 -> 0 | AT183: 0 | AV183: 12 | AX183: =IF(B183="R410A",0.39,IF(B183="R407C",0.27,IF(B183="R22",0.21,"NG"))) -> 0.27 | AY183: =IF(B183="R410A",0.42,IF(B183="R407C",0.46,IF(B183="R22",0.28,"NG"))) -> 0.46 | AZ183: =IF(B183="R410A",0.42,IF(B183="R407C",0.49,IF(B183="R22",0.5,"NG"))) -> 0.49
B184: R22 | C184: 未分類 | F184: 140 | G184: FDCJ | H184: FDCJ140HKX2D | N184: その他 | O184: 9 | T184: 0.03 | U184: 0 | W184: 0.06 | X184: 0 | Z184: 0.12 | AA184: 0 | AC184: *** | AD184: 0 | AF184: *** | AG184: 0 | AI184: *** | AJ184: 0 | AL184: *** | AM184: 0 | AN184: 0 | AP184: 0 | AR184: 0 | AS184: 0 | AT184: 0 | AV184: 9 | AX184: 0.21 | AY184: 0.28 | AZ184: 0.5
B185: R22 | C185: 未分類 | F185: 160 | G185: FDCJ | H185: FDCJ160HKX2D | N185: その他 | O185: 9 | T185: 0.03 | U185: 0 | W185: 0.06 | X185: 0 | Z185: 0.12 | AA185: 0 | AC185: *** | AD185: 0 | AF185: *** | AG185: 0 | AI185: *** | AJ185: 0 | AL185: *** | AM185: 0 | AN185: 0 | AP185: 0 | AR185: 0 | AS185: 0 | AT185: 0 | AV185: 9 | AX185: 0.21 | AY185: 0.28 | AZ185: 0.5
B186: R22 | C186: 未分類 | F186: 140 | G186: FDCSJ | H186: FDCSJ140HKX2D | N186: その他 | O186: 9 | T186: 0.03 | U186: 0 | W186: 0.06 | X186: 0 | Z186: 0.12 | AA186: 0 | AC186: *** | AD186: 0 | AF186: *** | AG186: 0 | AI186: *** | AJ186: 0 | AL186: *** | AM186: 0 | AN186: 0 | AP186: 0 | AR186: 0 | AS186: =AR186 -> 0 | AT186: 0 | AV186: 9 | AX186: =IF(B186="R410A",0.39,IF(B186="R407C",0.27,IF(B186="R22",0.21,"NG"))) -> 0.21 | AY186: =IF(B186="R410A",0.42,IF(B186="R407C",0.46,IF(B186="R22",0.28,"NG"))) -> 0.28 | AZ186: =IF(B186="R410A",0.42,IF(B186="R407C",0.49,IF(B186="R22",0.5,"NG"))) -> 0.5
B187: R22 | C187: 未分類 | F187: 160 | G187: FDCSJ | H187: FDCSJ160HKX2D | N187: その他 | O187: 9 | T187: 0.03 | U187: 0 | W187: 0.06 | X187: 0 | Z187: 0.12 | AA187: 0 | AC187: *** | AD187: 0 | AF187: *** | AG187: 0 | AI187: *** | AJ187: 0 | AL187: *** | AM187: 0 | AN187: 0 | AP187: 0 | AR187: 0 | AS187: =AR187 -> 0 | AT187: 0 | AV187: 9 | AX187: =IF(B187="R410A",0.39,IF(B187="R407C",0.27,IF(B187="R22",0.21,"NG"))) -> 0.21 | AY187: =IF(B187="R410A",0.42,IF(B187="R407C",0.46,IF(B187="R22",0.28,"NG"))) -> 0.28 | AZ187: =IF(B187="R410A",0.42,IF(B187="R407C",0.49,IF(B187="R22",0.5,"NG"))) -> 0.5
B188: R407C | C188: 未分類 | F188: 140 | G188: FDCP | H188: FDCP140HKX2D | N188: その他 | O188: 9 | T188: 0.03 | U188: 0 | W188: 0.06 | X188: 0 | Z188: 0.12 | AA188: 0 | AC188: *** | AD188: 0 | AF188: *** | AG188: 0 | AI188: *** | AJ188: 0 | AL188: *** | AM188: 0 | AN188: 0 | AP188: 0 | AR188: 0 | AS188: 0 | AT188: 0 | AV188: 9 | AX188: 0.27 | AY188: 0.46 | AZ188: 0.49
B189: R407C | C189: 未分類 | F189: 160 | G189: FDCP | H189: FDCP160HKX2D | N189: その他 | O189: 9 | T189: 0.03 | U189: 0 | W189: 0.06 | X189: 0 | Z189: 0.12 | AA189: 0 | AC189: *** | AD189: 0 | AF189: *** | AG189: 0 | AI189: *** | AJ189: 0 | AL189: *** | AM189: 0 | AN189: 0 | AP189: 0 | AR189: 0 | AS189: 0 | AT189: 0 | AV189: 9 | AX189: 0.27 | AY189: 0.46 | AZ189: 0.49
B190: R407C | C190: 未分類 | F190: 140 | G190: FDCSP | H190: FDCSP140HKX2D | N190: その他 | O190: 9 | T190: 0.03 | U190: 0 | W190: 0.06 | X190: 0 | Z190: 0.12 | AA190: 0 | AC190: *** | AD190: 0 | AF190: *** | AG190: 0 | AI190: *** | AJ190: 0 | AL190: *** | AM190: 0 | AN190: 0 | AP190: 0 | AR190: 0 | AS190: 0 | AT190: 0 | AV190: 9 | AX190: 0.27 | AY190: 0.46 | AZ190: 0.49
B191: R407C | C191: 未分類 | F191: 160 | G191: FDCSP | H191: FDCSP160HKX2D | N191: その他 | O191: 9 | T191: 0.03 | U191: 0 | W191: 0.06 | X191: 0 | Z191: 0.12 | AA191: 0 | AC191: *** | AD191: 0 | AF191: *** | AG191: 0 | AI191: *** | AJ191: 0 | AL191: *** | AM191: 0 | AN191: 0 | AP191: 0 | AR191: 0 | AS191: 0 | AT191: 0 | AV191: 9 | AX191: 0.27 | AY191: 0.46 | AZ191: 0.49
B192: R407C | C192: 未分類 | F192: 224 | G192: FDCP | H192: FDCP224HKXRA | N192: その他 | O192: 11 | T192: 0.03 | U192: 0 | W192: 0.06 | X192: 0 | Z192: 0.12 | AA192: 0 | AC192: *** | AD192: 0 | AF192: *** | AG192: 0 | AI192: *** | AJ192: 0 | AL192: *** | AM192: 0 | AN192: 0 | AP192: 0 | AR192: 0 | AS192: 0 | AT192: 0 | AV192: 11 | AX192: 0.27 | AY192: 0.46 | AZ192: 0.49
B193: R407C | C193: 未分類 | F193: 280 | G193: FDCP | H193: FDCP280HKXRA | N193: その他 | O193: 11 | T193: 0.03 | U193: 0 | W193: 0.06 | X193: 0 | Z193: 0.12 | AA193: 0 | AC193: *** | AD193: 0 | AF193: *** | AG193: 0 | AI193: *** | AJ193: 0 | AL193: *** | AM193: 0 | AN193: 0 | AP193: 0 | AR193: 0 | AS193: 0 | AT193: 0 | AV193: 11 | AX193: 0.27 | AY193: 0.46 | AZ193: 0.49
B194: R407C | C194: 未分類 | F194: 560 | G194: FDCP | H194: FDCP560HKXRA | N194: その他 | O194: 29 | T194: 0.03 | U194: 0 | W194: 0.06 | X194: 0 | Z194: 0.12 | AA194: 0 | AC194: 0.2 | AD194: 0 | AF194: 0.28 | AG194: 0 | AI194: *** | AJ194: 0 | AL194: *** | AM194: 0 | AN194: 0 | AP194: 0 | AR194: 0 | AS194: 0 | AT194: 0 | AV194: 29 | AX194: 0.27 | AY194: 0.46 | AZ194: 0.49
B195: R407C | C195: 未分類 | F195: 560 | G195: FDCP | H195: FDCP560HKXRA | I195: A | N195: その他 | O195: 29 | T195: 0.03 | U195: 0 | W195: 0.06 | X195: 0 | Z195: 0.12 | AA195: 0 | AC195: 0.2 | AD195: 0 | AF195: 0.28 | AG195: 0 | AI195: *** | AJ195: 0 | AL195: *** | AM195: 0 | AN195: 0 | AP195: 0 | AR195: 0 | AS195: 0 | AT195: 0 | AV195: 29 | AX195: 0.27 | AY195: 0.46 | AZ195: 0.49
B196: R407C | C196: 未分類 | F196: 224 | G196: FDCSP | H196: FDCSP224HKXRA | N196: その他 | O196: 11 | T196: 0.03 | U196: 0 | W196: 0.06 | X196: 0 | Z196: 0.12 | AA196: 0 | AC196: *** | AD196: 0 | AF196: *** | AG196: 0 | AI196: *** | AJ196: 0 | AL196: *** | AM196: 0 | AN196: 0 | AP196: 0 | AR196: 0 | AS196: 0 | AT196: 0 | AV196: 11 | AX196: 0.27 | AY196: 0.46 | AZ196: 0.49
B197: R407C | C197: 未分類 | F197: 280 | G197: FDCSP | H197: FDCSP280HKXRA | N197: その他 | O197: 11 | T197: 0.03 | U197: 0 | W197: 0.06 | X197: 0 | Z197: 0.12 | AA197: 0 | AC197: *** | AD197: 0 | AF197: *** | AG197: 0 | AI197: *** | AJ197: 0 | AL197: *** | AM197: 0 | AN197: 0 | AP197: 0 | AR197: 0 | AS197: 0 | AT197: 0 | AV197: 11 | AX197: 0.27 | AY197: 0.46 | AZ197: 0.49
B198: R407C | C198: 未分類 | F198: 560 | G198: FDCSP | H198: FDCSP560HKXRA | N198: その他 | O198: 29 | T198: 0.03 | U198: 0 | W198: 0.06 | X198: 0 | Z198: 0.12 | AA198: 0 | AC198: 0.2 | AD198: 0 | AF198: 0.28 | AG198: 0 | AI198: *** | AJ198: 0 | AL198: *** | AM198: 0 | AN198: 0 | AP198: 0 | AR198: 0 | AS198: 0 | AT198: 0 | AV198: 29 | AX198: 0.27 | AY198: 0.46 | AZ198: 0.49
B199: R22 | C199: 未分類 | F199: 355 | G199: FDCJ | H199: FDCJ355HKXIS1 | J199: ISUJ450HS1 | K199: FDCJ355HKXIS1 | N199: その他 | O199: 20 | R199: =IF(Q199="","",IF(Q199="90m未満",VLOOKUP(C199&D199&","&F199,主管サイズルックアップ用,5,FALSE),VLOOKUP(C199&D199&","&F199,主管サイズルックアップ用,6,FALSE))) ->  | T199: 0.03 | U199: =IF($R199="***","実長90m超使用不可",IF($R199<6.35,"-主管サイズを超過-",IF(T199="***","0",S199*T199))) -> 0 | W199: 0.06 | X199: =IF($R199="***","実長90m超使用不可",IF($R199<9.52,"-主管サイズを超過-",IF(W199="***","0",V199*W199))) -> 0 | Z199: 0.12 | AA199: =IF($R199="***","実長90m超使用不可",IF($R199<12.7,"-主管サイズを超過-",IF(Z199="***","0",Y199*Z199))) -> 0 | AC199: 0.2 | AD199: =IF($R199="***","実長90m超使用不可",IF($R199<15.88,"-主管サイズを超過-",IF(AC199="***","0",AB199*AC199))) -> 0 | AF199: 0.28 | AG199: =IF($R199="***","実長90m超使用不可",IF($R199<19.05,"-主管サイズを超過-",IF(AF199="***","0",AE199*AF199))) -> 0 | AI199: *** | AJ199: =IF($R199="***","実長90m超使用不可",IF($R199<22.22,"-主管サイズを超過-",IF(AI199="***","0",AH199*AI199))) -> 0 | AL199: *** | AM199: =IF($R199="***","実長90m超使用不可",IF($R199<25.4,"-主管サイズを超過-",IF(AL199="***","0",AK199*AL199))) -> 0 | AN199: =IF(OR(U199="実長90m超使用不可",U199="-主管サイズを超過-"),0,U199)+IF(OR(X199="実長90m超使用不可",X199="-主管サイズを超過-"),0,X199)+IF(OR(AA199="実長90m超使用不可",AA199="-主管サイズを超過-"),0,AA199)+IF(OR(AD199="実長90m超使用不可",AD199="-主管サイズを超過-"),0,AD199)+IF(OR(AG199="実長90m超使用不可",AG199="-主管サイズを超過-"),0,AG199)+IF(OR(AJ199="実長90m超使用不可",AJ199="-主管サイズを超過-"),0,AJ199)+IF(OR(AM199="実長90m超使用不可",AM199="-主管サイズを超過-"),0,AM199) -> 0 | AP199: 0 | AR199: 26 | AS199: =AR199 -> 26 | AT199: =IF(AP199+AS199<0,0,AP199+AS199) -> 26 | AU199: =VLOOKUP(C199&D199&","&F199,封入上限ルックアップ用,5,FALSE) ->  | AV199: =O199+AT199 -> 46 | AW199: =IF(ISERROR(AV199/P199),"",AV199/P199) ->  | AX199: =IF(B199="R410A",0.39,IF(B199="R407C",0.27,IF(B199="R22",0.21,"NG"))) -> 0.21 | AY199: =IF(B199="R410A",0.42,IF(B199="R407C",0.46,IF(B199="R22",0.28,"NG"))) -> 0.28 | AZ199: =IF(B199="R410A",0.42,IF(B199="R407C",0.49,IF(B199="R22",0.5,"NG"))) -> 0.5 | BA199: =IF(AW199="","",IF(OR(AW199<=AX199,AND(N199="その他",AW199<=AY199)),"OK",IF(OR(AND(N199="最下層",AW199<=AY199),AND(N199="その他",AW199<=AZ199)),"対策が１つ必要です",IF(OR(AND(N199="最下層",AW199<=AZ199),AND(N199="その他",AW199>AZ199)),"対策が２つ必要です","システムの見直しが必要です")))) -> 
B200: R22 | C200: 未分類 | F200: 450 | G200: FDCJ | H200: FDCJ450HKXIS1 | J200: ISUJ560HS1 | K200: FDCJ450HKXIS1 | N200: その他 | O200: 20 | T200: 0.03 | U200: 0 | W200: 0.06 | X200: 0 | Z200: 0.12 | AA200: 0 | AC200: 0.2 | AD200: 0 | AF200: 0.28 | AG200: 0 | AI200: *** | AJ200: 0 | AL200: *** | AM200: 0 | AN200: 0 | AP200: =AN200*AO200 -> 0 | AR200: 26 | AS200: =AR200 -> 26 | AT200: 26 | AV200: 46 | AX200: =IF(B200="R410A",0.39,IF(B200="R407C",0.27,IF(B200="R22",0.21,"NG"))) -> 0.21 | AY200: =IF(B200="R410A",0.42,IF(B200="R407C",0.46,IF(B200="R22",0.28,"NG"))) -> 0.28 | AZ200: 0.5
B201: R22 | C201: 未分類 | F201: 280 | G201: FDCJ | H201: FDCJ280HKXIS1A | J201: ISUJ355HS1 | K201: FDCJ280HKXIS1A | N201: その他 | O201: 16.35 | T201: 0.03 | U201: 0 | W201: 0.06 | X201: 0 | Z201: 0.12 | AA201: 0 | AC201: 0.2 | AD201: 0 | AF201: 0.28 | AG201: 0 | AI201: *** | AJ201: 0 | AL201: *** | AM201: 0 | AN201: 0 | AP201: 0 | AR201: 17 | AS201: =AR201 -> 17 | AT201: 17 | AV201: 33.35 | AX201: =IF(B201="R410A",0.39,IF(B201="R407C",0.27,IF(B201="R22",0.21,"NG"))) -> 0.21 | AY201: =IF(B201="R410A",0.42,IF(B201="R407C",0.46,IF(B201="R22",0.28,"NG"))) -> 0.28 | AZ201: 0.5
... 688 more rows

Sheet MHI(簡易版) (hidden)
X1: C | Y1: D | Z1: E | AA1: 限界濃度 | AD1: 判定 | AE1: 条件(備考)
H2: B | I2: A | L2: φ6.4 | M2: φ9.5 | N2: φ12.7 | O2: φ15.9 | P2: φ19.1 | Q2: φ22.2 | R2: φ25.4 | X2: 現地 | Y2: システム | Z2: D/A | AA2: RCL | AB2: QLMV | AC2: ODL
A3: 冷媒種 | B3: 機種名 | C3: 仕区 | D3: 組合せ機種 | H3: 出荷時 充てん量 | I3: 室内容積（ｍ３） | J3: 配管径 | K3: 長さ（ｍ） | L3: 係数 | M3: 係数 | N3: 係数 | O3: 係数 | P3: 係数 | Q3: 係数 | R3: 係数 | S3: 重量① | T3: 室内機 台数 | U3: 室内機設置階 （地下の [最下層] or [その他] で選択 | V3: 係数 | W3: 重量② | X3: ①+② | Y3: 充てん量 (B+C) | Z3: 冷媒濃度
A4: ◆１：選択 | B4: ◆１：選択 | I4: ◆２：Input | J4: ◆３：選択 | K4: ◆４：Input | T4: ◆５：Input | U4: ◆６：選択
A6: R22 | B6: FDCJ280HKXI2 | D6: ISU13KX2 | E6: FDCJ280HKXI2 | H6: 11 | L6: 0.03 | M6: 0.06 | N6: 0.12 | O6: *** | P6: *** | Q6: *** | R6: *** | S6: =IF(J6="φ6.4",K6*L6,IF(J6="φ9.5",K6*M6,IF(J6="φ12.7",K6*N6,IF(J6="φ15.9",K6*O6,IF(J6="φ19.1",K6*P6,IF(J6="φ22.2",K6*Q6,IF(J6="φ25.4",K6*R6,0))))))) -> 0 | U6: その他 | V6: 17.4 | W6: =V6 -> 17.4 | X6: =IF(S6+W6<0,0,S6+W6) -> 17.4 | Y6: =H6+X6 -> 28.4 | Z6: =Y6/I6 ->  | AA6: =IF(A6="R410A",0.39,IF(A6="R407C",0.27,IF(A6="R22",0.21,"NG"))) -> 0.21 | AB6: =IF(A6="R410A",0.42,IF(A6="R407C",0.46,IF(A6="R22",0.28,"NG"))) -> 0.28 | AC6: =IF(A6="R410A",0.42,IF(A6="R407C",0.49,IF(A6="R22",0.5,"NG"))) -> 0.5 | AD6: =IF(OR(Z6<=AA6,AND(U6="その他",Z6<=AB6)),"OK",IF(OR(AND(U6="最下層",Z6<=AB6),AND(U6="その他",Z6<=AC6)),"対策が１つ必要です",IF(OR(AND(U6="最下層",Z6<=AC6),AND(U6="その他",Z6>AC6)),"対策が２つ必要です","システムの見直しが必要です"))) -> 
A7: R22 | B7: FDCJ355HKXI2 | D7: ISU16KX2 | E7: FDCJ355HKXI2 | H7: 20 | L7: 0.03 | M7: 0.06 | N7: 0.12 | O7: 0.2 | P7: 0.28 | Q7: *** | R7: *** | S7: 0 | U7: その他 | V7: =IF(T7<=8,12,IF(T7<=13,12+(ROUNDDOWN(T7,0)-8)*0.5,"台数ｵｰﾊﾞ")) -> 12 | W7: 12 | X7: 12 | Y7: 32 | AA7: 0.21 | AB7: 0.28 | AC7: 0.5
A8: R22 | B8: FDCSJ280HKXI2 | D8: ISU13KX2 | E8: FDCSJ280HKXI2 | H8: 11 | L8: 0.03 | M8: 0.06 | N8: 0.12 | O8: *** | P8: *** | Q8: *** | R8: *** | S8: 0 | U8: その他 | V8: 17.4 | W8: 17.4 | X8: 17.4 | Y8: 28.4 | AA8: 0.21 | AB8: 0.28 | AC8: 0.5
A9: R22 | B9: FDCSJ355HKXI2 | D9: ISU16KX2 | E9: FDCSJ355HKXI2 | H9: 20 | L9: 0.03 | M9: 0.06 | N9: 0.12 | O9: 0.2 | P9: 0.28 | Q9: *** | R9: *** | S9: 0 | U9: その他 | V9: =IF(T9<=8,12,IF(T9<=13,12+(ROUNDDOWN(T9,0)-8)*0.5,"台数ｵｰﾊﾞ")) -> 12 | W9: 12 | X9: 12 | Y9: 32 | AA9: 0.21 | AB9: 0.28 | AC9: 0.5
A10: R22 | B10: FDCJ140HKX2A | H10: 9 | L10: 0.03 | M10: 0.06 | N10: 0.12 | O10: *** | P10: *** | Q10: *** | R10: *** | S10: 0 | U10: その他 | V10: 0 | W10: 0 | X10: 0 | Y10: 9 | AA10: 0.21 | AB10: 0.28 | AC10: 0.5
A11: R22 | B11: FDCJ160HKX2A | H11: 9 | L11: 0.03 | M11: 0.06 | N11: 0.12 | O11: *** | P11: *** | Q11: *** | R11: *** | S11: 0 | U11: その他 | V11: 0 | W11: 0 | X11: 0 | Y11: 9 | AA11: 0.21 | AB11: 0.28 | AC11: 0.5
A12: R22 | B12: FDCJ224HKX2A | H12: 12 | L12: 0.03 | M12: 0.06 | N12: 0.12 | O12: *** | P12: *** | Q12: *** | R12: *** | S12: 0 | U12: その他 | V12: 0 | W12: 0 | X12: 0 | Y12: 12 | AA12: 0.21 | AB12: 0.28 | AC12: 0.5
A13: R22 | B13: FDCJ280HKX2A | H13: 12 | L13: 0.03 | M13: 0.06 | N13: 0.12 | O13: *** | P13: *** | Q13: *** | R13: *** | S13: 0 | U13: その他 | V13: 0 | W13: 0 | X13: 0 | Y13: 12 | AA13: 0.21 | AB13: 0.28 | AC13: 0.5
A14: R22 | B14: FDCJ355HKXA | H14: 20 | L14: 0.03 | M14: 0.06 | N14: 0.12 | O14: 0.2 | P14: 0.28 | Q14: *** | R14: *** | S14: 0 | U14: その他 | V14: =IF(T14<=8,0,IF(T14<=13,(ROUNDDOWN(T14,0)-8)*0.5,"台数ｵｰﾊﾞ")) -> 0 | W14: 0 | X14: 0 | Y14: 20 | AA14: 0.21 | AB14: 0.28 | AC14: 0.5
A15: R22 | B15: FDCJ450HKXA | H15: 20 | L15: 0.03 | M15: 0.06 | N15: 0.12 | O15: 0.2 | P15: 0.28 | Q15: *** | R15: *** | S15: 0 | U15: その他 | V15: =IF(T15<=8,0,IF(T15<=16,(ROUNDDOWN(T15,0)-8)*0.5,"台数ｵｰﾊﾞ")) -> 0 | W15: 0 | X15: 0 | Y15: 20 | AA15: 0.21 | AB15: 0.28 | AC15: 0.5
A16: R22 | B16: FDCJ224HKX2A-K | H16: 12 | L16: 0.03 | M16: 0.06 | N16: 0.12 | O16: 0.2 | P16: 0.28 | Q16: 0.4 | R16: *** | S16: 0 | U16: その他 | V16: 0 | W16: 0 | X16: 0 | Y16: 12 | AA16: 0.21 | AB16: 0.28 | AC16: 0.5 | AE16: 組合せ専用機
A17: R22 | B17: FDCJ280HKX2A-K | H17: 12 | L17: 0.03 | M17: 0.06 | N17: 0.12 | O17: 0.2 | P17: 0.28 | Q17: 0.4 | R17: *** | S17: 0 | U17: その他 | V17: 0 | W17: 0 | X17: 0 | Y17: 12 | AA17: 0.21 | AB17: 0.28 | AC17: 0.5 | AE17: 組合せ専用機
A18: R22 | B18: FDCJ224HKX2A-KT | H18: 5 | L18: 0.03 | M18: 0.06 | N18: 0.12 | O18: 0.2 | P18: 0.28 | Q18: 0.4 | R18: *** | S18: =IF(J18="φ6.4",K18*L18,IF(J18="φ9.5",K18*M18,IF(J18="φ12.7",K18*N18,IF(J18="φ15.9",K18*O18,IF(J18="φ19.1",K18*P18,IF(J18="φ22.2",K18*Q18,IF(J18="φ25.4",K18*R18,0))))))) -> 0 | U18: その他 | V18: 0 | W18: 0 | X18: 0 | Y18: 5 | AA18: 0.21 | AB18: 0.28 | AC18: 0.5 | AE18: 組合せ専用機
A19: R22 | B19: FDCJ280HKX2A-KT | H19: 7 | L19: 0.03 | M19: 0.06 | N19: 0.12 | O19: 0.2 | P19: 0.28 | Q19: 0.4 | R19: *** | S19: 0 | U19: その他 | V19: 0 | W19: 0 | X19: 0 | Y19: 7 | AA19: 0.21 | AB19: 0.28 | AC19: 0.5 | AE19: 組合せ専用機
A20: R22 | B20: FDCJ225HKX2A-KT | H20: 5 | L20: 0.03 | M20: 0.06 | N20: 0.12 | O20: 0.2 | P20: 0.28 | Q20: 0.4 | R20: *** | S20: 0 | U20: その他 | V20: 0 | W20: 0 | X20: 0 | Y20: 5 | AA20: 0.21 | AB20: 0.28 | AC20: 0.5 | AE20: 組合せ専用機
A21: R22 | B21: FDCJ281HKX2A-KT | H21: 7 | L21: 0.03 | M21: 0.06 | N21: 0.12 | O21: 0.2 | P21: 0.28 | Q21: 0.4 | R21: *** | S21: 0 | U21: その他 | V21: 0 | W21: 0 | X21: 0 | Y21: 7 | AA21: 0.21 | AB21: 0.28 | AC21: 0.5 | AE21: 組合せ専用機
A22: R22 | B22: FDCJ500HKX2A | D22: FDCJ280HKX2A-K | E22: FDCJ224HKX2A-KT | H22: =12+5 -> 17 | L22: 0.03 | M22: 0.06 | N22: 0.12 | O22: 0.2 | P22: 0.28 | Q22: 0.4 | R22: *** | S22: 0 | U22: その他 | V22: 0 | W22: 0 | X22: 0 | Y22: 17 | AA22: 0.21 | AB22: 0.28 | AC22: 0.5
A23: R22 | B23: FDCJ560HKX2A | D23: FDCJ280HKX2A-K | E23: FDCJ280HKX2A-KT | H23: =12+7 -> 19 | L23: 0.03 | M23: 0.06 | N23: 0.12 | O23: 0.2 | P23: 0.28 | Q23: 0.4 | R23: *** | S23: 0 | U23: その他 | V23: 0 | W23: 0 | X23: 0 | Y23: 19 | AA23: 0.21 | AB23: 0.28 | AC23: 0.5
A24: R22 | B24: FDCJ672HKX2A | D24: FDCJ224HKX2A-K | E24: FDCJ224HKX2A-KT | F24: FDCJ224HKX2A-KT | H24: =12+5+5 -> 22 | L24: 0.03 | M24: 0.06 | N24: 0.12 | O24: 0.2 | P24: 0.28 | Q24: 0.4 | R24: *** | S24: 0 | U24: その他 | V24: 0 | W24: 0 | X24: 0 | Y24: 22 | AA24: 0.21 | AB24: 0.28 | AC24: 0.5
A25: R22 | B25: FDCJ728HKX2A | D25: FDCJ280HKX2A-K | E25: FDCJ224HKX2A-KT | F25: FDCJ224HKX2A-KT | H25: =12+5+5 -> 22 | L25: 0.03 | M25: 0.06 | N25: 0.12 | O25: 0.2 | P25: 0.28 | Q25: 0.4 | R25: *** | S25: 0 | U25: その他 | V25: 0 | W25: 0 | X25: 0 | Y25: 22 | AA25: 0.21 | AB25: 0.28 | AC25: 0.5
A26: R22 | B26: FDCJ784HKX2A | D26: FDCJ280HKX2A-K | E26: FDCJ224HKX2A-KT | F26: FDCJ280HKX2A-KT | H26: =12+5+7 -> 24 | L26: 0.03 | M26: 0.06 | N26: 0.12 | O26: 0.2 | P26: 0.28 | Q26: 0.4 | R26: *** | S26: 0 | U26: その他 | V26: 0 | W26: 0 | X26: 0 | Y26: 24 | AA26: 0.21 | AB26: 0.28 | AC26: 0.5
A27: R22 | B27: FDCJ840HKX2A | D27: FDCJ280HKX2A-K | E27: FDCJ280HKX2A-KT | F27: FDCJ280HKX2A-KT | H27: =12+7+7 -> 26 | L27: 0.03 | M27: 0.06 | N27: 0.12 | O27: 0.2 | P27: 0.28 | Q27: 0.4 | R27: *** | S27: 0 | U27: その他 | V27: 0 | W27: 0 | X27: 0 | Y27: 26 | AA27: 0.21 | AB27: 0.28 | AC27: 0.5
A28: R22 | B28: FDCJ500HKX2AF | D28: FDCJ280HKX2A-K | E28: FDCJ225HKX2A-KT | H28: =12+5 -> 17 | L28: 0.03 | M28: 0.06 | N28: 0.12 | O28: 0.2 | P28: 0.28 | Q28: 0.4 | R28: *** | S28: 0 | U28: その他 | V28: 0 | W28: 0 | X28: 0 | Y28: 17 | AA28: 0.21 | AB28: 0.28 | AC28: 0.5
A29: R22 | B29: FDCJ560HKX2AF | D29: FDCJ280HKX2A-K | E29: FDCJ281HKX2A-KT | H29: =12+7 -> 19 | L29: 0.03 | M29: 0.06 | N29: 0.12 | O29: 0.2 | P29: 0.28 | Q29: 0.4 | R29: *** | S29: 0 | U29: その他 | V29: 0 | W29: =V29 -> 0 | X29: =IF(S29+W29<0,0,S29+W29) -> 0 | Y29: 19 | AA29: 0.21 | AB29: 0.28 | AC29: 0.5
A30: R22 | B30: FDCJ672HKX2AF | D30: FDCJ224HKX2A-K | E30: FDCJ225HKX2A-KT | F30: FDCJ225HKX2A-KT | H30: =12+5+5 -> 22 | L30: 0.03 | M30: 0.06 | N30: 0.12 | O30: 0.2 | P30: 0.28 | Q30: 0.4 | R30: *** | S30: 0 | U30: その他 | V30: 0 | W30: 0 | X30: 0 | Y30: 22 | AA30: 0.21 | AB30: 0.28 | AC30: 0.5
A31: R22 | B31: FDCJ728HKX2AF | D31: FDCJ280HKX2A-K | E31: FDCJ225HKX2A-KT | F31: FDCJ224HKX2A-KT | H31: =12+5+5 -> 22 | L31: 0.03 | M31: 0.06 | N31: 0.12 | O31: 0.2 | P31: 0.28 | Q31: 0.4 | R31: *** | S31: 0 | U31: その他 | V31: 0 | W31: 0 | X31: 0 | Y31: 22 | AA31: 0.21 | AB31: 0.28 | AC31: 0.5
A32: R22 | B32: FDCJ784HKX2AF | D32: FDCJ280HKX2A-K | E32: FDCJ225HKX2A-KT | F32: FDCJ281HKX2A-KT | H32: =12+5+7 -> 24 | L32: 0.03 | M32: 0.06 | N32: 0.12 | O32: 0.2 | P32: 0.28 | Q32: 0.4 | R32: *** | S32: 0 | U32: その他 | V32: 0 | W32: 0 | X32: 0 | Y32: 24 | AA32: 0.21 | AB32: 0.28 | AC32: 0.5
A33: R22 | B33: FDCJ840HKX2AF | D33: FDCJ280HKX2A-K | E33: FDCJ281HKX2A-KT | F33: FDCJ281HKX2A-KT | H33: =12+7+7 -> 26 | L33: 0.03 | M33: 0.06 | N33: 0.12 | O33: 0.2 | P33: 0.28 | Q33: 0.4 | R33: *** | S33: 0 | U33: その他 | V33: 0 | W33: 0 | X33: 0 | Y33: 26 | AA33: 0.21 | AB33: 0.28 | AC33: 0.5
A34: R22 | B34: FDCSJ224HKX2A-K | H34: 12 | L34: 0.03 | M34: 0.06 | N34: 0.12 | O34: 0.2 | P34: 0.28 | Q34: 0.4 | R34: *** | S34: 0 | U34: その他 | V34: 0 | W34: 0 | X34: 0 | Y34: 12 | AA34: 0.21 | AB34: 0.28 | AC34: 0.5 | AE34: 組合せ専用機
A35: R22 | B35: FDCSJ280HKX2A-K | H35: 12 | L35: 0.03 | M35: 0.06 | N35: 0.12 | O35: 0.2 | P35: 0.28 | Q35: 0.4 | R35: *** | S35: 0 | U35: その他 | V35: 0 | W35: 0 | X35: 0 | Y35: 12 | AA35: 0.21 | AB35: 0.28 | AC35: 0.5 | AE35: 組合せ専用機
A36: R22 | B36: FDCSJ224HKX2A-KT | H36: 5 | L36: 0.03 | M36: 0.06 | N36: 0.12 | O36: 0.2 | P36: 0.28 | Q36: 0.4 | R36: *** | S36: 0 | U36: その他 | V36: 0 | W36: 0 | X36: 0 | Y36: 5 | AA36: 0.21 | AB36: 0.28 | AC36: 0.5 | AE36: 組合せ専用機
A37: R22 | B37: FDCSJ280HKX2A-KT | H37: 7 | L37: 0.03 | M37: 0.06 | N37: 0.12 | O37: 0.2 | P37: 0.28 | Q37: 0.4 | R37: *** | S37: 0 | U37: その他 | V37: 0 | W37: 0 | X37: 0 | Y37: 7 | AA37: 0.21 | AB37: 0.28 | AC37: 0.5 | AE37: 組合せ専用機
A38: R22 | B38: FDCSJ225HKX2A-KT | H38: 5 | L38: 0.03 | M38: 0.06 | N38: 0.12 | O38: 0.2 | P38: 0.28 | Q38: 0.4 | R38: *** | S38: 0 | U38: その他 | V38: 0 | W38: 0 | X38: 0 | Y38: 5 | AA38: 0.21 | AB38: 0.28 | AC38: 0.5 | AE38: 組合せ専用機
A39: R22 | B39: FDCSJ281HKX2A-KT | H39: 7 | L39: 0.03 | M39: 0.06 | N39: 0.12 | O39: 0.2 | P39: 0.28 | Q39: 0.4 | R39: *** | S39: 0 | U39: その他 | V39: 0 | W39: 0 | X39: 0 | Y39: 7 | AA39: 0.21 | AB39: 0.28 | AC39: 0.5 | AE39: 組合せ専用機
A40: R22 | B40: FDCSJ500HKX2A | D40: FDCSJ280HKX2A-K | E40: FDCSJ224HKX2A-KT | H40: =12+5 -> 17 | L40: 0.03 | M40: 0.06 | N40: 0.12 | O40: 0.2 | P40: 0.28 | Q40: 0.4 | R40: *** | S40: 0 | U40: その他 | V40: 0 | W40: 0 | X40: 0 | Y40: 17 | AA40: 0.21 | AB40: 0.28 | AC40: 0.5
A41: R22 | B41: FDCSJ560HKX2A | D41: FDCSJ280HKX2A-K | E41: FDCSJ280HKX2A-KT | H41: =12+7 -> 19 | L41: 0.03 | M41: 0.06 | N41: 0.12 | O41: 0.2 | P41: 0.28 | Q41: 0.4 | R41: *** | S41: 0 | U41: その他 | V41: 0 | W41: 0 | X41: 0 | Y41: 19 | AA41: 0.21 | AB41: 0.28 | AC41: 0.5
A42: R22 | B42: FDCSJ672HKX2A | D42: FDCSJ224HKX2A-K | E42: FDCSJ224HKX2A-KT | F42: FDCSJ224HKX2A-KT | H42: =12+5+5 -> 22 | L42: 0.03 | M42: 0.06 | N42: 0.12 | O42: 0.2 | P42: 0.28 | Q42: 0.4 | R42: *** | S42: 0 | U42: その他 | V42: 0 | W42: 0 | X42: 0 | Y42: 22 | AA42: 0.21 | AB42: 0.28 | AC42: 0.5
A43: R22 | B43: FDCSJ728HKX2A | D43: FDCSJ280HKX2A-K | E43: FDCSJ224HKX2A-KT | F43: FDCSJ224HKX2A-KT | H43: =12+5+5 -> 22 | L43: 0.03 | M43: 0.06 | N43: 0.12 | O43: 0.2 | P43: 0.28 | Q43: 0.4 | R43: *** | S43: 0 | U43: その他 | V43: 0 | W43: 0 | X43: 0 | Y43: 22 | AA43: 0.21 | AB43: 0.28 | AC43: 0.5
A44: R22 | B44: FDCSJ784HKX2A | D44: FDCSJ280HKX2A-K | E44: FDCSJ224HKX2A-KT | F44: FDCSJ280HKX2A-KT | H44: =12+5+7 -> 24 | L44: 0.03 | M44: 0.06 | N44: 0.12 | O44: 0.2 | P44: 0.28 | Q44: 0.4 | R44: *** | S44: 0 | U44: その他 | V44: 0 | W44: 0 | X44: 0 | Y44: 24 | AA44: 0.21 | AB44: 0.28 | AC44: 0.5
A45: R22 | B45: FDCSJ840HKX2A | D45: FDCSJ280HKX2A-K | E45: FDCSJ280HKX2A-KT | F45: FDCSJ280HKX2A-KT | H45: =12+7+7 -> 26 | L45: 0.03 | M45: 0.06 | N45: 0.12 | O45: 0.2 | P45: 0.28 | Q45: 0.4 | R45: *** | S45: 0 | U45: その他 | V45: 0 | W45: 0 | X45: 0 | Y45: 26 | AA45: 0.21 | AB45: 0.28 | AC45: 0.5
A46: R22 | B46: FDCSJ500HKX2AF | D46: FDCSJ280HKX2A-K | E46: FDCSJ225HKX2A-KT | H46: =12+5 -> 17 | L46: 0.03 | M46: 0.06 | N46: 0.12 | O46: 0.2 | P46: 0.28 | Q46: 0.4 | R46: *** | S46: 0 | U46: その他 | V46: 0 | W46: 0 | X46: 0 | Y46: 17 | AA46: 0.21 | AB46: 0.28 | AC46: 0.5
A47: R22 | B47: FDCSJ560HKX2AF | D47: FDCSJ280HKX2A-K | E47: FDCSJ281HKX2A-KT | H47: =12+7 -> 19 | L47: 0.03 | M47: 0.06 | N47: 0.12 | O47: 0.2 | P47: 0.28 | Q47: 0.4 | R47: *** | S47: 0 | U47: その他 | V47: 0 | W47: 0 | X47: 0 | Y47: 19 | AA47: 0.21 | AB47: 0.28 | AC47: 0.5
A48: R22 | B48: FDCSJ672HKX2AF | D48: FDCSJ224HKX2A-K | E48: FDCSJ225HKX2A-KT | F48: FDCSJ225HKX2A-KT | H48: =12+5+5 -> 22 | L48: 0.03 | M48: 0.06 | N48: 0.12 | O48: 0.2 | P48: 0.28 | Q48: 0.4 | R48: *** | S48: 0 | U48: その他 | V48: 0 | W48: 0 | X48: 0 | Y48: 22 | AA48: 0.21 | AB48: 0.28 | AC48: 0.5
A49: R22 | B49: FDCSJ728HKX2AF | D49: FDCSJ280HKX2A-K | E49: FDCSJ225HKX2A-KT | F49: FDCSJ224HKX2A-KT | H49: =12+5+5 -> 22 | L49: 0.03 | M49: 0.06 | N49: 0.12 | O49: 0.2 | P49: 0.28 | Q49: 0.4 | R49: *** | S49: 0 | U49: その他 | V49: 0 | W49: 0 | X49: 0 | Y49: 22 | AA49: 0.21 | AB49: 0.28 | AC49: 0.5
A50: R22 | B50: FDCSJ784HKX2AF | D50: FDCSJ280HKX2A-K | E50: FDCSJ225HKX2A-KT | F50: FDCSJ281HKX2A-KT | H50: =12+5+7 -> 24 | L50: 0.03 | M50: 0.06 | N50: 0.12 | O50: 0.2 | P50: 0.28 | Q50: 0.4 | R50: *** | S50: 0 | U50: その他 | V50: 0 | W50: 0 | X50: 0 | Y50: 24 | AA50: 0.21 | AB50: 0.28 | AC50: 0.5
A51: R22 | B51: FDCSJ840HKX2AF | D51: FDCSJ280HKX2A-K | E51: FDCSJ281HKX2A-KT | F51: FDCSJ281HKX2A-KT | H51: =12+7+7 -> 26 | L51: 0.03 | M51: 0.06 | N51: 0.12 | O51: 0.2 | P51: 0.28 | Q51: 0.4 | R51: *** | S51: 0 | U51: その他 | V51: 0 | W51: 0 | X51: 0 | Y51: 26 | AA51: 0.21 | AB51: 0.28 | AC51: 0.5
A52: R22 | B52: FDCJ224HKXRA | H52: 11 | L52: 0.03 | M52: 0.06 | N52: 0.12 | O52: *** | P52: *** | Q52: *** | R52: *** | S52: 0 | U52: その他 | V52: 0 | W52: 0 | X52: 0 | Y52: 11 | AA52: 0.21 | AB52: 0.28 | AC52: 0.5
A53: R22 | B53: FDCJ280HKXRA | H53: 11 | L53: 0.03 | M53: 0.06 | N53: 0.12 | O53: *** | P53: *** | Q53: *** | R53: *** | S53: 0 | U53: その他 | V53: 0 | W53: 0 | X53: 0 | Y53: 11 | AA53: 0.21 | AB53: 0.28 | AC53: 0.5
A54: R22 | B54: FDCJ560HKXRA | H54: 29 | L54: 0.03 | M54: 0.06 | N54: 0.12 | O54: 0.2 | P54: 0.28 | Q54: *** | R54: *** | S54: 0 | U54: その他 | V54: 0 | W54: 0 | X54: 0 | Y54: 29 | AA54: 0.21 | AB54: 0.28 | AC54: 0.5
A55: R22 | B55: FDCSJ224HKXRA | H55: 11 | L55: 0.03 | M55: 0.06 | N55: 0.12 | O55: *** | P55: *** | Q55: *** | R55: *** | S55: 0 | U55: その他 | V55: 0 | W55: 0 | X55: 0 | Y55: 11 | AA55: 0.21 | AB55: 0.28 | AC55: 0.5
A56: R22 | B56: FDCSJ280HKXRA | H56: 11 | L56: 0.03 | M56: 0.06 | N56: 0.12 | O56: *** | P56: *** | Q56: *** | R56: *** | S56: 0 | U56: その他 | V56: 0 | W56: 0 | X56: 0 | Y56: 11 | AA56: 0.21 | AB56: 0.28 | AC56: 0.5
A57: R22 | B57: FDCSJ560HKXRA | H57: 29 | L57: 0.03 | M57: 0.06 | N57: 0.12 | O57: 0.2 | P57: 0.28 | Q57: *** | R57: *** | S57: 0 | U57: その他 | V57: 0 | W57: 0 | X57: 0 | Y57: 29 | AA57: 0.21 | AB57: 0.28 | AC57: 0.5
A58: R22 | B58: FDCJ224HKXRWA | H58: 11 | L58: 0.03 | M58: 0.06 | N58: 0.12 | O58: *** | P58: *** | Q58: *** | R58: *** | S58: 0 | U58: その他 | V58: 0 | W58: 0 | X58: 0 | Y58: 11 | AA58: 0.21 | AB58: 0.28 | AC58: 0.5
A59: R22 | B59: FDCJ280HKXRWA | H59: 11 | L59: 0.03 | M59: 0.06 | N59: 0.12 | O59: *** | P59: *** | Q59: *** | R59: *** | S59: 0 | U59: その他 | V59: 0 | W59: 0 | X59: 0 | Y59: 11 | AA59: 0.21 | AB59: 0.28 | AC59: 0.5
A60: R22 | B60: FDCJ224HMXA | H60: 11 | L60: 0.03 | M60: 0.06 | N60: 0.12 | O60: *** | P60: *** | Q60: *** | R60: *** | S60: 0 | U60: その他 | V60: 0 | W60: 0 | X60: 0 | Y60: 11 | AA60: 0.21 | AB60: 0.28 | AC60: 0.5
A61: R22 | B61: FDCJ280HMXA | H61: 11.4 | L61: 0.03 | M61: 0.06 | N61: 0.12 | O61: *** | P61: *** | Q61: *** | R61: *** | S61: 0 | U61: その他 | V61: 0 | W61: 0 | X61: 0 | Y61: 11.4 | AA61: 0.21 | AB61: 0.28 | AC61: 0.5
A62: R22 | B62: FDCSJ224HMXA | H62: 11 | L62: 0.03 | M62: 0.06 | N62: 0.12 | O62: *** | P62: *** | Q62: *** | R62: *** | S62: 0 | U62: その他 | V62: 0 | W62: 0 | X62: 0 | Y62: 11 | AA62: 0.21 | AB62: 0.28 | AC62: 0.5
A63: R22 | B63: FDCSJ280HMXA | H63: 11.4 | L63: 0.03 | M63: 0.06 | N63: 0.12 | O63: *** | P63: *** | Q63: *** | R63: *** | S63: 0 | U63: その他 | V63: 0 | W63: 0 | X63: 0 | Y63: 11.4 | AA63: 0.21 | AB63: 0.28 | AC63: 0.5
A64: R22 | B64: FDCJ224HMXA-K | H64: 11 | L64: 0.03 | M64: 0.06 | N64: 0.12 | O64: 0.2 | P64: 0.28 | Q64: 0.4 | R64: *** | S64: 0 | U64: その他 | V64: 0 | W64: 0 | X64: 0 | Y64: 11 | AA64: 0.21 | AB64: 0.28 | AC64: 0.5
A65: R22 | B65: FDCJ280HMXA-K | H65: 11.4 | L65: 0.03 | M65: 0.06 | N65: 0.12 | O65: 0.2 | P65: 0.28 | Q65: 0.4 | R65: *** | S65: 0 | U65: その他 | V65: 0 | W65: 0 | X65: 0 | Y65: 11.4 | AA65: 0.21 | AB65: 0.28 | AC65: 0.5
A66: R22 | B66: FDCSJ224HMXA-K | H66: 11 | L66: 0.03 | M66: 0.06 | N66: 0.12 | O66: 0.2 | P66: 0.28 | Q66: 0.4 | R66: *** | S66: 0 | U66: その他 | V66: 0 | W66: 0 | X66: 0 | Y66: 11 | AA66: 0.21 | AB66: 0.28 | AC66: 0.5
A67: R22 | B67: FDCSJ280HMXA-K | H67: 11.4 | L67: 0.03 | M67: 0.06 | N67: 0.12 | O67: 0.2 | P67: 0.28 | Q67: 0.4 | R67: *** | S67: 0 | U67: その他 | V67: 0 | W67: 0 | X67: 0 | Y67: 11.4 | AA67: 0.21 | AB67: 0.28 | AC67: 0.5
A68: R22 | B68: FDCJ450HMXA | D68: FDCJ224HMXA-K | E68: FDCJ224HMXA-K | H68: =11+11 -> 22 | L68: 0.03 | M68: 0.06 | N68: 0.12 | O68: 0.2 | P68: 0.28 | Q68: 0.4 | R68: *** | S68: 0 | U68: その他 | V68: 0 | W68: 0 | X68: 0 | Y68: 22 | AA68: 0.21 | AB68: 0.28 | AC68: 0.5
A69: R22 | B69: FDCJ500HMXA | D69: FDCJ224HMXA-K | E69: FDCJ280HMXA-K | H69: =11+11.4 -> 22.4 | L69: 0.03 | M69: 0.06 | N69: 0.12 | O69: 0.2 | P69: 0.28 | Q69: 0.4 | R69: *** | S69: 0 | U69: その他 | V69: 0 | W69: 0 | X69: 0 | Y69: 22.4 | AA69: 0.21 | AB69: 0.28 | AC69: 0.5
A70: R22 | B70: FDCJ560HMXA | D70: FDCJ280HMXA-K | E70: FDCJ280HMXA-K | H70: =11.4+11.4 -> 22.8 | L70: 0.03 | M70: 0.06 | N70: 0.12 | O70: 0.2 | P70: 0.28 | Q70: 0.4 | R70: *** | S70: 0 | U70: その他 | V70: 0 | W70: =V70 -> 0 | X70: =IF(S70+W70<0,0,S70+W70) -> 0 | Y70: =H70+X70 -> 22.8 | Z70: =Y70/I70 ->  | AA70: =IF(A70="R410A",0.39,IF(A70="R407C",0.27,IF(A70="R22",0.21,"NG"))) -> 0.21 | AB70: =IF(A70="R410A",0.42,IF(A70="R407C",0.46,IF(A70="R22",0.28,"NG"))) -> 0.28 | AC70: =IF(A70="R410A",0.42,IF(A70="R407C",0.49,IF(A70="R22",0.5,"NG"))) -> 0.5 | AD70: =IF(OR(Z70<=AA70,AND(U70="その他",Z70<=AB70)),"OK",IF(OR(AND(U70="最下層",Z70<=AB70),AND(U70="その他",Z70<=AC70)),"対策が１つ必要です",IF(OR(AND(U70="最下層",Z70<=AC70),AND(U70="その他",Z70>AC70)),"対策が２つ必要です","システムの見直しが必要です"))) -> 
A71: R22 | B71: FDCJ672HMXA | D71: FDCJ224HMXA-K | E71: FDCJ224HMXA-K | F71: FDCJ224HMXA-K | H71: =11+11+11 -> 33 | L71: 0.03 | M71: 0.06 | N71: 0.12 | O71: 0.2 | P71: 0.28 | Q71: 0.4 | R71: *** | S71: 0 | U71: その他 | V71: 0 | W71: 0 | X71: 0 | Y71: 33 | AA71: 0.21 | AB71: 0.28 | AC71: 0.5
A72: R22 | B72: FDCJ728HMXA | D72: FDCJ224HMXA-K | E72: FDCJ224HMXA-K | F72: FDCJ280HMXA-K | H72: =11+11+11.4 -> 33.4 | L72: 0.03 | M72: 0.06 | N72: 0.12 | O72: 0.2 | P72: 0.28 | Q72: 0.4 | R72: *** | S72: 0 | U72: その他 | V72: 0 | W72: 0 | X72: 0 | Y72: 33.4 | AA72: 0.21 | AB72: 0.28 | AC72: 0.5
A73: R22 | B73: FDCJ784HMXA | D73: FDCJ224HMXA-K | E73: FDCJ280HMXA-K | F73: FDCJ280HMXA-K | H73: =11+11.4+11.4 -> 33.8 | L73: 0.03 | M73: 0.06 | N73: 0.12 | O73: 0.2 | P73: 0.28 | Q73: 0.4 | R73: *** | S73: 0 | U73: その他 | V73: 0 | W73: 0 | X73: 0 | Y73: 33.8 | AA73: 0.21 | AB73: 0.28 | AC73: 0.5
A74: R22 | B74: FDCJ840HMXA | D74: FDCJ280HMXA-K | E74: FDCJ280HMXA-K | F74: FDCJ280HMXA-K | H74: =11.4+11.4+11.4 -> 34.2 | L74: 0.03 | M74: 0.06 | N74: 0.12 | O74: 0.2 | P74: 0.28 | Q74: 0.4 | R74: *** | S74: 0 | U74: その他 | V74: 0 | W74: 0 | X74: 0 | Y74: 34.2 | AA74: 0.21 | AB74: 0.28 | AC74: 0.5
A75: R22 | B75: FDCSJ450HMXA | D75: FDCSJ224HMXA-K | E75: FDCSJ224HMXA-K | H75: =11+11 -> 22 | L75: 0.03 | M75: 0.06 | N75: 0.12 | O75: 0.2 | P75: 0.28 | Q75: 0.4 | R75: *** | S75: 0 | U75: その他 | V75: 0 | W75: 0 | X75: 0 | Y75: 22 | AA75: 0.21 | AB75: 0.28 | AC75: 0.5
A76: R22 | B76: FDCSJ500HMXA | D76: FDCSJ224HMXA-K | E76: FDCSJ280HMXA-K | H76: =11+11.4 -> 22.4 | L76: 0.03 | M76: 0.06 | N76: 0.12 | O76: 0.2 | P76: 0.28 | Q76: 0.4 | R76: *** | S76: 0 | U76: その他 | V76: 0 | W76: 0 | X76: 0 | Y76: 22.4 | AA76: 0.21 | AB76: 0.28 | AC76: 0.5
A77: R22 | B77: FDCSJ560HMXA | D77: FDCSJ280HMXA-K | E77: FDCSJ280HMXA-K | H77: =11.4+11.4 -> 22.8 | L77: 0.03 | M77: 0.06 | N77: 0.12 | O77: 0.2 | P77: 0.28 | Q77: 0.4 | R77: *** | S77: 0 | U77: その他 | V77: 0 | W77: 0 | X77: 0 | Y77: 22.8 | AA77: 0.21 | AB77: 0.28 | AC77: 0.5
A78: R22 | B78: FDCSJ672HMXA | D78: FDCSJ224HMXA-K | E78: FDCSJ224HMXA-K | F78: FDCSJ224HMXA-K | H78: =11+11+11 -> 33 | L78: 0.03 | M78: 0.06 | N78: 0.12 | O78: 0.2 | P78: 0.28 | Q78: 0.4 | R78: *** | S78: 0 | U78: その他 | V78: 0 | W78: 0 | X78: 0 | Y78: 33 | AA78: 0.21 | AB78: 0.28 | AC78: 0.5
A79: R22 | B79: FDCSJ728HMXA | D79: FDCSJ224HMXA-K | E79: FDCSJ224HMXA-K | F79: FDCSJ280HMXA-K | H79: =11+11+11.4 -> 33.4 | L79: 0.03 | M79: 0.06 | N79: 0.12 | O79: 0.2 | P79: 0.28 | Q79: 0.4 | R79: *** | S79: 0 | U79: その他 | V79: 0 | W79: 0 | X79: 0 | Y79: 33.4 | AA79: 0.21 | AB79: 0.28 | AC79: 0.5
A80: R22 | B80: FDCSJ784HMXA | D80: FDCSJ224HMXA-K | E80: FDCSJ280HMXA-K | F80: FDCSJ280HMXA-K | H80: =11+11.4+11.4 -> 33.8 | L80: 0.03 | M80: 0.06 | N80: 0.12 | O80: 0.2 | P80: 0.28 | Q80: 0.4 | R80: *** | S80: 0 | U80: その他 | V80: 0 | W80: 0 | X80: 0 | Y80: 33.8 | AA80: 0.21 | AB80: 0.28 | AC80: 0.5
A81: R22 | B81: FDCSJ840HMXA | D81: FDCSJ280HMXA-K | E81: FDCSJ280HMXA-K | F81: FDCSJ280HMXA-K | H81: =11.4+11.4+11.4 -> 34.2 | L81: 0.03 | M81: 0.06 | N81: 0.12 | O81: 0.2 | P81: 0.28 | Q81: 0.4 | R81: *** | S81: 0 | U81: その他 | V81: 0 | W81: 0 | X81: 0 | Y81: 34.2 | AA81: 0.21 | AB81: 0.28 | AC81: 0.5
A82: R22 | B82: FDCJ112HSXA | H82: 3.5 | L82: 0.03 | M82: 0.06 | N82: *** | O82: *** | P82: *** | Q82: *** | R82: *** | S82: =IF(J82="φ6.4",K82*L82,IF(J82="φ9.5",K82*M82,IF(J82="φ12.7",K82*N82,IF(J82="φ15.9",K82*O82,IF(J82="φ19.1",K82*P82,IF(J82="φ22.2",K82*Q82,IF(J82="φ25.4",K82*R82,0))))))) -> 0 | U82: その他 | V82: 0 | W82: 0 | X82: 0 | Y82: 3.5 | AA82: 0.21 | AB82: 0.28 | AC82: 0.5
A83: R22 | B83: FDCJ140HSXA | H83: 3.5 | L83: 0.03 | M83: 0.06 | N83: *** | O83: *** | P83: *** | Q83: *** | R83: *** | S83: 0 | U83: その他 | V83: 0 | W83: 0 | X83: 0 | Y83: 3.5 | AA83: 0.21 | AB83: 0.28 | AC83: 0.5
A84: R22 | B84: FDCJ160HSXA | H84: 3.5 | L84: 0.03 | M84: 0.06 | N84: *** | O84: *** | P84: *** | Q84: *** | R84: *** | S84: 0 | U84: その他 | V84: 0 | W84: 0 | X84: 0 | Y84: 3.5 | AA84: 0.21 | AB84: 0.28 | AC84: 0.5
A85: R22 | B85: FDCSJ112HSXA | H85: 3.5 | L85: 0.03 | M85: 0.06 | N85: *** | O85: *** | P85: *** | Q85: *** | R85: *** | S85: 0 | U85: その他 | V85: 0 | W85: 0 | X85: 0 | Y85: 3.5 | AA85: 0.21 | AB85: 0.28 | AC85: 0.5
A86: R22 | B86: FDCSJ140HSXA | H86: 3.5 | L86: 0.03 | M86: 0.06 | N86: *** | O86: *** | P86: *** | Q86: *** | R86: *** | S86: 0 | U86: その他 | V86: 0 | W86: 0 | X86: 0 | Y86: 3.5 | AA86: 0.21 | AB86: 0.28 | AC86: 0.5
A87: R22 | B87: FDCSJ160HSXA | H87: 3.5 | L87: 0.03 | M87: 0.06 | N87: *** | O87: *** | P87: *** | Q87: *** | R87: *** | S87: 0 | U87: その他 | V87: 0 | W87: 0 | X87: 0 | Y87: 3.5 | AA87: 0.21 | AB87: 0.28 | AC87: 0.5
A88: R407C | B88: FDCP140HKX2A | H88: 9 | L88: 0.03 | M88: 0.06 | N88: 0.12 | O88: *** | P88: *** | Q88: *** | R88: *** | S88: 0 | U88: その他 | V88: 0 | W88: 0 | X88: 0 | Y88: 9 | AA88: 0.27 | AB88: 0.46 | AC88: 0.49
A89: R407C | B89: FDCP160HKX2A | H89: 9 | L89: 0.03 | M89: 0.06 | N89: 0.12 | O89: *** | P89: *** | Q89: *** | R89: *** | S89: 0 | U89: その他 | V89: 0 | W89: 0 | X89: 0 | Y89: 9 | AA89: 0.27 | AB89: 0.46 | AC89: 0.49
A90: R407C | B90: FDCP224HKX2A | H90: 12 | L90: 0.03 | M90: 0.06 | N90: 0.12 | O90: *** | P90: *** | Q90: *** | R90: *** | S90: 0 | U90: その他 | V90: 0 | W90: 0 | X90: 0 | Y90: 12 | AA90: 0.27 | AB90: 0.46 | AC90: 0.49
A91: R407C | B91: FDCP280HKX2A | H91: 12 | L91: 0.03 | M91: 0.06 | N91: 0.12 | O91: *** | P91: *** | Q91: *** | R91: *** | S91: 0 | U91: その他 | V91: 0 | W91: 0 | X91: 0 | Y91: 12 | AA91: 0.27 | AB91: 0.46 | AC91: 0.49
A92: R22 | B92: FDCSJ140HKX2A | H92: 9 | L92: 0.03 | M92: 0.06 | N92: 0.12 | O92: *** | P92: *** | Q92: *** | R92: *** | S92: 0 | U92: その他 | V92: 0 | W92: 0 | X92: 0 | Y92: 9 | AA92: 0.21 | AB92: 0.28 | AC92: 0.5
A93: R22 | B93: FDCSJ160HKX2A | H93: 9 | L93: 0.03 | M93: 0.06 | N93: 0.12 | O93: *** | P93: *** | Q93: *** | R93: *** | S93: 0 | U93: その他 | V93: 0 | W93: 0 | X93: 0 | Y93: 9 | AA93: 0.21 | AB93: 0.28 | AC93: 0.5
A94: R22 | B94: FDCSJ224HKX2A | H94: 12 | L94: 0.03 | M94: 0.06 | N94: 0.12 | O94: *** | P94: *** | Q94: *** | R94: *** | S94: 0 | U94: その他 | V94: 0 | W94: 0 | X94: 0 | Y94: 12 | AA94: 0.21 | AB94: 0.28 | AC94: 0.5
A95: R22 | B95: FDCSJ280HKX2A | H95: 12 | L95: 0.03 | M95: 0.06 | N95: 0.12 | O95: *** | P95: *** | Q95: *** | R95: *** | S95: 0 | U95: その他 | V95: 0 | W95: 0 | X95: 0 | Y95: 12 | AA95: 0.21 | AB95: 0.28 | AC95: 0.5
A96: R22 | B96: FDCSJ355HKX2A | H96: 16.35 | L96: 0.03 | M96: 0.06 | N96: 0.12 | O96: 0.2 | P96: *** | Q96: *** | R96: *** | S96: 0 | U96: その他 | V96: 0 | W96: 0 | X96: =IF(S96+W96<0,0,S96+W96) -> 0 | Y96: 16.35 | AA96: =IF(A96="R410A",0.39,IF(A96="R407C",0.27,IF(A96="R22",0.21,"NG"))) -> 0.21 | AB96: =IF(A96="R410A",0.42,IF(A96="R407C",0.46,IF(A96="R22",0.28,"NG"))) -> 0.28 | AC96: 0.5
A97: R22 | B97: FDCSJ450HKX2A | H97: 20 | L97: 0.03 | M97: 0.06 | N97: 0.12 | O97: 0.2 | P97: *** | Q97: *** | R97: *** | S97: 0 | U97: その他 | V97: 0 | W97: 0 | X97: =IF(S97+W97<0,0,S97+W97) -> 0 | Y97: 20 | AA97: =IF(A97="R410A",0.39,IF(A97="R407C",0.27,IF(A97="R22",0.21,"NG"))) -> 0.21 | AB97: =IF(A97="R410A",0.42,IF(A97="R407C",0.46,IF(A97="R22",0.28,"NG"))) -> 0.28 | AC97: 0.5
A98: R22 | B98: FDCSJ355HKXA | H98: 20 | L98: 0.03 | M98: 0.06 | N98: 0.12 | O98: 0.2 | P98: 0.28 | Q98: *** | R98: *** | S98: 0 | U98: その他 | V98: =IF(T98<=8,0,IF(T98<=13,(ROUNDDOWN(T98,0)-8)*0.5,"台数ｵｰﾊﾞ")) -> 0 | W98: 0 | X98: 0 | Y98: 20 | AA98: 0.21 | AB98: 0.28 | AC98: 0.5
A99: R22 | B99: FDCSJ450HKXA | H99: 20 | L99: 0.03 | M99: 0.06 | N99: 0.12 | O99: 0.2 | P99: 0.28 | Q99: *** | R99: *** | S99: 0 | U99: その他 | V99: =IF(T99<=8,0,IF(T99<=16,(ROUNDDOWN(T99,0)-8)*0.5,"台数ｵｰﾊﾞ")) -> 0 | W99: 0 | X99: 0 | Y99: 20 | AA99: 0.21 | AB99: 0.28 | AC99: 0.5
A100: R22 | B100: FDCSJ560HKXA | H100: 26 | L100: 0.03 | M100: 0.06 | N100: 0.12 | O100: 0.2 | P100: 0.28 | Q100: *** | R100: *** | S100: 0 | U100: その他 | V100: =IF(T100<=8,0,IF(T100<=16,(ROUNDDOWN(T100,0)-8)*0.5,"台数ｵｰﾊﾞ")) -> 0 | W100: 0 | X100: 0 | Y100: 26 | AA100: 0.21 | AB100: 0.28 | AC100: 0.5
A101: R22 | B101: FDCSJ672HKXA | H101: 26 | L101: 0.03 | M101: 0.06 | N101: 0.12 | O101: 0.2 | P101: 0.28 | Q101: *** | R101: *** | S101: 0 | U101: その他 | V101: 0 | W101: 0 | X101: 0 | Y101: 26 | AA101: =IF(A101="R410A",0.39,IF(A101="R407C",0.27,IF(A101="R22",0.21,"NG"))) -> 0.21 | AB101: =IF(A101="R410A",0.42,IF(A101="R407C",0.46,IF(A101="R22",0.28,"NG"))) -> 0.28 | AC101: 0.5
A102: R22 | B102: FDCSJ728HKXA | H102: 40 | L102: 0.03 | M102: 0.06 | N102: 0.12 | O102: 0.2 | P102: 0.28 | Q102: 0.4 | R102: *** | S102: 0 | U102: その他 | V102: 0 | W102: 0 | X102: 0 | Y102: 40 | AA102: =IF(A102="R410A",0.39,IF(A102="R407C",0.27,IF(A102="R22",0.21,"NG"))) -> 0.21 | AB102: =IF(A102="R410A",0.42,IF(A102="R407C",0.46,IF(A102="R22",0.28,"NG"))) -> 0.28 | AC102: 0.5
A103: R22 | B103: FDCSJ784HKXA | H103: 40 | L103: 0.03 | M103: 0.06 | N103: 0.12 | O103: 0.2 | P103: 0.28 | Q103: 0.4 | R103: *** | S103: 0 | U103: その他 | V103: 0 | W103: 0 | X103: 0 | Y103: 40 | AA103: =IF(A103="R410A",0.39,IF(A103="R407C",0.27,IF(A103="R22",0.21,"NG"))) -> 0.21 | AB103: =IF(A103="R410A",0.42,IF(A103="R407C",0.46,IF(A103="R22",0.28,"NG"))) -> 0.28 | AC103: 0.5
A104: R22 | B104: FDCSJ840HKXA | H104: 40 | L104: 0.03 | M104: 0.06 | N104: 0.12 | O104: 0.2 | P104: 0.28 | Q104: 0.4 | R104: *** | S104: 0 | U104: その他 | V104: 0 | W104: 0 | X104: 0 | Y104: 40 | AA104: =IF(A104="R410A",0.39,IF(A104="R407C",0.27,IF(A104="R22",0.21,"NG"))) -> 0.21 | AB104: =IF(A104="R410A",0.42,IF(A104="R407C",0.46,IF(A104="R22",0.28,"NG"))) -> 0.28 | AC104: 0.5
A105: R22 | B105: FDCJ560HKXA | H105: 26 | L105: 0.03 | M105: 0.06 | N105: 0.12 | O105: 0.2 | P105: 0.28 | Q105: *** | R105: *** | S105: 0 | U105: その他 | V105: =IF(T105<=8,0,IF(T105<=16,(ROUNDDOWN(T105,0)-8)*0.5,"台数ｵｰﾊﾞ")) -> 0 | W105: 0 | X105: 0 | Y105: 26 | AA105: 0.21 | AB105: 0.28 | AC105: 0.5
A106: R22 | B106: FDCJ672HKXA | H106: 26 | L106: 0.03 | M106: 0.06 | N106: 0.12 | O106: 0.2 | P106: 0.28 | Q106: *** | R106: *** | S106: 0 | U106: その他 | V106: 0 | W106: 0 | X106: 0 | Y106: 26 | AA106: 0.21 | AB106: 0.28 | AC106: 0.5
A107: R22 | B107: FDCJ728HKXA | H107: 40 | L107: 0.03 | M107: 0.06 | N107: 0.12 | O107: 0.2 | P107: 0.28 | Q107: 0.4 | R107: *** | S107: 0 | U107: その他 | V107: 0 | W107: 0 | X107: 0 | Y107: 40 | AA107: 0.21 | AB107: 0.28 | AC107: 0.5
A108: R22 | B108: FDCJ784HKXA | H108: 40 | L108: 0.03 | M108: 0.06 | N108: 0.12 | O108: 0.2 | P108: 0.28 | Q108: 0.4 | R108: *** | S108: 0 | U108: その他 | V108: 0 | W108: 0 | X108: 0 | Y108: 40 | AA108: 0.21 | AB108: 0.28 | AC108: 0.5
A109: R22 | B109: FDCJ840HKXA | H109: 40 | L109: 0.03 | M109: 0.06 | N109: 0.12 | O109: 0.2 | P109: 0.28 | Q109: 0.4 | R109: *** | S109: 0 | U109: その他 | V109: 0 | W109: 0 | X109: 0 | Y109: 40 | AA109: 0.21 | AB109: 0.28 | AC109: 0.5
A110: R22 | B110: FDCJ355HKX2A | H110: 16.35 | L110: 0.03 | M110: 0.06 | N110: 0.12 | O110: 0.2 | P110: *** | Q110: *** | R110: *** | S110: 0 | U110: その他 | V110: 0 | W110: 0 | X110: 0 | Y110: 16.35 | AA110: 0.21 | AB110: 0.28 | AC110: 0.5
A111: R22 | B111: FDCJ450HKX2A | H111: 20 | L111: 0.03 | M111: 0.06 | N111: 0.12 | O111: 0.2 | P111: *** | Q111: *** | R111: *** | S111: 0 | U111: その他 | V111: 0 | W111: 0 | X111: 0 | Y111: 20 | AA111: 0.21 | AB111: 0.28 | AC111: 0.5
A112: R22 | B112: FDCJ140HKX2A | C112: A | H112: 9 | L112: 0.03 | M112: 0.06 | N112: 0.12 | O112: *** | P112: *** | Q112: *** | R112: *** | S112: 0 | U112: その他 | V112: 0 | W112: 0 | X112: 0 | Y112: 9 | AA112: 0.21 | AB112: 0.28 | AC112: 0.5
A113: R22 | B113: FDCJ160HKX2A | C113: A | H113: 9 | L113: 0.03 | M113: 0.06 | N113: 0.12 | O113: *** | P113: *** | Q113: *** | R113: *** | S113: 0 | U113: その他 | V113: 0 | W113: 0 | X113: 0 | Y113: 9 | AA113: 0.21 | AB113: 0.28 | AC113: 0.5
A114: R22 | B114: FDCJ224HKX2A | C114: A | H114: 12 | L114: 0.03 | M114: 0.06 | N114: 0.12 | O114: *** | P114: *** | Q114: *** | R114: *** | S114: 0 | U114: その他 | V114: 0 | W114: 0 | X114: 0 | Y114: 12 | AA114: 0.21 | AB114: 0.28 | AC114: 0.5
A115: R22 | B115: FDCJ280HKX2A | C115: A | H115: 12 | L115: 0.03 | M115: 0.06 | N115: 0.12 | O115: *** | P115: *** | Q115: *** | R115: *** | S115: 0 | U115: その他 | V115: 0 | W115: 0 | X115: 0 | Y115: 12 | AA115: 0.21 | AB115: 0.28 | AC115: 0.5
A116: R407C | B116: FDCP140HKX2A | C116: A | H116: 9 | L116: 0.03 | M116: 0.06 | N116: 0.12 | O116: *** | P116: *** | Q116: *** | R116: *** | S116: 0 | U116: その他 | V116: 0 | W116: 0 | X116: 0 | Y116: 9 | AA116: 0.27 | AB116: 0.46 | AC116: 0.49
A117: R407C | B117: FDCP160HKX2A | C117: A | H117: 9 | L117: 0.03 | M117: 0.06 | N117: 0.12 | O117: *** | P117: *** | Q117: *** | R117: *** | S117: 0 | U117: その他 | V117: 0 | W117: 0 | X117: 0 | Y117: 9 | AA117: 0.27 | AB117: 0.46 | AC117: 0.49
A118: R407C | B118: FDCP224HKX2A | C118: A | H118: 12 | L118: 0.03 | M118: 0.06 | N118: 0.12 | O118: *** | P118: *** | Q118: *** | R118: *** | S118: 0 | U118: その他 | V118: 0 | W118: 0 | X118: 0 | Y118: 12 | AA118: 0.27 | AB118: 0.46 | AC118: 0.49
A119: R407C | B119: FDCP280HKX2A | C119: A | H119: 12 | L119: 0.03 | M119: 0.06 | N119: 0.12 | O119: *** | P119: *** | Q119: *** | R119: *** | S119: 0 | U119: その他 | V119: 0 | W119: 0 | X119: 0 | Y119: 12 | AA119: 0.27 | AB119: 0.46 | AC119: 0.49
A120: R407C | B120: FDCP355HKX2A | H120: 16.35 | L120: 0.03 | M120: 0.06 | N120: 0.12 | O120: 0.2 | P120: *** | Q120: *** | R120: *** | S120: 0 | U120: その他 | V120: 0 | W120: 0 | X120: 0 | Y120: 16.35 | AA120: 0.27 | AB120: 0.46 | AC120: 0.49
A121: R407C | B121: FDCP450HKX2A | H121: 20 | L121: 0.03 | M121: 0.06 | N121: 0.12 | O121: 0.2 | P121: *** | Q121: *** | R121: *** | S121: 0 | U121: その他 | V121: 0 | W121: 0 | X121: 0 | Y121: 20 | AA121: 0.27 | AB121: 0.46 | AC121: 0.49
A122: R22 | B122: FDCJ224HKX2B-K | H122: 12 | K122: 50 | L122: 0.03 | M122: 0.06 | N122: 0.12 | O122: 0.2 | P122: 0.28 | Q122: 0.4 | R122: 0.53 | S122: 0 | U122: その他 | V122: 0 | W122: 0 | X122: 0 | Y122: 12 | AA122: 0.21 | AB122: 0.28 | AC122: 0.5 | AE122: 組合せ専用機
A123: R22 | B123: FDCJ280HKX2B-K | H123: 12 | L123: 0.03 | M123: 0.06 | N123: 0.12 | O123: 0.2 | P123: 0.28 | Q123: 0.4 | R123: 0.53 | S123: 0 | U123: その他 | V123: 0 | W123: 0 | X123: 0 | Y123: 12 | AA123: 0.21 | AB123: 0.28 | AC123: 0.5 | AE123: 組合せ専用機
A124: R22 | B124: FDCSJ224HKX2B-K | H124: 12 | L124: 0.03 | M124: 0.06 | N124: 0.12 | O124: 0.2 | P124: 0.28 | Q124: 0.4 | R124: 0.53 | S124: 0 | U124: その他 | V124: 0 | W124: 0 | X124: 0 | Y124: 12 | AA124: 0.21 | AB124: 0.28 | AC124: 0.5 | AE124: 組合せ専用機
A125: R22 | B125: FDCSJ280HKX2B-K | H125: 12 | L125: 0.03 | M125: 0.06 | N125: 0.12 | O125: 0.2 | P125: 0.28 | Q125: 0.4 | R125: 0.53 | S125: 0 | U125: その他 | V125: 0 | W125: 0 | X125: 0 | Y125: 12 | AA125: 0.21 | AB125: 0.28 | AC125: 0.5 | AE125: 組合せ専用機
A126: R407C | B126: FDCP224HKX2B-K | H126: 12 | L126: 0.03 | M126: 0.06 | N126: 0.12 | O126: 0.2 | P126: 0.28 | Q126: 0.4 | R126: 0.53 | S126: 0 | U126: その他 | V126: 0 | W126: 0 | X126: 0 | Y126: 12 | AA126: 0.27 | AB126: 0.46 | AC126: 0.49 | AE126: 組合せ専用機
A127: R407C | B127: FDCP280HKX2B-K | H127: 12 | L127: 0.03 | M127: 0.06 | N127: 0.12 | O127: 0.2 | P127: 0.28 | Q127: 0.4 | R127: 0.53 | S127: 0 | U127: その他 | V127: 0 | W127: 0 | X127: 0 | Y127: 12 | AA127: 0.27 | AB127: 0.46 | AC127: 0.49 | AE127: 組合せ専用機
A128: R407C | B128: FDCP224HKX2A-KT | H128: 5 | L128: 0.03 | M128: 0.06 | N128: 0.12 | O128: 0.2 | P128: 0.28 | Q128: 0.4 | R128: 0.53 | S128: 0 | U128: その他 | V128: 0 | W128: 0 | X128: 0 | Y128: 5 | AA128: 0.27 | AB128: 0.46 | AC128: 0.49 | AE128: 組合せ専用機
A129: R407C | B129: FDCP280HKX2A-KT | H129: 7 | L129: 0.03 | M129: 0.06 | N129: 0.12 | O129: 0.2 | P129: 0.28 | Q129: 0.4 | R129: 0.53 | S129: 0 | U129: その他 | V129: 0 | W129: 0 | X129: 0 | Y129: 7 | AA129: 0.27 | AB129: 0.46 | AC129: 0.49 | AE129: 組合せ専用機
A130: R407C | B130: FDCP225HKX2A-KT | H130: 5 | L130: 0.03 | M130: 0.06 | N130: 0.12 | O130: 0.2 | P130: 0.28 | Q130: 0.4 | R130: 0.53 | S130: 0 | U130: その他 | V130: 0 | W130: 0 | X130: 0 | Y130: 5 | AA130: 0.27 | AB130: 0.46 | AC130: 0.49 | AE130: 組合せ専用機
A131: R407C | B131: FDCP281HKX2A-KT | H131: 7 | L131: 0.03 | M131: 0.06 | N131: 0.12 | O131: 0.2 | P131: 0.28 | Q131: 0.4 | R131: 0.53 | S131: 0 | U131: その他 | V131: 0 | W131: 0 | X131: 0 | Y131: 7 | AA131: 0.27 | AB131: 0.46 | AC131: 0.49 | AE131: 組合せ専用機
A132: R407C | B132: FDCSP224HKX2B-K | H132: 5 | L132: 0.03 | M132: 0.06 | N132: 0.12 | O132: 0.2 | P132: 0.28 | Q132: 0.4 | R132: 0.53 | S132: 0 | U132: その他 | V132: 0 | W132: 0 | X132: 0 | Y132: 5 | AA132: 0.27 | AB132: 0.46 | AC132: 0.49 | AE132: 組合せ専用機
A133: R407C | B133: FDCSP280HKX2B-K | H133: 7 | L133: 0.03 | M133: 0.06 | N133: 0.12 | O133: 0.2 | P133: 0.28 | Q133: 0.4 | R133: 0.53 | S133: 0 | U133: その他 | V133: 0 | W133: =V133 -> 0 | X133: =IF(S133+W133<0,0,S133+W133) -> 0 | Y133: 7 | AA133: =IF(A133="R410A",0.39,IF(A133="R407C",0.27,IF(A133="R22",0.21,"NG"))) -> 0.27 | AB133: =IF(A133="R410A",0.42,IF(A133="R407C",0.46,IF(A133="R22",0.28,"NG"))) -> 0.46 | AC133: =IF(A133="R410A",0.42,IF(A133="R407C",0.49,IF(A133="R22",0.5,"NG"))) -> 0.49 | AD133: =IF(OR(Z133<=AA133,AND(U133="その他",Z133<=AB133)),"OK",IF(OR(AND(U133="最下層",Z133<=AB133),AND(U133="その他",Z133<=AC133)),"対策が１つ必要です",IF(OR(AND(U133="最下層",Z133<=AC133),AND(U133="その他",Z133>AC133)),"対策が２つ必要です","システムの見直しが必要です"))) ->  | AE133: 組合せ専用機
A134: R407C | B134: FDCSP224HKX2A-KT | H134: 5 | L134: 0.03 | M134: 0.06 | N134: 0.12 | O134: 0.2 | P134: 0.28 | Q134: 0.4 | R134: 0.53 | S134: 0 | U134: その他 | V134: 0 | W134: 0 | X134: 0 | Y134: =H134+X134 -> 5 | Z134: =Y134/I134 ->  | AA134: 0.27 | AB134: 0.46 | AC134: 0.49 | AE134: 組合せ専用機
A135: R407C | B135: FDCSP280HKX2A-KT | H135: 7 | L135: 0.03 | M135: 0.06 | N135: 0.12 | O135: 0.2 | P135: 0.28 | Q135: 0.4 | R135: 0.53 | S135: 0 | U135: その他 | V135: 0 | W135: 0 | X135: 0 | Y135: 7 | AA135: 0.27 | AB135: 0.46 | AC135: 0.49 | AE135: 組合せ専用機
A136: R407C | B136: FDCSP281HKX2A-KT | H136: 5 | L136: 0.03 | M136: 0.06 | N136: 0.12 | O136: 0.2 | P136: 0.28 | Q136: 0.4 | R136: 0.53 | S136: 0 | U136: その他 | V136: 0 | W136: 0 | X136: 0 | Y136: 5 | AA136: 0.27 | AB136: 0.46 | AC136: 0.49 | AE136: 組合せ専用機
A137: R407C | B137: FDCSP225HKX2A-KT | H137: 7 | L137: 0.03 | M137: 0.06 | N137: 0.12 | O137: 0.2 | P137: 0.28 | Q137: 0.4 | R137: 0.53 | S137: 0 | U137: その他 | V137: 0 | W137: 0 | X137: 0 | Y137: 7 | AA137: 0.27 | AB137: 0.46 | AC137: 0.49 | AE137: 組合せ専用機
A138: R22 | B138: FDCJ140HKX2B | H138: 9 | L138: 0.03 | M138: 0.06 | N138: 0.12 | O138: *** | P138: *** | Q138: *** | R138: *** | S138: 0 | U138: その他 | V138: 0 | W138: 0 | X138: 0 | Y138: 9 | AA138: 0.21 | AB138: 0.28 | AC138: 0.5
A139: R22 | B139: FDCJ160HKX2B | H139: 9 | L139: 0.03 | M139: 0.06 | N139: 0.12 | O139: *** | P139: *** | Q139: *** | R139: *** | S139: 0 | U139: その他 | V139: 0 | W139: 0 | X139: 0 | Y139: 9 | AA139: 0.21 | AB139: 0.28 | AC139: 0.5
A140: R22 | B140: FDCJ224HKX2B | H140: 12 | L140: 0.03 | M140: 0.06 | N140: 0.12 | O140: *** | P140: *** | Q140: *** | R140: *** | S140: 0 | U140: その他 | V140: 0 | W140: 0 | X140: 0 | Y140: 12 | AA140: 0.21 | AB140: 0.28 | AC140: 0.5
A141: R22 | B141: FDCJ280HKX2B | H141: 12 | L141: 0.03 | M141: 0.06 | N141: 0.12 | O141: *** | P141: *** | Q141: *** | R141: *** | S141: 0 | U141: その他 | V141: 0 | W141: 0 | X141: 0 | Y141: 12 | AA141: 0.21 | AB141: 0.28 | AC141: 0.5
A142: R22 | B142: FDCSJ140HKX2B | H142: 9 | L142: 0.03 | M142: 0.06 | N142: 0.12 | O142: *** | P142: *** | Q142: *** | R142: *** | S142: 0 | U142: その他 | V142: 0 | W142: 0 | X142: 0 | Y142: 9 | AA142: 0.21 | AB142: 0.28 | AC142: 0.5
A143: R22 | B143: FDCSJ160HKX2B | H143: 9 | L143: 0.03 | M143: 0.06 | N143: 0.12 | O143: *** | P143: *** | Q143: *** | R143: *** | S143: 0 | U143: その他 | V143: 0 | W143: 0 | X143: 0 | Y143: 9 | AA143: 0.21 | AB143: 0.28 | AC143: 0.5
A144: R22 | B144: FDCSJ224HKX2B | H144: 12 | L144: 0.03 | M144: 0.06 | N144: 0.12 | O144: *** | P144: *** | Q144: *** | R144: *** | S144: 0 | U144: その他 | V144: 0 | W144: 0 | X144: 0 | Y144: 12 | AA144: 0.21 | AB144: 0.28 | AC144: 0.5
A145: R22 | B145: FDCSJ280HKX2B | H145: 12 | L145: 0.03 | M145: 0.06 | N145: 0.12 | O145: *** | P145: *** | Q145: *** | R145: *** | S145: 0 | U145: その他 | V145: 0 | W145: 0 | X145: 0 | Y145: 12 | AA145: 0.21 | AB145: 0.28 | AC145: 0.5
A146: R407C | B146: FDCP140HKX2B | H146: 9 | L146: 0.03 | M146: 0.06 | N146: 0.12 | O146: *** | P146: *** | Q146: *** | R146: *** | S146: =IF(J146="φ6.4",K146*L146,IF(J146="φ9.5",K146*M146,IF(J146="φ12.7",K146*N146,IF(J146="φ15.9",K146*O146,IF(J146="φ19.1",K146*P146,IF(J146="φ22.2",K146*Q146,IF(J146="φ25.4",K146*R146,0))))))) -> 0 | U146: その他 | V146: 0 | W146: 0 | X146: 0 | Y146: 9 | AA146: 0.27 | AB146: 0.46 | AC146: 0.49
A147: R407C | B147: FDCP160HKX2B | H147: 9 | L147: 0.03 | M147: 0.06 | N147: 0.12 | O147: *** | P147: *** | Q147: *** | R147: *** | S147: 0 | U147: その他 | V147: 0 | W147: 0 | X147: 0 | Y147: 9 | AA147: 0.27 | AB147: 0.46 | AC147: 0.49
A148: R407C | B148: FDCP224HKX2B | H148: 12 | L148: 0.03 | M148: 0.06 | N148: 0.12 | O148: *** | P148: *** | Q148: *** | R148: *** | S148: 0 | U148: その他 | V148: 0 | W148: 0 | X148: 0 | Y148: 12 | AA148: 0.27 | AB148: 0.46 | AC148: 0.49
A149: R407C | B149: FDCP280HKX2B | H149: 12 | L149: 0.03 | M149: 0.06 | N149: 0.12 | O149: *** | P149: *** | Q149: *** | R149: *** | S149: 0 | U149: その他 | V149: 0 | W149: 0 | X149: 0 | Y149: 12 | AA149: 0.27 | AB149: 0.46 | AC149: 0.49
A150: R407C | B150: FDCSP140HKX2B | H150: 9 | L150: 0.03 | M150: 0.06 | N150: 0.12 | O150: *** | P150: *** | Q150: *** | R150: *** | S150: 0 | U150: その他 | V150: 0 | W150: 0 | X150: 0 | Y150: 9 | AA150: 0.27 | AB150: 0.46 | AC150: =IF(A150="R410A",0.42,IF(A150="R407C",0.49,IF(A150="R22",0.5,"NG"))) -> 0.49 | AD150: =IF(OR(Z150<=AA150,AND(U150="その他",Z150<=AB150)),"OK",IF(OR(AND(U150="最下層",Z150<=AB150),AND(U150="その他",Z150<=AC150)),"対策が１つ必要です",IF(OR(AND(U150="最下層",Z150<=AC150),AND(U150="その他",Z150>AC150)),"対策が２つ必要です","システムの見直しが必要です"))) -> 
A151: R407C | B151: FDCSP160HKX2B | H151: 9 | L151: 0.03 | M151: 0.06 | N151: 0.12 | O151: *** | P151: *** | Q151: *** | R151: *** | S151: 0 | U151: その他 | V151: 0 | W151: 0 | X151: 0 | Y151: 9 | AA151: 0.27 | AB151: 0.46 | AC151: =IF(A151="R410A",0.42,IF(A151="R407C",0.49,IF(A151="R22",0.5,"NG"))) -> 0.49 | AD151: =IF(OR(Z151<=AA151,AND(U151="その他",Z151<=AB151)),"OK",IF(OR(AND(U151="最下層",Z151<=AB151),AND(U151="その他",Z151<=AC151)),"対策が１つ必要です",IF(OR(AND(U151="最下層",Z151<=AC151),AND(U151="その他",Z151>AC151)),"対策が２つ必要です","システムの見直しが必要です"))) -> 
A152: R407C | B152: FDCSP224HKX2B | H152: 12 | L152: 0.03 | M152: 0.06 | N152: 0.12 | O152: *** | P152: *** | Q152: *** | R152: *** | S152: 0 | U152: その他 | V152: 0 | W152: 0 | X152: 0 | Y152: 12 | AA152: 0.27 | AB152: 0.46 | AC152: =IF(A152="R410A",0.42,IF(A152="R407C",0.49,IF(A152="R22",0.5,"NG"))) -> 0.49 | AD152: =IF(OR(Z152<=AA152,AND(U152="その他",Z152<=AB152)),"OK",IF(OR(AND(U152="最下層",Z152<=AB152),AND(U152="その他",Z152<=AC152)),"対策が１つ必要です",IF(OR(AND(U152="最下層",Z152<=AC152),AND(U152="その他",Z152>AC152)),"対策が２つ必要です","システムの見直しが必要です"))) -> 
A153: R407C | B153: FDCSP280HKX2B | H153: 12 | L153: 0.03 | M153: 0.06 | N153: 0.12 | O153: *** | P153: *** | Q153: *** | R153: *** | S153: 0 | U153: その他 | V153: 0 | W153: 0 | X153: 0 | Y153: 12 | AA153: 0.27 | AB153: 0.46 | AC153: =IF(A153="R410A",0.42,IF(A153="R407C",0.49,IF(A153="R22",0.5,"NG"))) -> 0.49 | AD153: =IF(OR(Z153<=AA153,AND(U153="その他",Z153<=AB153)),"OK",IF(OR(AND(U153="最下層",Z153<=AB153),AND(U153="その他",Z153<=AC153)),"対策が１つ必要です",IF(OR(AND(U153="最下層",Z153<=AC153),AND(U153="その他",Z153>AC153)),"対策が２つ必要です","システムの見直しが必要です"))) -> 
A154: R22 | B154: FDCSJ224HKXIB | D154: ISU10HKX | E154: FDCSJ224HKXIB | H154: 12 | L154: 0.03 | M154: 0.06 | N154: 0.12 | O154: *** | P154: *** | Q154: *** | R154: *** | S154: 0 | U154: その他 | V154: 1.2 | W154: 1.2 | X154: 1.2 | Y154: 13.2 | AA154: 0.21 | AB154: 0.28 | AC154: 0.5
A155: R22 | B155: FDCSJ280HKXIB | D155: ISU13HKX | E155: FDCSJ280HKXIB | H155: 12 | L155: 0.03 | M155: 0.06 | N155: 0.12 | O155: *** | P155: *** | Q155: *** | R155: *** | S155: 0 | U155: その他 | V155: 2.2 | W155: 2.2 | X155: 2.2 | Y155: 14.2 | AA155: 0.21 | AB155: 0.28 | AC155: 0.5
A156: R407C | B156: FDCSP355HKX2A | H156: 16.35 | L156: 0.03 | M156: 0.06 | N156: 0.12 | O156: 0.2 | P156: *** | Q156: *** | R156: *** | S156: 0 | U156: その他 | V156: 0 | W156: 0 | X156: 0 | Y156: 16.35 | AA156: 0.27 | AB156: 0.46 | AC156: 0.49
A157: R407C | B157: FDCSP450HKX2A | H157: 20 | L157: 0.03 | M157: 0.06 | N157: 0.12 | O157: 0.2 | P157: *** | Q157: *** | R157: *** | S157: 0 | U157: その他 | V157: 0 | W157: =V157 -> 0 | X157: 0 | Y157: 20 | AA157: 0.27 | AB157: 0.46 | AC157: =IF(A157="R410A",0.42,IF(A157="R407C",0.49,IF(A157="R22",0.5,"NG"))) -> 0.49 | AD157: =IF(OR(Z157<=AA157,AND(U157="その他",Z157<=AB157)),"OK",IF(OR(AND(U157="最下層",Z157<=AB157),AND(U157="その他",Z157<=AC157)),"対策が１つ必要です",IF(OR(AND(U157="最下層",Z157<=AC157),AND(U157="その他",Z157>AC157)),"対策が２つ必要です","システムの見直しが必要です"))) -> 
A158: R407C | B158: FDCSP140HKX2B-C | H158: 9 | L158: 0.03 | M158: 0.06 | N158: 0.12 | O158: *** | P158: *** | Q158: *** | R158: *** | S158: 0 | U158: その他 | V158: 0 | W158: 0 | X158: 0 | Y158: 9 | AA158: 0.27 | AB158: 0.46 | AC158: 0.49
A159: R22 | B159: FDCJ224HKX2D | H159: 12 | L159: 0.03 | M159: 0.06 | N159: 0.12 | O159: *** | P159: *** | Q159: *** | R159: *** | S159: 0 | U159: その他 | V159: 0 | W159: =V159 -> 0 | X159: 0 | Y159: 12 | AA159: =IF(A159="R410A",0.39,IF(A159="R407C",0.27,IF(A159="R22",0.21,"NG"))) -> 0.21 | AB159: =IF(A159="R410A",0.42,IF(A159="R407C",0.46,IF(A159="R22",0.28,"NG"))) -> 0.28 | AC159: =IF(A159="R410A",0.42,IF(A159="R407C",0.49,IF(A159="R22",0.5,"NG"))) -> 0.5 | AD159: =IF(OR(Z159<=AA159,AND(U159="その他",Z159<=AB159)),"OK",IF(OR(AND(U159="最下層",Z159<=AB159),AND(U159="その他",Z159<=AC159)),"対策が１つ必要です",IF(OR(AND(U159="最下層",Z159<=AC159),AND(U159="その他",Z159>AC159)),"対策が２つ必要です","システムの見直しが必要です"))) -> 
A160: R22 | B160: FDCJ280HKX2D | H160: 12 | L160: 0.03 | M160: 0.06 | N160: 0.12 | O160: *** | P160: *** | Q160: *** | R160: *** | S160: 0 | U160: その他 | V160: 0 | W160: =V160 -> 0 | X160: 0 | Y160: 12 | AA160: =IF(A160="R410A",0.39,IF(A160="R407C",0.27,IF(A160="R22",0.21,"NG"))) -> 0.21 | AB160: =IF(A160="R410A",0.42,IF(A160="R407C",0.46,IF(A160="R22",0.28,"NG"))) -> 0.28 | AC160: =IF(A160="R410A",0.42,IF(A160="R407C",0.49,IF(A160="R22",0.5,"NG"))) -> 0.5 | AD160: =IF(OR(Z160<=AA160,AND(U160="その他",Z160<=AB160)),"OK",IF(OR(AND(U160="最下層",Z160<=AB160),AND(U160="その他",Z160<=AC160)),"対策が１つ必要です",IF(OR(AND(U160="最下層",Z160<=AC160),AND(U160="その他",Z160>AC160)),"対策が２つ必要です","システムの見直しが必要です"))) -> 
A161: R22 | B161: FDCJ355HKX2D | H161: 16.35 | L161: 0.03 | M161: 0.06 | N161: 0.12 | O161: 0.2 | P161: *** | Q161: *** | R161: *** | S161: 0 | U161: その他 | V161: 0 | W161: 0 | X161: 0 | Y161: 16.35 | AA161: 0.21 | AB161: 0.28 | AC161: 0.5
A162: R22 | B162: FDCJ450HKX2D | H162: 20 | L162: 0.03 | M162: 0.06 | N162: 0.12 | O162: 0.2 | P162: *** | Q162: *** | R162: *** | S162: 0 | U162: その他 | V162: 0 | W162: 0 | X162: 0 | Y162: 20 | AA162: 0.21 | AB162: 0.28 | AC162: 0.5
A163: R407C | B163: FDCP355HKX2D | H163: 16.35 | L163: 0.03 | M163: 0.06 | N163: 0.12 | O163: 0.2 | P163: *** | Q163: *** | R163: *** | S163: 0 | U163: その他 | V163: 0 | W163: 0 | X163: 0 | Y163: 16.35 | AA163: 0.27 | AB163: 0.46 | AC163: 0.49
A164: R407C | B164: FDCP450HKX2D | H164: 20 | L164: 0.03 | M164: 0.06 | N164: 0.12 | O164: 0.2 | P164: *** | Q164: *** | R164: *** | S164: 0 | U164: その他 | V164: 0 | W164: =V164 -> 0 | X164: 0 | Y164: 20 | AA164: =IF(A164="R410A",0.39,IF(A164="R407C",0.27,IF(A164="R22",0.21,"NG"))) -> 0.27 | AB164: =IF(A164="R410A",0.42,IF(A164="R407C",0.46,IF(A164="R22",0.28,"NG"))) -> 0.46 | AC164: =IF(A164="R410A",0.42,IF(A164="R407C",0.49,IF(A164="R22",0.5,"NG"))) -> 0.49 | AD164: =IF(OR(Z164<=AA164,AND(U164="その他",Z164<=AB164)),"OK",IF(OR(AND(U164="最下層",Z164<=AB164),AND(U164="その他",Z164<=AC164)),"対策が１つ必要です",IF(OR(AND(U164="最下層",Z164<=AC164),AND(U164="その他",Z164>AC164)),"対策が２つ必要です","システムの見直しが必要です"))) -> 
A165: R22 | B165: FDCJ224HKX2D-K | H165: 12 | L165: 0.03 | M165: 0.06 | N165: 0.12 | O165: 0.2 | P165: 0.28 | Q165: 0.4 | R165: 0.53 | S165: 0 | U165: その他 | V165: 0 | W165: 0 | X165: 0 | Y165: 12 | AA165: 0.21 | AB165: 0.28 | AC165: 0.5 | AE165: 組合せ専用機
A166: R22 | B166: FDCJ280HKX2D-K | H166: 12 | L166: 0.03 | M166: 0.06 | N166: 0.12 | O166: 0.2 | P166: 0.28 | Q166: 0.4 | R166: 0.53 | S166: 0 | U166: その他 | V166: 0 | W166: 0 | X166: 0 | Y166: 12 | AA166: 0.21 | AB166: 0.28 | AC166: 0.5 | AE166: 組合せ専用機
A167: R22 | B167: FDCSJ224HKX2D-K | H167: 12 | L167: 0.03 | M167: 0.06 | N167: 0.12 | O167: 0.2 | P167: 0.28 | Q167: 0.4 | R167: 0.53 | S167: 0 | U167: その他 | V167: 0 | W167: =V167 -> 0 | X167: =IF(S167+W167<0,0,S167+W167) -> 0 | Y167: 12 | AA167: =IF(A167="R410A",0.39,IF(A167="R407C",0.27,IF(A167="R22",0.21,"NG"))) -> 0.21 | AB167: =IF(A167="R410A",0.42,IF(A167="R407C",0.46,IF(A167="R22",0.28,"NG"))) -> 0.28 | AC167: =IF(A167="R410A",0.42,IF(A167="R407C",0.49,IF(A167="R22",0.5,"NG"))) -> 0.5 | AD167: =IF(OR(Z167<=AA167,AND(U167="その他",Z167<=AB167)),"OK",IF(OR(AND(U167="最下層",Z167<=AB167),AND(U167="その他",Z167<=AC167)),"対策が１つ必要です",IF(OR(AND(U167="最下層",Z167<=AC167),AND(U167="その他",Z167>AC167)),"対策が２つ必要です","システムの見直しが必要です"))) ->  | AE167: 組合せ専用機
A168: R22 | B168: FDCSJ280HKX2D-K | H168: 12 | L168: 0.03 | M168: 0.06 | N168: 0.12 | O168: 0.2 | P168: 0.28 | Q168: 0.4 | R168: 0.53 | S168: 0 | U168: その他 | V168: 0 | W168: =V168 -> 0 | X168: =IF(S168+W168<0,0,S168+W168) -> 0 | Y168: 12 | AA168: =IF(A168="R410A",0.39,IF(A168="R407C",0.27,IF(A168="R22",0.21,"NG"))) -> 0.21 | AB168: =IF(A168="R410A",0.42,IF(A168="R407C",0.46,IF(A168="R22",0.28,"NG"))) -> 0.28 | AC168: =IF(A168="R410A",0.42,IF(A168="R407C",0.49,IF(A168="R22",0.5,"NG"))) -> 0.5 | AD168: =IF(OR(Z168<=AA168,AND(U168="その他",Z168<=AB168)),"OK",IF(OR(AND(U168="最下層",Z168<=AB168),AND(U168="その他",Z168<=AC168)),"対策が１つ必要です",IF(OR(AND(U168="最下層",Z168<=AC168),AND(U168="その他",Z168>AC168)),"対策が２つ必要です","システムの見直しが必要です"))) ->  | AE168: 組合せ専用機
A169: R407C | B169: FDCP224HKX2D-K | H169: 12 | L169: 0.03 | M169: 0.06 | N169: 0.12 | O169: 0.2 | P169: 0.28 | Q169: 0.4 | R169: 0.53 | S169: 0 | U169: その他 | V169: 0 | W169: 0 | X169: 0 | Y169: 12 | AA169: 0.27 | AB169: 0.46 | AC169: 0.49 | AE169: 組合せ専用機
A170: R407C | B170: FDCP280HKX2D-K | H170: 12 | L170: 0.03 | M170: 0.06 | N170: 0.12 | O170: 0.2 | P170: 0.28 | Q170: 0.4 | R170: 0.53 | S170: 0 | U170: その他 | V170: 0 | W170: 0 | X170: 0 | Y170: 12 | AA170: 0.27 | AB170: 0.46 | AC170: 0.49 | AE170: 組合せ専用機
A171: R407C | B171: FDCSP224HKX2D-K | H171: 12 | L171: 0.03 | M171: 0.06 | N171: 0.12 | O171: 0.2 | P171: 0.28 | Q171: 0.4 | R171: 0.53 | S171: 0 | U171: その他 | V171: 0 | W171: =V171 -> 0 | X171: =IF(S171+W171<0,0,S171+W171) -> 0 | Y171: 12 | AA171: =IF(A171="R410A",0.39,IF(A171="R407C",0.27,IF(A171="R22",0.21,"NG"))) -> 0.27 | AB171: =IF(A171="R410A",0.42,IF(A171="R407C",0.46,IF(A171="R22",0.28,"NG"))) -> 0.46 | AC171: =IF(A171="R410A",0.42,IF(A171="R407C",0.49,IF(A171="R22",0.5,"NG"))) -> 0.49 | AD171: =IF(OR(Z171<=AA171,AND(U171="その他",Z171<=AB171)),"OK",IF(OR(AND(U171="最下層",Z171<=AB171),AND(U171="その他",Z171<=AC171)),"対策が１つ必要です",IF(OR(AND(U171="最下層",Z171<=AC171),AND(U171="その他",Z171>AC171)),"対策が２つ必要です","システムの見直しが必要です"))) ->  | AE171: 組合せ専用機
A172: R407C | B172: FDCSP280HKX2D-K | H172: 12 | L172: 0.03 | M172: 0.06 | N172: 0.12 | O172: 0.2 | P172: 0.28 | Q172: 0.4 | R172: 0.53 | S172: 0 | U172: その他 | V172: 0 | W172: =V172 -> 0 | X172: =IF(S172+W172<0,0,S172+W172) -> 0 | Y172: 12 | AA172: =IF(A172="R410A",0.39,IF(A172="R407C",0.27,IF(A172="R22",0.21,"NG"))) -> 0.27 | AB172: =IF(A172="R410A",0.42,IF(A172="R407C",0.46,IF(A172="R22",0.28,"NG"))) -> 0.46 | AC172: =IF(A172="R410A",0.42,IF(A172="R407C",0.49,IF(A172="R22",0.5,"NG"))) -> 0.49 | AD172: =IF(OR(Z172<=AA172,AND(U172="その他",Z172<=AB172)),"OK",IF(OR(AND(U172="最下層",Z172<=AB172),AND(U172="その他",Z172<=AC172)),"対策が１つ必要です",IF(OR(AND(U172="最下層",Z172<=AC172),AND(U172="その他",Z172>AC172)),"対策が２つ必要です","システムの見直しが必要です"))) ->  | AE172: 組合せ専用機
A173: R22 | B173: FDCSJ224HKX2D | H173: 12 | L173: 0.03 | M173: 0.06 | N173: 0.12 | O173: *** | P173: *** | Q173: *** | R173: *** | S173: 0 | U173: その他 | V173: 0 | W173: 0 | X173: 0 | Y173: 12 | AA173: 0.21 | AB173: 0.28 | AC173: 0.5
A174: R22 | B174: FDCSJ280HKX2D | H174: 12 | L174: 0.03 | M174: 0.06 | N174: 0.12 | O174: *** | P174: *** | Q174: *** | R174: *** | S174: 0 | U174: その他 | V174: 0 | W174: =V174 -> 0 | X174: =IF(S174+W174<0,0,S174+W174) -> 0 | Y174: 12 | AA174: =IF(A174="R410A",0.39,IF(A174="R407C",0.27,IF(A174="R22",0.21,"NG"))) -> 0.21 | AB174: =IF(A174="R410A",0.42,IF(A174="R407C",0.46,IF(A174="R22",0.28,"NG"))) -> 0.28 | AC174: =IF(A174="R410A",0.42,IF(A174="R407C",0.49,IF(A174="R22",0.5,"NG"))) -> 0.5 | AD174: =IF(OR(Z174<=AA174,AND(U174="その他",Z174<=AB174)),"OK",IF(OR(AND(U174="最下層",Z174<=AB174),AND(U174="その他",Z174<=AC174)),"対策が１つ必要です",IF(OR(AND(U174="最下層",Z174<=AC174),AND(U174="その他",Z174>AC174)),"対策が２つ必要です","システムの見直しが必要です"))) -> 
A175: R22 | B175: FDCSJ355HKX2D | H175: 16.35 | L175: 0.03 | M175: 0.06 | N175: 0.12 | O175: 0.2 | P175: *** | Q175: *** | R175: *** | S175: 0 | U175: その他 | V175: 0 | W175: 0 | X175: 0 | Y175: 16.35 | AA175: 0.21 | AB175: 0.28 | AC175: 0.5
A176: R22 | B176: FDCSJ450HKX2D | H176: 20 | L176: 0.03 | M176: 0.06 | N176: 0.12 | O176: 0.2 | P176: *** | Q176: *** | R176: *** | S176: 0 | U176: その他 | V176: 0 | W176: 0 | X176: 0 | Y176: 20 | AA176: 0.21 | AB176: 0.28 | AC176: 0.5
A177: R407C | B177: FDCSP355HKX2D | H177: 16.35 | L177: 0.03 | M177: 0.06 | N177: 0.12 | O177: 0.2 | P177: *** | Q177: *** | R177: *** | S177: 0 | U177: その他 | V177: 0 | W177: 0 | X177: 0 | Y177: 16.35 | AA177: 0.27 | AB177: 0.46 | AC177: 0.49
A178: R407C | B178: FDCSP450HKX2D | H178: 20 | L178: 0.03 | M178: 0.06 | N178: 0.12 | O178: 0.2 | P178: *** | Q178: *** | R178: *** | S178: 0 | U178: その他 | V178: 0 | W178: 0 | X178: 0 | Y178: 20 | AA178: 0.27 | AB178: 0.46 | AC178: 0.49
A179: R407C | B179: FDCP224HKX2D | H179: 12 | L179: 0.03 | M179: 0.06 | N179: 0.12 | O179: *** | P179: *** | Q179: *** | R179: *** | S179: 0 | U179: その他 | V179: 0 | W179: 0 | X179: 0 | Y179: 12 | AA179: 0.27 | AB179: 0.46 | AC179: 0.49
A180: R407C | B180: FDCP280HKX2D | H180: 12 | L180: 0.03 | M180: 0.06 | N180: 0.12 | O180: *** | P180: *** | Q180: *** | R180: *** | S180: 0 | U180: その他 | V180: 0 | W180: 0 | X180: 0 | Y180: 12 | AA180: 0.27 | AB180: 0.46 | AC180: 0.49
A181: R407C | B181: FDCSP224HKX2D | H181: 12 | L181: 0.03 | M181: 0.06 | N181: 0.12 | O181: *** | P181: *** | Q181: *** | R181: *** | S181: 0 | U181: その他 | V181: 0 | W181: 0 | X181: 0 | Y181: 12 | AA181: 0.27 | AB181: 0.46 | AC181: 0.49
A182: R407C | B182: FDCSP280HKX2D | H182: 12 | L182: 0.03 | M182: 0.06 | N182: 0.12 | O182: *** | P182: *** | Q182: *** | R182: *** | S182: 0 | U182: その他 | V182: 0 | W182: =V182 -> 0 | X182: =IF(S182+W182<0,0,S182+W182) -> 0 | Y182: 12 | AA182: =IF(A182="R410A",0.39,IF(A182="R407C",0.27,IF(A182="R22",0.21,"NG"))) -> 0.27 | AB182: =IF(A182="R410A",0.42,IF(A182="R407C",0.46,IF(A182="R22",0.28,"NG"))) -> 0.46 | AC182: =IF(A182="R410A",0.42,IF(A182="R407C",0.49,IF(A182="R22",0.5,"NG"))) -> 0.49 | AD182: =IF(OR(Z182<=AA182,AND(U182="その他",Z182<=AB182)),"OK",IF(OR(AND(U182="最下層",Z182<=AB182),AND(U182="その他",Z182<=AC182)),"対策が１つ必要です",IF(OR(AND(U182="最下層",Z182<=AC182),AND(U182="その他",Z182>AC182)),"対策が２つ必要です","システムの見直しが必要です"))) -> 
A183: R22 | B183: FDCJ140HKX2D | H183: 9 | L183: 0.03 | M183: 0.06 | N183: 0.12 | O183: *** | P183: *** | Q183: *** | R183: *** | S183: 0 | U183: その他 | V183: 0 | W183: 0 | X183: 0 | Y183: 9 | AA183: 0.21 | AB183: 0.28 | AC183: 0.5
A184: R22 | B184: FDCJ160HKX2D | H184: 9 | L184: 0.03 | M184: 0.06 | N184: 0.12 | O184: *** | P184: *** | Q184: *** | R184: *** | S184: 0 | U184: その他 | V184: 0 | W184: 0 | X184: 0 | Y184: 9 | AA184: 0.21 | AB184: 0.28 | AC184: 0.5
A185: R22 | B185: FDCSJ140HKX2D | H185: 9 | L185: 0.03 | M185: 0.06 | N185: 0.12 | O185: *** | P185: *** | Q185: *** | R185: *** | S185: 0 | U185: その他 | V185: 0 | W185: =V185 -> 0 | X185: =IF(S185+W185<0,0,S185+W185) -> 0 | Y185: 9 | AA185: =IF(A185="R410A",0.39,IF(A185="R407C",0.27,IF(A185="R22",0.21,"NG"))) -> 0.21 | AB185: =IF(A185="R410A",0.42,IF(A185="R407C",0.46,IF(A185="R22",0.28,"NG"))) -> 0.28 | AC185: =IF(A185="R410A",0.42,IF(A185="R407C",0.49,IF(A185="R22",0.5,"NG"))) -> 0.5 | AD185: =IF(OR(Z185<=AA185,AND(U185="その他",Z185<=AB185)),"OK",IF(OR(AND(U185="最下層",Z185<=AB185),AND(U185="その他",Z185<=AC185)),"対策が１つ必要です",IF(OR(AND(U185="最下層",Z185<=AC185),AND(U185="その他",Z185>AC185)),"対策が２つ必要です","システムの見直しが必要です"))) -> 
A186: R22 | B186: FDCSJ160HKX2D | H186: 9 | L186: 0.03 | M186: 0.06 | N186: 0.12 | O186: *** | P186: *** | Q186: *** | R186: *** | S186: 0 | U186: その他 | V186: 0 | W186: =V186 -> 0 | X186: =IF(S186+W186<0,0,S186+W186) -> 0 | Y186: 9 | AA186: =IF(A186="R410A",0.39,IF(A186="R407C",0.27,IF(A186="R22",0.21,"NG"))) -> 0.21 | AB186: =IF(A186="R410A",0.42,IF(A186="R407C",0.46,IF(A186="R22",0.28,"NG"))) -> 0.28 | AC186: =IF(A186="R410A",0.42,IF(A186="R407C",0.49,IF(A186="R22",0.5,"NG"))) -> 0.5 | AD186: =IF(OR(Z186<=AA186,AND(U186="その他",Z186<=AB186)),"OK",IF(OR(AND(U186="最下層",Z186<=AB186),AND(U186="その他",Z186<=AC186)),"対策が１つ必要です",IF(OR(AND(U186="最下層",Z186<=AC186),AND(U186="その他",Z186>AC186)),"対策が２つ必要です","システムの見直しが必要です"))) -> 
A187: R407C | B187: FDCP140HKX2D | H187: 9 | L187: 0.03 | M187: 0.06 | N187: 0.12 | O187: *** | P187: *** | Q187: *** | R187: *** | S187: 0 | U187: その他 | V187: 0 | W187: 0 | X187: 0 | Y187: 9 | AA187: 0.27 | AB187: 0.46 | AC187: 0.49
A188: R407C | B188: FDCP160HKX2D | H188: 9 | L188: 0.03 | M188: 0.06 | N188: 0.12 | O188: *** | P188: *** | Q188: *** | R188: *** | S188: 0 | U188: その他 | V188: 0 | W188: 0 | X188: 0 | Y188: 9 | AA188: 0.27 | AB188: 0.46 | AC188: 0.49
A189: R407C | B189: FDCSP140HKX2D | H189: 9 | L189: 0.03 | M189: 0.06 | N189: 0.12 | O189: *** | P189: *** | Q189: *** | R189: *** | S189: 0 | U189: その他 | V189: 0 | W189: 0 | X189: 0 | Y189: 9 | AA189: 0.27 | AB189: 0.46 | AC189: 0.49
A190: R407C | B190: FDCSP160HKX2D | H190: 9 | L190: 0.03 | M190: 0.06 | N190: 0.12 | O190: *** | P190: *** | Q190: *** | R190: *** | S190: 0 | U190: その他 | V190: 0 | W190: 0 | X190: 0 | Y190: 9 | AA190: 0.27 | AB190: 0.46 | AC190: 0.49
A191: R407C | B191: FDCP224HKXRA | H191: 11 | L191: 0.03 | M191: 0.06 | N191: 0.12 | O191: *** | P191: *** | Q191: *** | R191: *** | S191: 0 | U191: その他 | V191: 0 | W191: 0 | X191: 0 | Y191: 11 | AA191: 0.27 | AB191: 0.46 | AC191: 0.49
A192: R407C | B192: FDCP280HKXRA | H192: 11 | L192: 0.03 | M192: 0.06 | N192: 0.12 | O192: *** | P192: *** | Q192: *** | R192: *** | S192: 0 | U192: その他 | V192: 0 | W192: 0 | X192: 0 | Y192: 11 | AA192: 0.27 | AB192: 0.46 | AC192: 0.49
A193: R407C | B193: FDCP560HKXRA | H193: 29 | L193: 0.03 | M193: 0.06 | N193: 0.12 | O193: 0.2 | P193: 0.28 | Q193: *** | R193: *** | S193: 0 | U193: その他 | V193: 0 | W193: 0 | X193: 0 | Y193: 29 | AA193: 0.27 | AB193: 0.46 | AC193: 0.49
A194: R407C | B194: FDCP560HKXRA | C194: A | H194: 29 | L194: 0.03 | M194: 0.06 | N194: 0.12 | O194: 0.2 | P194: 0.28 | Q194: *** | R194: *** | S194: 0 | U194: その他 | V194: 0 | W194: 0 | X194: 0 | Y194: 29 | AA194: 0.27 | AB194: 0.46 | AC194: 0.49
A195: R407C | B195: FDCSP224HKXRA | H195: 11 | L195: 0.03 | M195: 0.06 | N195: 0.12 | O195: *** | P195: *** | Q195: *** | R195: *** | S195: 0 | U195: その他 | V195: 0 | W195: 0 | X195: 0 | Y195: 11 | AA195: 0.27 | AB195: 0.46 | AC195: 0.49
A196: R407C | B196: FDCSP280HKXRA | H196: 11 | L196: 0.03 | M196: 0.06 | N196: 0.12 | O196: *** | P196: *** | Q196: *** | R196: *** | S196: 0 | U196: その他 | V196: 0 | W196: 0 | X196: 0 | Y196: 11 | AA196: 0.27 | AB196: 0.46 | AC196: 0.49
A197: R407C | B197: FDCSP560HKXRA | H197: 29 | L197: 0.03 | M197: 0.06 | N197: 0.12 | O197: 0.2 | P197: 0.28 | Q197: *** | R197: *** | S197: 0 | U197: その他 | V197: 0 | W197: =V197 -> 0 | X197: =IF(S197+W197<0,0,S197+W197) -> 0 | Y197: 29 | AA197: =IF(A197="R410A",0.39,IF(A197="R407C",0.27,IF(A197="R22",0.21,"NG"))) -> 0.27 | AB197: =IF(A197="R410A",0.42,IF(A197="R407C",0.46,IF(A197="R22",0.28,"NG"))) -> 0.46 | AC197: =IF(A197="R410A",0.42,IF(A197="R407C",0.49,IF(A197="R22",0.5,"NG"))) -> 0.49 | AD197: =IF(OR(Z197<=AA197,AND(U197="その他",Z197<=AB197)),"OK",IF(OR(AND(U197="最下層",Z197<=AB197),AND(U197="その他",Z197<=AC197)),"対策が１つ必要です",IF(OR(AND(U197="最下層",Z197<=AC197),AND(U197="その他",Z197>AC197)),"対策が２つ必要です","システムの見直しが必要です"))) -> 
A198: R22 | B198: FDCJ355HKXIS1 | D198: ISUJ450HS1 | E198: FDCJ355HKXIS1 | H198: 20 | L198: 0.03 | M198: 0.06 | N198: 0.12 | O198: 0.2 | P198: 0.28 | Q198: *** | R198: *** | S198: 0 | U198: その他 | V198: 26 | W198: =V198 -> 26 | X198: =IF(S198+W198<0,0,S198+W198) -> 26 | Y198: =H198+X198 -> 46 | Z198: =Y198/I198 ->  | AA198: =IF(A198="R410A",0.39,IF(A198="R407C",0.27,IF(A198="R22",0.21,"NG"))) -> 0.21 | AB198: =IF(A198="R410A",0.42,IF(A198="R407C",0.46,IF(A198="R22",0.28,"NG"))) -> 0.28 | AC198: 0.5
A199: R22 | B199: FDCJ450HKXIS1 | D199: ISUJ560HS1 | E199: FDCJ450HKXIS1 | H199: 20 | L199: 0.03 | M199: 0.06 | N199: 0.12 | O199: 0.2 | P199: 0.28 | Q199: *** | R199: *** | S199: 0 | U199: その他 | V199: 26 | W199: =V199 -> 26 | X199: =IF(S199+W199<0,0,S199+W199) -> 26 | Y199: 46 | AA199: =IF(A199="R410A",0.39,IF(A199="R407C",0.27,IF(A199="R22",0.21,"NG"))) -> 0.21 | AB199: =IF(A199="R410A",0.42,IF(A199="R407C",0.46,IF(A199="R22",0.28,"NG"))) -> 0.28 | AC199: 0.5
A200: R22 | B200: FDCJ280HKXIS1A | D200: ISUJ355HS1 | E200: FDCJ280HKXIS1A | H200: 16.35 | L200: 0.03 | M200: 0.06 | N200: 0.12 | O200: 0.2 | P200: 0.28 | Q200: *** | R200: *** | S200: 0 | U200: その他 | V200: 17 | W200: =V200 -> 17 | X200: =IF(S200+W200<0,0,S200+W200) -> 17 | Y200: 33.35 | AA200: =IF(A200="R410A",0.39,IF(A200="R407C",0.27,IF(A200="R22",0.21,"NG"))) -> 0.21 | AB200: =IF(A200="R410A",0.42,IF(A200="R407C",0.46,IF(A200="R22",0.28,"NG"))) -> 0.28 | AC200: 0.5
A201: R22 | B201: FDCJ355HKXIS1A | D201: ISUJ450HS1 | E201: FDCJ355HKXIS1A | H201: 20 | L201: 0.03 | M201: 0.06 | N201: 0.12 | O201: 0.2 | P201: 0.28 | Q201: *** | R201: *** | S201: 0 | U201: その他 | V201: 26 | W201: 26 | X201: 26 | Y201: 46 | AA201: 0.21 | AB201: 0.28 | AC201: 0.5
... 664 more rows

Sheet ルックアップ用の表 (hidden)
A1: 1 | B1: 2 | C1: 3 | D1: 4 | E1: 5 | F1: 6 | I1: 1 | J1: 2 | K1: 3 | L1: 4 | M1: 5
A2: 関数用 | B2: 型 | C2: 標準・ﾘﾌﾚｯｼｭ 冷暖ﾌﾘｰ・寒冷地 | D2: 室外機 馬力 | E2: 実長 90m未満 | F2: 実長 90m以上 | G2: 備考 | I2: 関数用 | J2: 型 | K2: 標準・ﾘﾌﾚｯｼｭ 冷暖ﾌﾘｰ・寒冷地 | L2: 室外機 馬力 | M2: 一系統封入量 上限 | N2: 備考
A3: =B3&C3&","&D3 -> R32標準,4 | B3: R32 | C3: 標準 | D3: 4 | E3: 9.52 | F3: *** | I3: =J3&K3&","&L3 -> LXZ標準,4 | J3: LXZ | K3: 標準 | L3: 4 | M3: 50 | N3: 関数でエラーを出さないため便宜上50と入力
A4: =B4&C4&","&D4 -> R32標準,5 | B4: R32 | C4: 標準 | D4: 5 | E4: 9.52 | F4: *** | I4: LXZ標準,5 | J4: LXZ | K4: 標準 | L4: 5 | M4: 50 | N4: 関数でエラーを出さないため便宜上50と入力
A5: R32標準,6 | B5: R32 | C5: 標準 | D5: 6 | E5: 9.52 | F5: *** | I5: LXZ標準,6 | J5: LXZ | K5: 標準 | L5: 6 | M5: 50 | N5: 関数でエラーを出さないため便宜上50と入力
A6: R32標準,8 | B6: R32 | C6: 標準 | D6: 8 | E6: 9.52 | F6: 12.7 | I6: LXZY標準,8 | J6: LXZY | K6: 標準 | L6: 8 | M6: 50 | N6: 関数でエラーを出さないため便宜上50と入力
A7: R32標準,10 | B7: R32 | C7: 標準 | D7: 10 | E7: 9.52 | F7: 12.7 | I7: LXZY標準,10 | J7: LXZY | K7: 標準 | L7: 10 | M7: 50 | N7: 関数でエラーを出さないため便宜上50と入力
A8: =B8&C8&","&D8 -> R32標準,8 | B8: R32 | C8: 標準 | D8: 8 | E8: 9.52 | F8: 12.7 | I8: =J8&K8&","&L8 -> LXZ標準,8 | J8: LXZ | K8: 標準 | L8: 8 | M8: 63.8 | N8: 関数でエラーを出さないため便宜上51と入力
A9: R32標準,10 | B9: R32 | C9: 標準 | D9: 10 | E9: 9.52 | F9: 12.7 | I9: LXZ標準,10 | J9: LXZ | K9: 標準 | L9: 10 | M9: 63.8 | N9: マルチカタログ10年7月版108ページ
A10: R32標準,12 | B10: R32 | C10: 標準 | D10: 12 | E10: 12.7 | F10: 12.7 | I10: LXZ標準,12 | J10: LXZ | K10: 標準 | L10: 12 | M10: 63.8
A11: R32標準,14 | B11: R32 | C11: 標準 | D11: 14 | E11: 12.7 | F11: 12.7 | I11: LXZ標準,14 | J11: LXZ | K11: 標準 | L11: 14 | M11: 63.8
A12: R32標準,16 | B12: R32 | C12: 標準 | D12: 16 | E12: 12.7 | F12: 12.7 | I12: LXZ標準,16 | J12: LXZ | K12: 標準 | L12: 16 | M12: 63.8
A13: R32標準,18 | B13: R32 | C13: 標準 | D13: 18 | E13: 12.7 | F13: 15.88 | I13: LXZ標準,18 | J13: LXZ | K13: 標準 | L13: 18 | M13: 63.8
A14: R32標準,20 | B14: R32 | C14: 標準 | D14: 20 | E14: 12.7 | F14: 15.88 | I14: LXZ標準,20 | J14: LXZ | K14: 標準 | L14: 20 | M14: 63.8
A15: R32標準,22 | B15: R32 | C15: 標準 | D15: 22 | E15: 12.7 | F15: 15.88 | I15: LXZ標準,22 | J15: LXZ | K15: 標準 | L15: 22 | M15: 63.8
A16: R32標準,24 | B16: R32 | C16: 標準 | D16: 24 | E16: 12.7 | F16: 15.88 | I16: LXZ標準,24 | J16: LXZ | K16: 標準 | L16: 24 | M16: 63.8
A17: R32標準,26 | B17: R32 | C17: 標準 | D17: 26 | E17: 15.88 | F17: 19.05 | I17: LXZ標準,26 | J17: LXZ | K17: 標準 | L17: 26 | M17: 63.8
A18: R32標準,28 | B18: R32 | C18: 標準 | D18: 28 | E18: 15.88 | F18: 19.05 | I18: LXZ標準,28 | J18: LXZ | K18: 標準 | L18: 28 | M18: 63.8
A19: R32標準,30 | B19: R32 | C19: 標準 | D19: 30 | E19: 15.88 | F19: 19.05 | I19: LXZ標準,30 | J19: LXZ | K19: 標準 | L19: 30 | M19: 63.8
A20: R32標準,32 | B20: R32 | C20: 標準 | D20: 32 | E20: 15.88 | F20: 19.05 | I20: LXZ標準,32 | J20: LXZ | K20: 標準 | L20: 32 | M20: 63.8
A21: R32標準,34 | B21: R32 | C21: 標準 | D21: 34 | E21: 15.88 | F21: 19.05 | I21: LXZ標準,34 | J21: LXZ | K21: 標準 | L21: 34 | M21: 63.8
A22: R32標準,36 | B22: R32 | C22: 標準 | D22: 36 | E22: 15.88 | F22: 19.05 | I22: LXZ標準,36 | J22: LXZ | K22: 標準 | L22: 36 | M22: 63.8
A23: R32標準,38 | B23: R32 | C23: 標準 | D23: 38 | E23: 19.05 | F23: 22.22 | I23: LXZ標準,38 | J23: LXZ | K23: 標準 | L23: 38 | M23: 63.8
A24: R32標準,40 | B24: R32 | C24: 標準 | D24: 40 | E24: 19.05 | F24: 22.22 | I24: LXZ標準,40 | J24: LXZ | K24: 標準 | L24: 40 | M24: 63.8
A25: R32標準,42 | B25: R32 | C25: 標準 | D25: 42 | E25: 19.05 | F25: 22.22 | I25: LXZ標準,42 | J25: LXZ | K25: 標準 | L25: 42 | M25: 63.8
A26: R32標準,44 | B26: R32 | C26: 標準 | D26: 44 | E26: 19.05 | F26: 22.22 | I26: LXZ標準,44 | J26: LXZ | K26: 標準 | L26: 44 | M26: 63.8
A27: R32標準,46 | B27: R32 | C27: 標準 | D27: 46 | E27: 19.05 | F27: 22.22 | I27: LXZ標準,46 | J27: LXZ | K27: 標準 | L27: 46 | M27: 63.8
A28: =B28&C28&","&D28 -> R32標準,48 | B28: R32 | C28: 標準 | D28: 48 | E28: 19.05 | F28: 22.22 | I28: LXZ標準,48 | J28: LXZ | K28: 標準 | L28: 48 | M28: 63.8
A29: =B29&C29&","&D29 -> R32標準,54 | B29: R32 | C29: 標準 | D29: 54 | E29: 19.05 | F29: 22.22 | I29: LXZ標準,54 | J29: LXZ | K29: 標準 | L29: 54 | M29: 63.8
A30: =B30&C30&","&D30 -> R32標準,12 | B30: R32 | C30: 標準 | D30: 12 | E30: 12.7 | F30: 12.7 | I30: =J30&K30&","&L30 -> LXZ標準,12 | J30: LXZ | K30: 標準 | L30: 12 | M30: 63.8
A31: R32標準,18 | B31: R32 | C31: 標準 | D31: 18 | E31: 12.7 | F31: 15.88 | I31: LXZ標準,18 | J31: LXZ | K31: 標準 | L31: 18 | M31: 63.8
A32: R32標準,22 | B32: R32 | C32: 標準 | D32: 22 | E32: 12.7 | F32: 15.88 | I32: LXZ標準,22 | J32: LXZ | K32: 標準 | L32: 22 | M32: 63.8
A33: R32標準,24 | B33: R32 | C33: 標準 | D33: 24 | E33: 12.7 | F33: 15.88 | I33: LXZ標準,24 | J33: LXZ | K33: 標準 | L33: 24 | M33: 63.8
A34: =B34&C34&","&D34 -> R32標準,26 | B34: R32 | C34: 標準 | D34: 26 | E34: 15.88 | F34: 19.05 | I34: LXZ標準,26 | J34: LXZ | K34: 標準 | L34: 26 | M34: 63.8
A35: R32標準,34 | B35: R32 | C35: 標準 | D35: 34 | E35: 15.88 | F35: 19.05 | I35: LXZ標準,34 | J35: LXZ | K35: 標準 | L35: 34 | M35: 63.8
A36: R32標準,36 | B36: R32 | C36: 標準 | D36: 36 | E36: 15.88 | F36: 19.05 | I36: LXZ標準,36 | J36: LXZ | K36: 標準 | L36: 36 | M36: 63.8
A37: R32標準,38 | B37: R32 | C37: 標準 | D37: 38 | E37: 19.05 | F37: 22.22 | I37: LXZ標準,38 | J37: LXZ | K37: 標準 | L37: 38 | M37: 63.8
A38: R32標準,42 | B38: R32 | C38: 標準 | D38: 42 | E38: 19.05 | F38: 22.22 | I38: LXZ標準,42 | J38: LXZ | K38: 標準 | L38: 42 | M38: 63.8
A39: R32標準,44 | B39: R32 | C39: 標準 | D39: 44 | E39: 19.05 | F39: 22.22 | I39: LXZ標準,44 | J39: LXZ | K39: 標準 | L39: 44 | M39: 63.8
A40: R32標準,46 | B40: R32 | C40: 標準 | D40: 46 | E40: 19.05 | F40: 22.22 | I40: LXZ標準,46 | J40: LXZ | K40: 標準 | L40: 46 | M40: 63.8
A41: R32標準,48 | B41: R32 | C41: 標準 | D41: 48 | E41: 19.05 | F41: 22.22 | I41: LXZ標準,48 | J41: LXZ | K41: 標準 | L41: 48 | M41: 63.8
A42: R32標準,50 | B42: R32 | C42: 標準 | D42: 50 | E42: 19.05 | F42: 22.22 | I42: LXZ標準,50 | J42: LXZ | K42: 標準 | L42: 50 | M42: 63.8
A43: R32標準,52 | B43: R32 | C43: 標準 | D43: 52 | E43: 19.05 | F43: 22.22 | I43: LXZ標準,52 | J43: LXZ | K43: 標準 | L43: 52 | M43: 63.8
A44: R32標準,54 | B44: R32 | C44: 標準 | D44: 54 | E44: 19.05 | F44: 22.22 | I44: LXZ標準,54 | J44: LXZ | K44: 標準 | L44: 54 | M44: 63.8

Sheet ルックアップ用の表 (2) (hidden)
A1: 1 | B1: 2 | C1: 3 | D1: 4 | E1: 5 | F1: 6 | I1: 1 | J1: 2 | K1: 3 | L1: 4 | M1: 5
A2: 関数用 | B2: 型 | C2: 標準・ﾘﾌﾚｯｼｭ 冷暖ﾌﾘｰ・寒冷地 | D2: 室外機 馬力 | E2: 実長 90m未満 | F2: 実長 90m以上 | G2: 備考 | I2: 関数用 | J2: 型 | K2: 標準・ﾘﾌﾚｯｼｭ 冷暖ﾌﾘｰ・寒冷地 | L2: 室外機 馬力 | M2: 一系統封入量 上限 | N2: 備考
A3: =B3&C3&","&D3 -> R410A標準,4 | B3: R410A | C3: 標準 | D3: 4 | E3: 9.52 | F3: *** | G3: マルチカタログ10年7月版103ページ | I3: =J3&K3&","&L3 -> LX3標準,4 | J3: LX3 | K3: 標準 | L3: 4 | M3: 50 | N3: 関数でエラーを出さないため便宜上50と入力
A4: R410A標準,5 | B4: R410A | C4: 標準 | D4: 5 | E4: 9.52 | F4: *** | I4: LX3標準,5 | J4: LX3 | K4: 標準 | L4: 5 | M4: 50 | N4: 関数でエラーを出さないため便宜上50と入力
A5: R410A標準,6 | B5: R410A | C5: 標準 | D5: 6 | E5: 9.52 | F5: *** | I5: LX3標準,6 | J5: LX3 | K5: 標準 | L5: 6 | M5: 50 | N5: 関数でエラーを出さないため便宜上50と入力
A6: R410A標準,8 | B6: R410A | C6: 標準 | D6: 8 | E6: 9.52 | F6: 12.7 | I6: LX3標準,8 | J6: LX3 | K6: 標準 | L6: 8 | M6: 50 | N6: 関数でエラーを出さないため便宜上50と入力
A7: R410A標準,10 | B7: R410A | C7: 標準 | D7: 10 | E7: 9.52 | F7: 12.7 | I7: LX3標準,10 | J7: LX3 | K7: 標準 | L7: 10 | M7: 50 | N7: 関数でエラーを出さないため便宜上50と入力
A8: =B8&C8&","&D8 -> R410A標準,12 | B8: R410A | C8: 標準 | D8: 12 | E8: 12.7 | F8: 12.7 | I8: =J8&K8&","&L8 -> LX3標準,12 | J8: LX3 | K8: 標準 | L8: 12 | M8: 50 | N8: 関数でエラーを出さないため便宜上51と入力
A9: R410A標準,13 | B9: R410A | C9: 標準 | D9: 13 | E9: 12.7 | F9: 12.7 | I9: LX3標準,14 | J9: LX3 | K9: 標準 | L9: 14 | M9: 50 | N9: マルチカタログ10年7月版108ページ
A10: R410A標準,14 | B10: R410A | C10: 標準 | D10: 14 | E10: 12.7 | F10: 12.7 | G10: マルチカタログ10年7月版104ページ | I10: LX3標準,16 | J10: LX3 | K10: 標準 | L10: 16 | M10: 50
A11: R410A標準,16 | B11: R410A | C11: 標準 | D11: 16 | E11: 12.7 | F11: 12.7 | I11: LX3標準,18 | J11: LX3 | K11: 標準 | L11: 18 | M11: 50
A12: R410A標準,18 | B12: R410A | C12: 標準 | D12: 18 | E12: 12.7 | F12: 15.88 | I12: LX3標準,20 | J12: LX3 | K12: 標準 | L12: 20 | M12: 50
A13: R410A標準,20 | B13: R410A | C13: 標準 | D13: 20 | E13: 12.7 | F13: 15.88 | I13: LX3標準,22 | J13: LX3 | K13: 標準 | L13: 22 | M13: 50
A14: R410A標準,22 | B14: R410A | C14: 標準 | D14: 22 | E14: 12.7 | F14: 15.88 | I14: LX3標準,24 | J14: LX3 | K14: 標準 | L14: 24 | M14: 50
A15: R410A標準,24 | B15: R410A | C15: 標準 | D15: 24 | E15: 12.7 | F15: 15.88 | I15: LX3標準,26 | J15: LX3 | K15: 標準 | L15: 26 | M15: 100
A16: R410A標準,26 | B16: R410A | C16: 標準 | D16: 26 | E16: 15.88 | F16: 19.05 | I16: LX3標準,28 | J16: LX3 | K16: 標準 | L16: 28 | M16: 100
A17: R410A標準,28 | B17: R410A | C17: 標準 | D17: 28 | E17: 15.88 | F17: 19.05 | I17: LX3標準,30 | J17: LX3 | K17: 標準 | L17: 30 | M17: 100
A18: R410A標準,30 | B18: R410A | C18: 標準 | D18: 30 | E18: 15.88 | F18: 19.05 | I18: LX3標準,32 | J18: LX3 | K18: 標準 | L18: 32 | M18: 100
A19: R410A標準,32 | B19: R410A | C19: 標準 | D19: 32 | E19: 15.88 | F19: 19.05 | I19: LX3標準,34 | J19: LX3 | K19: 標準 | L19: 34 | M19: 100
A20: R410A標準,34 | B20: R410A | C20: 標準 | D20: 34 | E20: 15.88 | F20: 19.05 | I20: LX3標準,36 | J20: LX3 | K20: 標準 | L20: 36 | M20: 100
A21: R410A標準,36 | B21: R410A | C21: 標準 | D21: 36 | E21: 15.88 | F21: 19.05 | I21: LX3標準,38 | J21: LX3 | K21: 標準 | L21: 38 | M21: 100
A22: R410A標準,38 | B22: R410A | C22: 標準 | D22: 38 | E22: 19.05 | F22: 22.22 | I22: LX3標準,40 | J22: LX3 | K22: 標準 | L22: 40 | M22: 100
A23: R410A標準,40 | B23: R410A | C23: 標準 | D23: 40 | E23: 19.05 | F23: 22.22 | I23: LX3標準,42 | J23: LX3 | K23: 標準 | L23: 42 | M23: 100
A24: R410A標準,42 | B24: R410A | C24: 標準 | D24: 42 | E24: 19.05 | F24: 22.22 | I24: LX3標準,44 | J24: LX3 | K24: 標準 | L24: 44 | M24: 100
A25: R410A標準,44 | B25: R410A | C25: 標準 | D25: 44 | E25: 19.05 | F25: 22.22 | I25: LX3標準,46 | J25: LX3 | K25: 標準 | L25: 46 | M25: 100
A26: R410A標準,46 | B26: R410A | C26: 標準 | D26: 46 | E26: 19.05 | F26: 22.22 | I26: LX3標準,48 | J26: LX3 | K26: 標準 | L26: 48 | M26: 100
A27: R410A標準,48 | B27: R410A | C27: 標準 | D27: 48 | E27: 19.05 | F27: 22.22 | I27: LX3寒冷地,6 | J27: LX3 | K27: 寒冷地 | L27: 6 | M27: 50 | N27: 関数でエラーを出さないため便宜上50と入力
A28: =B28&C28&","&D28 -> R410A標準,50 | B28: R410A | C28: 標準 | D28: 50 | E28: 19.05 | F28: 22.22 | I28: LX3寒冷地,8 | J28: LX3 | K28: 寒冷地 | L28: 8 | M28: 50 | N28: 関数でエラーを出さないため便宜上50と入力
A29: =B29&C29&","&D29 -> R410A標準,52 | B29: R410A | C29: 標準 | D29: 52 | E29: 19.05 | F29: 22.22 | I29: LX3寒冷地,10 | J29: LX3 | K29: 寒冷地 | L29: 10 | M29: 50 | N29: 関数でエラーを出さないため便宜上50と入力
A30: =B30&C30&","&D30 -> R410A標準,54 | B30: R410A | C30: 標準 | D30: 54 | E30: 19.05 | F30: 22.22 | I30: LX3リフレッシュ,8 | J30: LX3 | K30: リフレッシュ | L30: 8 | M30: 50 | N30: 関数でエラーを出さないため便宜上50と入力
A31: R410A寒冷地,6 | B31: R410A | C31: 寒冷地 | D31: 6 | E31: 9.52 | F31: 12.7 | I31: LX3リフレッシュ,10 | J31: LX3 | K31: リフレッシュ | L31: 10 | M31: 50 | N31: 関数でエラーを出さないため便宜上50と入力
A32: R410A寒冷地,8 | B32: R410A | C32: 寒冷地 | D32: 8 | E32: 9.52 | F32: 12.7 | I32: LX3リフレッシュ,12 | J32: LX3 | K32: リフレッシュ | L32: 12 | M32: 50 | N32: 関数でエラーを出さないため便宜上50と入力
A33: R410A寒冷地,10 | B33: R410A | C33: 寒冷地 | D33: 10 | E33: 9.52 | F33: 12.7 | I33: LX3リフレッシュ,14 | J33: LX3 | K33: リフレッシュ | L33: 14 | M33: 50 | N33: マルチカタログ10年7月版108ページ
A34: R410Aリフレッシュ,8 | B34: R410A | C34: リフレッシュ | D34: 8 | E34: 15.88 | F34: 15.88 | I34: LX3リフレッシュ,16 | J34: LX3 | K34: リフレッシュ | L34: 16 | M34: 50
A35: R410Aリフレッシュ,10 | B35: R410A | C35: リフレッシュ | D35: 10 | E35: 15.88 | F35: 15.88 | I35: LX3リフレッシュ,18 | J35: LX3 | K35: リフレッシュ | L35: 18 | M35: 50
A36: R410Aリフレッシュ,12 | B36: R410A | C36: リフレッシュ | D36: 12 | E36: 15.88 | F36: 15.88 | I36: LX3リフレッシュ,20 | J36: LX3 | K36: リフレッシュ | L36: 20 | M36: 50
A37: R410Aリフレッシュ,14 | B37: R410A | C37: リフレッシュ | D37: 14 | E37: 15.88 | F37: 15.88 | I37: LX3リフレッシュ,22 | J37: LX3 | K37: リフレッシュ | L37: 22 | M37: 50
A38: R410Aリフレッシュ,16 | B38: R410A | C38: リフレッシュ | D38: 16 | E38: 15.88 | F38: 15.88 | I38: LX3リフレッシュ,24 | J38: LX3 | K38: リフレッシュ | L38: 24 | M38: 50
A39: R410Aリフレッシュ,18 | B39: R410A | C39: リフレッシュ | D39: 18 | E39: 19.05 | F39: 19.05 | I39: LX3リフレッシュ,26 | J39: LX3 | K39: リフレッシュ | L39: 26 | M39: 100
A40: R410Aリフレッシュ,20 | B40: R410A | C40: リフレッシュ | D40: 20 | E40: 19.05 | F40: 19.05 | I40: LX3リフレッシュ,28 | J40: LX3 | K40: リフレッシュ | L40: 28 | M40: 100
A41: R410Aリフレッシュ,22 | B41: R410A | C41: リフレッシュ | D41: 22 | E41: 19.05 | F41: 19.05 | I41: LX3リフレッシュ,30 | J41: LX3 | K41: リフレッシュ | L41: 30 | M41: 100
A42: R410Aリフレッシュ,24 | B42: R410A | C42: リフレッシュ | D42: 24 | E42: 19.05 | F42: 19.05 | I42: LX3リフレッシュ,32 | J42: LX3 | K42: リフレッシュ | L42: 32 | M42: 100
A43: R410Aリフレッシュ,26 | B43: R410A | C43: リフレッシュ | D43: 26 | E43: 22.22 | F43: 22.22 | I43: LX3リフレッシュ,34 | J43: LX3 | K43: リフレッシュ | L43: 34 | M43: 100
A44: R410Aリフレッシュ,28 | B44: R410A | C44: リフレッシュ | D44: 28 | E44: 22.22 | F44: 22.22 | I44: LX3リフレッシュ,36 | J44: LX3 | K44: リフレッシュ | L44: 36 | M44: 100
A45: R410Aリフレッシュ,30 | B45: R410A | C45: リフレッシュ | D45: 30 | E45: 22.22 | F45: 22.22 | I45: LX3リフレッシュ,38 | J45: LX3 | K45: リフレッシュ | L45: 38 | M45: 100
A46: R410Aリフレッシュ,32 | B46: R410A | C46: リフレッシュ | D46: 32 | E46: 22.22 | F46: 22.22 | I46: LX3リフレッシュ,40 | J46: LX3 | K46: リフレッシュ | L46: 40 | M46: 100
A47: R410Aリフレッシュ,34 | B47: R410A | C47: リフレッシュ | D47: 34 | E47: 22.22 | F47: 22.22 | I47: LX3リフレッシュ,42 | J47: LX3 | K47: リフレッシュ | L47: 42 | M47: 100
A48: R410Aリフレッシュ,36 | B48: R410A | C48: リフレッシュ | D48: 36 | E48: 22.22 | F48: 22.22 | I48: LX3リフレッシュ,44 | J48: LX3 | K48: リフレッシュ | L48: 44 | M48: 100
A49: R410Aリフレッシュ,38 | B49: R410A | C49: リフレッシュ | D49: 38 | E49: 25.4 | F49: 25.4 | I49: LX3リフレッシュ,46 | J49: LX3 | K49: リフレッシュ | L49: 46 | M49: 100
A50: R410Aリフレッシュ,40 | B50: R410A | C50: リフレッシュ | D50: 40 | E50: 25.4 | F50: 25.4 | I50: LX3リフレッシュ,48 | J50: LX3 | K50: リフレッシュ | L50: 48 | M50: 100
A51: R410Aリフレッシュ,42 | B51: R410A | C51: リフレッシュ | D51: 42 | E51: 25.4 | F51: 25.4 | I51: LX3冷暖フリー,8 | J51: LX3 | K51: 冷暖フリー | L51: 8 | M51: 50 | N51: 関数でエラーを出さないため便宜上50と入力
A52: R410Aリフレッシュ,44 | B52: R410A | C52: リフレッシュ | D52: 44 | E52: 25.4 | F52: 25.4 | I52: LX3冷暖フリー,10 | J52: LX3 | K52: 冷暖フリー | L52: 10 | M52: 50 | N52: 関数でエラーを出さないため便宜上50と入力
A53: R410Aリフレッシュ,46 | B53: R410A | C53: リフレッシュ | D53: 46 | E53: 25.4 | F53: 25.4 | I53: LX3冷暖フリー,12 | J53: LX3 | K53: 冷暖フリー | L53: 12 | M53: 50 | N53: 関数でエラーを出さないため便宜上50と入力
A54: R410Aリフレッシュ,48 | B54: R410A | C54: リフレッシュ | D54: 48 | E54: 25.4 | F54: 25.4 | I54: LX3冷暖フリー,14 | J54: LX3 | K54: 冷暖フリー | L54: 14 | M54: 50 | N54: マルチカタログ10年7月版108ページ
A55: R410A冷暖フリー,8 | B55: R410A | C55: 冷暖フリー | D55: 8 | E55: 9.52 | F55: 12.7 | I55: LX3冷暖フリー,16 | J55: LX3 | K55: 冷暖フリー | L55: 16 | M55: 50
A56: R410A冷暖フリー,10 | B56: R410A | C56: 冷暖フリー | D56: 10 | E56: 9.52 | F56: 12.7 | I56: LX3冷暖フリー,18 | J56: LX3 | K56: 冷暖フリー | L56: 18 | M56: 50
A57: R410A冷暖フリー,12 | B57: R410A | C57: 冷暖フリー | D57: 12 | E57: 12.7 | F57: 12.7 | I57: LX3冷暖フリー,20 | J57: LX3 | K57: 冷暖フリー | L57: 20 | M57: 50
A58: R410A冷暖フリー,14 | B58: R410A | C58: 冷暖フリー | D58: 14 | E58: 12.7 | F58: 12.7 | I58: LX3冷暖フリー,22 | J58: LX3 | K58: 冷暖フリー | L58: 22 | M58: 50
A59: R410A冷暖フリー,16 | B59: R410A | C59: 冷暖フリー | D59: 16 | E59: 12.7 | F59: 12.7 | I59: LX3冷暖フリー,24 | J59: LX3 | K59: 冷暖フリー | L59: 24 | M59: 50
A60: R410A冷暖フリー,18 | B60: R410A | C60: 冷暖フリー | D60: 18 | E60: 12.7 | F60: 15.88 | I60: LX3冷暖フリー,26 | J60: LX3 | K60: 冷暖フリー | L60: 26 | M60: 100
A61: R410A冷暖フリー,20 | B61: R410A | C61: 冷暖フリー | D61: 20 | E61: 12.7 | F61: 15.88 | I61: LX3冷暖フリー,28 | J61: LX3 | K61: 冷暖フリー | L61: 28 | M61: 100
A62: R410A冷暖フリー,22 | B62: R410A | C62: 冷暖フリー | D62: 22 | E62: 12.7 | F62: 15.88 | I62: LX3冷暖フリー,30 | J62: LX3 | K62: 冷暖フリー | L62: 30 | M62: 100
A63: R410A冷暖フリー,24 | B63: R410A | C63: 冷暖フリー | D63: 24 | E63: 12.7 | F63: 15.88 | I63: LX3冷暖フリー,32 | J63: LX3 | K63: 冷暖フリー | L63: 32 | M63: 100
A64: R410A冷暖フリー,26 | B64: R410A | C64: 冷暖フリー | D64: 26 | E64: 15.88 | F64: 19.05 | I64: LX3冷暖フリー,34 | J64: LX3 | K64: 冷暖フリー | L64: 34 | M64: 100
A65: R410A冷暖フリー,28 | B65: R410A | C65: 冷暖フリー | D65: 28 | E65: 15.88 | F65: 19.05 | I65: LX3冷暖フリー,36 | J65: LX3 | K65: 冷暖フリー | L65: 36 | M65: 100
A66: R410A冷暖フリー,30 | B66: R410A | C66: 冷暖フリー | D66: 30 | E66: 15.88 | F66: 19.05 | I66: LX3冷暖フリー,38 | J66: LX3 | K66: 冷暖フリー | L66: 38 | M66: 100
A67: =B67&C67&","&D67 -> R410A冷暖フリー,32 | B67: R410A | C67: 冷暖フリー | D67: 32 | E67: 15.88 | F67: 19.05 | I67: =J67&K67&","&L67 -> LX3冷暖フリー,40 | J67: LX3 | K67: 冷暖フリー | L67: 40 | M67: 100
A68: R410A冷暖フリー,34 | B68: R410A | C68: 冷暖フリー | D68: 34 | E68: 15.88 | F68: 19.05 | I68: LX3冷暖フリー,42 | J68: LX3 | K68: 冷暖フリー | L68: 42 | M68: 100
A69: R410A冷暖フリー,36 | B69: R410A | C69: 冷暖フリー | D69: 36 | E69: 15.88 | F69: 19.05 | I69: LX3冷暖フリー,44 | J69: LX3 | K69: 冷暖フリー | L69: 44 | M69: 100
A70: R410A冷暖フリー,38 | B70: R410A | C70: 冷暖フリー | D70: 38 | E70: 19.05 | F70: 22.22 | I70: LX3冷暖フリー,46 | J70: LX3 | K70: 冷暖フリー | L70: 46 | M70: 100
A71: R410A冷暖フリー,40 | B71: R410A | C71: 冷暖フリー | D71: 40 | E71: 19.05 | F71: 22.22 | I71: LX3冷暖フリー,48 | J71: LX3 | K71: 冷暖フリー | L71: 48 | M71: 100
A72: R410A冷暖フリー,42 | B72: R410A | C72: 冷暖フリー | D72: 42 | E72: 19.05 | F72: 22.22 | I72: LX4標準,4 | J72: LX4 | K72: 標準 | L72: 4 | M72: 7.18
A73: R410A冷暖フリー,44 | B73: R410A | C73: 冷暖フリー | D73: 44 | E73: 19.05 | F73: 22.22 | I73: LX4標準,5 | J73: LX4 | K73: 標準 | L73: 5 | M73: 7.18
A74: R410A冷暖フリー,46 | B74: R410A | C74: 冷暖フリー | D74: 46 | E74: 19.05 | F74: 22.22 | I74: LX4標準,6 | J74: LX4 | K74: 標準 | L74: 6 | M74: 50 | N74: 据説記載なし：関数でエラーを出さないため便宜上50と入力
A75: R410A冷暖フリー,48 | B75: R410A | C75: 冷暖フリー | D75: 48 | E75: 19.05 | F75: 22.22 | I75: LX4標準,8 | J75: LX4 | K75: 標準 | L75: 8 | M75: 40
A76: =B76&C76&","&D76 -> R410A冷暖フリー,50 | B76: R410A | C76: 冷暖フリー | D76: 50 | E76: 19.05 | F76: 22.22 | I76: LX4標準,10 | J76: LX4 | K76: 標準 | L76: 10 | M76: 40
A77: =B77&C77&","&D77 -> R410A冷暖フリー,52 | B77: R410A | C77: 冷暖フリー | D77: 52 | E77: 19.05 | F77: 22.22 | I77: LX4標準,12 | J77: LX4 | K77: 標準 | L77: 12 | M77: 50
A78: =B78&C78&","&D78 -> R410A冷暖フリー,54 | B78: R410A | C78: 冷暖フリー | D78: 54 | E78: 19.05 | F78: 22.22 | I78: LX4標準,14 | J78: LX4 | K78: 標準 | L78: 14 | M78: 50
A79: =B79&C79&","&D79 -> R410A高効率,8 | B79: R410A | C79: 高効率 | D79: 8 | E79: 9.52 | F79: 12.7 | I79: LX4標準,16 | J79: LX4 | K79: 標準 | L79: 16 | M79: 50
A80: R410A高効率,10 | B80: R410A | C80: 高効率 | D80: 10 | E80: 9.52 | F80: 12.7 | I80: LX4標準,18 | J80: LX4 | K80: 標準 | L80: 18 | M80: 50
A81: R410A高効率,12 | B81: R410A | C81: 高効率 | D81: 12 | E81: 12.7 | F81: 12.7 | I81: LX4標準,20 | J81: LX4 | K81: 標準 | L81: 20 | M81: 50
A82: R410A高効率,16 | B82: R410A | C82: 高効率 | D82: 16 | E82: 12.7 | F82: 12.7 | I82: LX4標準,22 | J82: LX4 | K82: 標準 | L82: 22 | M82: 50
A83: R410A高効率,18 | B83: R410A | C83: 高効率 | D83: 18 | E83: 12.7 | F83: 15.88 | I83: LX4標準,24 | J83: LX4 | K83: 標準 | L83: 24 | M83: 50
A84: R410A高効率,20 | B84: R410A | C84: 高効率 | D84: 20 | E84: 12.7 | F84: 15.88 | I84: LX4標準,26 | J84: LX4 | K84: 標準 | L84: 26 | M84: 100
A85: R410A高効率,22 | B85: R410A | C85: 高効率 | D85: 22 | E85: 12.7 | F85: 15.88 | I85: LX4標準,28 | J85: LX4 | K85: 標準 | L85: 28 | M85: 100
A86: R410A高効率,24 | B86: R410A | C86: 高効率 | D86: 24 | E86: 12.7 | F86: 15.88 | I86: LX4標準,30 | J86: LX4 | K86: 標準 | L86: 30 | M86: 100
A87: R410A高効率,26 | B87: R410A | C87: 高効率 | D87: 26 | E87: 15.88 | F87: 19.05 | I87: LX4標準,32 | J87: LX4 | K87: 標準 | L87: 32 | M87: 100
A88: R410A高効率,28 | B88: R410A | C88: 高効率 | D88: 28 | E88: 15.88 | F88: 19.05 | I88: LX4標準,34 | J88: LX4 | K88: 標準 | L88: 34 | M88: 100
A89: R410A高効率,30 | B89: R410A | C89: 高効率 | D89: 30 | E89: 15.88 | F89: 19.05 | I89: LX4標準,36 | J89: LX4 | K89: 標準 | L89: 36 | M89: 100
A90: R410A高効率,32 | B90: R410A | C90: 高効率 | D90: 32 | E90: 15.88 | F90: 19.05 | I90: LX4標準,38 | J90: LX4 | K90: 標準 | L90: 38 | M90: 100
A91: R410A高効率,34 | B91: R410A | C91: 高効率 | D91: 34 | E91: 15.88 | F91: 19.05 | I91: LX4標準,40 | J91: LX4 | K91: 標準 | L91: 40 | M91: 100
A92: R410A高効率,36 | B92: R410A | C92: 高効率 | D92: 36 | E92: 15.88 | F92: 19.05 | I92: LX4標準,42 | J92: LX4 | K92: 標準 | L92: 42 | M92: 100
A93: R22標準,4 | B93: R22 | C93: 標準 | D93: 4 | E93: 9.52 | F93: 9.52 | I93: LX4標準,44 | J93: LX4 | K93: 標準 | L93: 44 | M93: 100
A94: R22標準,5 | B94: R22 | C94: 標準 | D94: 5 | E94: 9.52 | F94: 9.52 | I94: LX4標準,46 | J94: LX4 | K94: 標準 | L94: 46 | M94: 100
A95: R22標準,6 | B95: R22 | C95: 標準 | D95: 6 | E95: 9.52 | F95: 9.52 | I95: LX4標準,48 | J95: LX4 | K95: 標準 | L95: 48 | M95: 100
A96: R22標準,8 | B96: R22 | C96: 標準 | D96: 8 | E96: 12.7 | F96: 12.7 | I96: LX4標準,50 | J96: LX4 | K96: 標準 | L96: 50 | M96: 100
A97: R22標準,10 | B97: R22 | C97: 標準 | D97: 10 | E97: 12.7 | F97: 12.7 | I97: LX4標準,52 | J97: LX4 | K97: 標準 | L97: 52 | M97: 100
A98: R22標準,13 | B98: R22 | C98: 標準 | D98: 13 | E98: 15.88 | F98: 15.88 | I98: LX4標準,54 | J98: LX4 | K98: 標準 | L98: 54 | M98: 100
A99: R22標準,16 | B99: R22 | C99: 標準 | D99: 16 | E99: 15.88 | F99: 15.88 | I99: LX4リフレッシュ,8 | J99: LX4 | K99: リフレッシュ | L99: 8 | M99: 40
A100: R22標準,20 | B100: R22 | C100: 標準 | D100: 20 | E100: 19.05 | F100: 19.05 | I100: LX4リフレッシュ,10 | J100: LX4 | K100: リフレッシュ | L100: 10 | M100: 40
A101: R22標準,24 | B101: R22 | C101: 標準 | D101: 24 | E101: 19.05 | F101: 19.05 | I101: LX4リフレッシュ,12 | J101: LX4 | K101: リフレッシュ | L101: 12 | M101: 50
A102: R22標準,26 | B102: R22 | C102: 標準 | D102: 26 | E102: 22.22 | F102: 22.22 | I102: LX4リフレッシュ,14 | J102: LX4 | K102: リフレッシュ | L102: 14 | M102: 50
A103: R22標準,28 | B103: R22 | C103: 標準 | D103: 28 | E103: 22.22 | F103: 22.22 | I103: LX4リフレッシュ,16 | J103: LX4 | K103: リフレッシュ | L103: 16 | M103: 50
A104: R22標準,30 | B104: R22 | C104: 標準 | D104: 30 | E104: 22.22 | F104: 22.22 | I104: LX4リフレッシュ,18 | J104: LX4 | K104: リフレッシュ | L104: 18 | M104: 50
A105: R407C標準,4 | B105: R407C | C105: 標準 | D105: 4 | E105: 9.52 | F105: 9.52 | I105: LX4リフレッシュ,20 | J105: LX4 | K105: リフレッシュ | L105: 20 | M105: 50
A106: R407C標準,5 | B106: R407C | C106: 標準 | D106: 5 | E106: 9.52 | F106: 9.52 | I106: LX4リフレッシュ,22 | J106: LX4 | K106: リフレッシュ | L106: 22 | M106: 50
A107: R407C標準,6 | B107: R407C | C107: 標準 | D107: 6 | E107: 9.52 | F107: 9.52 | I107: LX4リフレッシュ,24 | J107: LX4 | K107: リフレッシュ | L107: 24 | M107: 50
A108: R407C標準,8 | B108: R407C | C108: 標準 | D108: 8 | E108: 12.7 | F108: 12.7 | I108: LX4リフレッシュ,26 | J108: LX4 | K108: リフレッシュ | L108: 26 | M108: 100
A109: R407C標準,10 | B109: R407C | C109: 標準 | D109: 10 | E109: 12.7 | F109: 12.7 | I109: LX4リフレッシュ,28 | J109: LX4 | K109: リフレッシュ | L109: 28 | M109: 100
A110: R407C標準,13 | B110: R407C | C110: 標準 | D110: 13 | E110: 15.88 | F110: 15.88 | I110: LX4リフレッシュ,30 | J110: LX4 | K110: リフレッシュ | L110: 30 | M110: 100
A111: R407C標準,16 | B111: R407C | C111: 標準 | D111: 16 | E111: 15.88 | F111: 15.88 | I111: LX4リフレッシュ,32 | J111: LX4 | K111: リフレッシュ | L111: 32 | M111: 100
A112: R407C標準,20 | B112: R407C | C112: 標準 | D112: 20 | E112: 19.05 | F112: 19.05 | I112: LX4リフレッシュ,34 | J112: LX4 | K112: リフレッシュ | L112: 34 | M112: 100
A113: R407C標準,24 | B113: R407C | C113: 標準 | D113: 24 | E113: 19.05 | F113: 19.05 | I113: LX4リフレッシュ,36 | J113: LX4 | K113: リフレッシュ | L113: 36 | M113: 100
A114: R407C標準,26 | B114: R407C | C114: 標準 | D114: 26 | E114: 22.22 | F114: 22.22 | I114: LX4リフレッシュ,38 | J114: LX4 | K114: リフレッシュ | L114: 38 | M114: 100
A115: R407C標準,28 | B115: R407C | C115: 標準 | D115: 28 | E115: 22.22 | F115: 22.22 | I115: LX4リフレッシュ,40 | J115: LX4 | K115: リフレッシュ | L115: 40 | M115: 100
A116: R407C標準,30 | B116: R407C | C116: 標準 | D116: 30 | E116: 22.22 | F116: 22.22 | I116: LX4リフレッシュ,42 | J116: LX4 | K116: リフレッシュ | L116: 42 | M116: 100
A117: R22冷暖フリー,8 | B117: R22 | C117: 冷暖フリー | D117: 8 | E117: 12.7 | F117: 12.7 | I117: LX4冷暖フリー,8 | J117: LX4 | K117: 冷暖フリー | L117: 8 | M117: 50
A118: R22冷暖フリー,10 | B118: R22 | C118: 冷暖フリー | D118: 10 | E118: 12.7 | F118: 12.7 | I118: LX4冷暖フリー,10 | J118: LX4 | K118: 冷暖フリー | L118: 10 | M118: 50
A119: R22冷暖フリー,20 | B119: R22 | C119: 冷暖フリー | D119: 20 | E119: 19.05 | F119: 19.05 | I119: LX4冷暖フリー,12 | J119: LX4 | K119: 冷暖フリー | L119: 12 | M119: 50
A120: =B120&C120&","&D120 -> R407C冷暖フリー,8 | B120: R407C | C120: 冷暖フリー | D120: 8 | E120: 12.7 | F120: 12.7 | I120: LX4冷暖フリー,14 | J120: LX4 | K120: 冷暖フリー | L120: 14 | M120: 50
A121: =B121&C121&","&D121 -> R407C冷暖フリー,10 | B121: R407C | C121: 冷暖フリー | D121: 10 | E121: 12.7 | F121: 12.7 | I121: LX4冷暖フリー,16 | J121: LX4 | K121: 冷暖フリー | L121: 16 | M121: 50
A122: =B122&C122&","&D122 -> R407C冷暖フリー,20 | B122: R407C | C122: 冷暖フリー | D122: 20 | E122: 19.05 | F122: 19.05 | I122: LX4冷暖フリー,18 | J122: LX4 | K122: 冷暖フリー | L122: 18 | M122: 50
A123: =B123&C123&","&D123 -> R410A冷暖フリー・リフレッシュ,8 | B123: R410A | C123: 冷暖フリー・リフレッシュ | D123: 8 | E123: 9.52 | F123: 12.7 | I123: LX4冷暖フリー,20 | J123: LX4 | K123: 冷暖フリー | L123: 20 | M123: 50
A124: =B124&C124&","&D124 -> R410A冷暖フリー・リフレッシュ,10 | B124: R410A | C124: 冷暖フリー・リフレッシュ | D124: 10 | E124: 9.52 | F124: 12.7 | I124: LX4冷暖フリー,22 | J124: LX4 | K124: 冷暖フリー | L124: 22 | M124: 50
A125: R410A冷暖フリー・リフレッシュ,12 | B125: R410A | C125: 冷暖フリー・リフレッシュ | D125: 12 | E125: 12.7 | F125: 12.7 | I125: LX4冷暖フリー,24 | J125: LX4 | K125: 冷暖フリー | L125: 24 | M125: 50
A126: R410A冷暖フリー・リフレッシュ,14 | B126: R410A | C126: 冷暖フリー・リフレッシュ | D126: 14 | E126: 12.7 | F126: 12.7 | I126: LX4冷暖フリー,26 | J126: LX4 | K126: 冷暖フリー | L126: 26 | M126: 100
A127: R410A冷暖フリー・リフレッシュ,16 | B127: R410A | C127: 冷暖フリー・リフレッシュ | D127: 16 | E127: 12.7 | F127: 12.7 | I127: LX4冷暖フリー,28 | J127: LX4 | K127: 冷暖フリー | L127: 28 | M127: 100
A128: R410A冷暖フリー・リフレッシュ,18 | B128: R410A | C128: 冷暖フリー・リフレッシュ | D128: 18 | E128: 12.7 | F128: 15.88 | I128: LX4冷暖フリー,30 | J128: LX4 | K128: 冷暖フリー | L128: 30 | M128: 100
A129: R410A冷暖フリー・リフレッシュ,20 | B129: R410A | C129: 冷暖フリー・リフレッシュ | D129: 20 | E129: 12.7 | F129: 15.88 | I129: LX4冷暖フリー,32 | J129: LX4 | K129: 冷暖フリー | L129: 32 | M129: 100
A130: R410A冷暖フリー・リフレッシュ,22 | B130: R410A | C130: 冷暖フリー・リフレッシュ | D130: 22 | E130: 12.7 | F130: 15.88 | I130: LX4冷暖フリー,34 | J130: LX4 | K130: 冷暖フリー | L130: 34 | M130: 100
A131: R410A冷暖フリー・リフレッシュ,24 | B131: R410A | C131: 冷暖フリー・リフレッシュ | D131: 24 | E131: 12.7 | F131: 15.88 | I131: =J131&K131&","&L131 -> LX4冷暖フリー,36 | J131: LX4 | K131: 冷暖フリー | L131: 36 | M131: 100
A132: R410A冷暖フリー・リフレッシュ,26 | B132: R410A | C132: 冷暖フリー・リフレッシュ | D132: 26 | E132: 15.88 | F132: 19.05 | I132: LX4冷暖フリー,38 | J132: LX4 | K132: 冷暖フリー | L132: 38 | M132: 100
A133: R410A冷暖フリー・リフレッシュ,28 | B133: R410A | C133: 冷暖フリー・リフレッシュ | D133: 28 | E133: 15.88 | F133: 19.05 | I133: LX4冷暖フリー,40 | J133: LX4 | K133: 冷暖フリー | L133: 40 | M133: 100
A134: R410A冷暖フリー・リフレッシュ,30 | B134: R410A | C134: 冷暖フリー・リフレッシュ | D134: 30 | E134: 15.88 | F134: 19.05 | I134: LX4冷暖フリー,42 | J134: LX4 | K134: 冷暖フリー | L134: 42 | M134: 100
A135: R410AXAIR標準,16 | B135: R410A | C135: XAIR標準 | D135: 16 | E135: 15.88 | F135: 19.05 | I135: LX4冷暖フリー,44 | J135: LX4 | K135: 冷暖フリー | L135: 44 | M135: 100
A136: R410AXAIR標準,20 | B136: R410A | C136: XAIR標準 | D136: 20 | E136: 15.88 | F136: 19.05 | I136: LX4冷暖フリー,46 | J136: LX4 | K136: 冷暖フリー | L136: 46 | M136: 100
A137: R410AXAIR標準,25 | B137: R410A | C137: XAIR標準 | D137: 25 | E137: 15.88 | F137: 19.05 | I137: LX4冷暖フリー,48 | J137: LX4 | K137: 冷暖フリー | L137: 48 | M137: 100
A138: R410AXAIR標準,32 | B138: R410A | C138: XAIR標準 | D138: 32 | E138: 19.05 | F138: 22.22 | I138: =J138&K138&","&L138 -> LX4冷暖フリー,50 | J138: LX4 | K138: 冷暖フリー | L138: 50 | M138: 100
A139: R410AXAIR標準,36 | B139: R410A | C139: XAIR標準 | D139: 36 | E139: 19.05 | F139: 22.22 | I139: =J139&K139&","&L139 -> LX4冷暖フリー,52 | J139: LX4 | K139: 冷暖フリー | L139: 52 | M139: 100
A140: R410AXAIR標準,40 | B140: R410A | C140: XAIR標準 | D140: 40 | E140: 19.05 | F140: 22.22 | I140: =J140&K140&","&L140 -> LX4冷暖フリー,54 | J140: LX4 | K140: 冷暖フリー | L140: 54 | M140: 100
A141: R410AXAIR標準,41 | B141: R410A | C141: XAIR標準 | D141: 41 | E141: 19.05 | F141: 22.22 | I141: =J141&K141&","&L141 -> LX4高効率,8 | J141: LX4 | K141: 高効率 | L141: 8 | M141: 50
A142: R410AXAIR標準,45 | B142: R410A | C142: XAIR標準 | D142: 45 | E142: 19.05 | F142: 22.22 | I142: LX4高効率,10 | J142: LX4 | K142: 高効率 | L142: 10 | M142: 50
A143: R410AXAIR標準,50 | B143: R410A | C143: XAIR標準 | D143: 50 | E143: 19.05 | F143: 22.22 | I143: LX4高効率,12 | J143: LX4 | K143: 高効率 | L143: 12 | M143: 50
A144: R410AXAIRリニューアル,16 | B144: R410A | C144: XAIRリニューアル | D144: 16 | E144: 15.88 | F144: 19.05 | I144: LX4高効率,16 | J144: LX4 | K144: 高効率 | L144: 16 | M144: 50
A145: R410AXAIRリニューアル,20 | B145: R410A | C145: XAIRリニューアル | D145: 20 | E145: 15.88 | F145: 19.05 | I145: LX4高効率,18 | J145: LX4 | K145: 高効率 | L145: 18 | M145: 50
A146: R410AXAIRリニューアル,25 | B146: R410A | C146: XAIRリニューアル | D146: 25 | E146: 15.88 | F146: 19.05 | I146: LX4高効率,20 | J146: LX4 | K146: 高効率 | L146: 20 | M146: 50
A147: R410AXAIRリニューアル,32 | B147: R410A | C147: XAIRリニューアル | D147: 32 | E147: 19.05 | F147: 22.22 | I147: LX4高効率,22 | J147: LX4 | K147: 高効率 | L147: 22 | M147: 50
A148: R410AXAIRリニューアル,36 | B148: R410A | C148: XAIRリニューアル | D148: 36 | E148: 19.05 | F148: 22.22 | I148: LX4高効率,24 | J148: LX4 | K148: 高効率 | L148: 24 | M148: 50
A149: R410AXAIRリニューアル,40 | B149: R410A | C149: XAIRリニューアル | D149: 40 | E149: 19.05 | F149: 22.22 | I149: LX4高効率,26 | J149: LX4 | K149: 高効率 | L149: 26 | M149: 100
A150: R410AXAIRリニューアル,41 | B150: R410A | C150: XAIRリニューアル | D150: 41 | E150: 19.05 | F150: 22.22 | I150: LX4高効率,28 | J150: LX4 | K150: 高効率 | L150: 28 | M150: 100
A151: R410AXAIRリニューアル,45 | B151: R410A | C151: XAIRリニューアル | D151: 45 | E151: 19.05 | F151: 22.22 | I151: LX4高効率,30 | J151: LX4 | K151: 高効率 | L151: 30 | M151: 100
A152: R410AXAIRリニューアル,50 | B152: R410A | C152: XAIRリニューアル | D152: 50 | E152: 19.05 | F152: 22.22 | I152: LX4高効率,32 | J152: LX4 | K152: 高効率 | L152: 32 | M152: 100
A153: R410AXAIRハイパワー,16 | B153: R410A | C153: XAIRハイパワー | D153: 16 | E153: 15.88 | F153: 19.05 | I153: LX4高効率,34 | J153: LX4 | K153: 高効率 | L153: 34 | M153: 100
A154: R410AXAIRハイパワー,20 | B154: R410A | C154: XAIRハイパワー | D154: 20 | E154: 15.88 | F154: 19.05 | I154: LX4高効率,36 | J154: LX4 | K154: 高効率 | L154: 36 | M154: 100
A155: R410AXAIRハイパワー,25 | B155: R410A | C155: XAIRハイパワー | D155: 25 | E155: 15.88 | F155: 19.05 | I155: LX4冷暖フリー・リフレッシュ,8 | J155: LX4 | K155: 冷暖フリー・リフレッシュ | L155: 8 | M155: 50
A156: R410AXAIRハイパワー,32 | B156: R410A | C156: XAIRハイパワー | D156: 32 | E156: 19.05 | F156: 22.22 | I156: LX4冷暖フリー・リフレッシュ,10 | J156: LX4 | K156: 冷暖フリー・リフレッシュ | L156: 10 | M156: 50
A157: R410AXAIRハイパワー,36 | B157: R410A | C157: XAIRハイパワー | D157: 36 | E157: 19.05 | F157: 22.22 | I157: LX4冷暖フリー・リフレッシュ,12 | J157: LX4 | K157: 冷暖フリー・リフレッシュ | L157: 12 | M157: 50
A158: R410AXAIRハイパワー,40 | B158: R410A | C158: XAIRハイパワー | D158: 40 | E158: 19.05 | F158: 22.22 | I158: LX4冷暖フリー・リフレッシュ,14 | J158: LX4 | K158: 冷暖フリー・リフレッシュ | L158: 14 | M158: 50
A159: R410AXAIRハイパワー,41 | B159: R410A | C159: XAIRハイパワー | D159: 41 | E159: 19.05 | F159: 22.22 | I159: LX4冷暖フリー・リフレッシュ,16 | J159: LX4 | K159: 冷暖フリー・リフレッシュ | L159: 16 | M159: 50
A160: R410AXAIRハイパワー,45 | B160: R410A | C160: XAIRハイパワー | D160: 45 | E160: 19.05 | F160: 22.22 | I160: LX4冷暖フリー・リフレッシュ,18 | J160: LX4 | K160: 冷暖フリー・リフレッシュ | L160: 18 | M160: 50
A161: R410AXAIRハイパワー,50 | B161: R410A | C161: XAIRハイパワー | D161: 50 | E161: 19.05 | F161: 22.22 | I161: LX4冷暖フリー・リフレッシュ,20 | J161: LX4 | K161: 冷暖フリー・リフレッシュ | L161: 20 | M161: 50
A162: R410AXAIRハイパワーリニューアル,16 | B162: R410A | C162: XAIRハイパワーリニューアル | D162: 16 | E162: 15.88 | F162: 19.05 | I162: LX4冷暖フリー・リフレッシュ,22 | J162: LX4 | K162: 冷暖フリー・リフレッシュ | L162: 22 | M162: 50
A163: R410AXAIRハイパワーリニューアル,20 | B163: R410A | C163: XAIRハイパワーリニューアル | D163: 20 | E163: 15.88 | F163: 19.05 | I163: LX4冷暖フリー・リフレッシュ,24 | J163: LX4 | K163: 冷暖フリー・リフレッシュ | L163: 24 | M163: 50
A164: R410AXAIRハイパワーリニューアル,25 | B164: R410A | C164: XAIRハイパワーリニューアル | D164: 25 | E164: 15.88 | F164: 19.05 | I164: LX4冷暖フリー・リフレッシュ,26 | J164: LX4 | K164: 冷暖フリー・リフレッシュ | L164: 26 | M164: 100
A165: R410AXAIRハイパワーリニューアル,32 | B165: R410A | C165: XAIRハイパワーリニューアル | D165: 32 | E165: 19.05 | F165: 22.22 | I165: LX4冷暖フリー・リフレッシュ,28 | J165: LX4 | K165: 冷暖フリー・リフレッシュ | L165: 28 | M165: 100
A166: R410AXAIRハイパワーリニューアル,36 | B166: R410A | C166: XAIRハイパワーリニューアル | D166: 36 | E166: 19.05 | F166: 22.22 | I166: LX4冷暖フリー・リフレッシュ,30 | J166: LX4 | K166: 冷暖フリー・リフレッシュ | L166: 30 | M166: 100
A167: R410AXAIRハイパワーリニューアル,40 | B167: R410A | C167: XAIRハイパワーリニューアル | D167: 40 | E167: 19.05 | F167: 22.22 | I167: =J167&K167&","&L167 -> XAIR標準,16 | J167: XAIR | K167: 標準 | L167: 16 | M167: 100
A168: R410AXAIRハイパワーリニューアル,41 | B168: R410A | C168: XAIRハイパワーリニューアル | D168: 41 | E168: 19.05 | F168: 22.22 | I168: =J168&K168&","&L168 -> XAIR標準,20 | J168: XAIR | K168: 標準 | L168: 20 | M168: 100
A169: R410AXAIRハイパワーリニューアル,45 | B169: R410A | C169: XAIRハイパワーリニューアル | D169: 45 | E169: 19.05 | F169: 22.22 | I169: XAIR標準,25 | J169: XAIR | K169: 標準 | L169: 25 | M169: 100
A170: R410AXAIRハイパワーリニューアル,50 | B170: R410A | C170: XAIRハイパワーリニューアル | D170: 50 | E170: 19.05 | F170: 22.22 | I170: XAIRリニューアル,16 | J170: XAIR | K170: リニューアル | L170: 16 | M170: 100
A171: R410AECO1標準,8 | B171: R410A | C171: ECO1標準 | D171: 8 | E171: 9.52 | F171: 12.7 | I171: XAIRリニューアル,20 | J171: XAIR | K171: リニューアル | L171: 20 | M171: 100
A172: R410AECO1標準,10 | B172: R410A | C172: ECO1標準 | D172: 10 | E172: 9.52 | F172: 12.7 | I172: XAIRリニューアル,25 | J172: XAIR | K172: リニューアル | L172: 25 | M172: 100
A173: R410AECO1標準,13 | B173: R410A | C173: ECO1標準 | D173: 13 | E173: 12.7 | F173: 15.88 | I173: XAIRハイパワー,16 | J173: XAIR | K173: ハイパワー | L173: 16 | M173: 100
A174: R410AECO1標準小型,16 | B174: R410A | C174: ECO1標準小型 | D174: 16 | E174: 12.7 | F174: 15.88 | I174: XAIRハイパワー,20 | J174: XAIR | K174: ハイパワー | L174: 20 | M174: 100
A175: R410AECO1標準,16 | B175: R410A | C175: ECO1標準 | D175: 16 | E175: 15.88 | F175: 19.05 | I175: XAIRハイパワー,25 | J175: XAIR | K175: ハイパワー | L175: 25 | M175: 100
A176: R410AECO1標準,20 | B176: R410A | C176: ECO1標準 | D176: 20 | E176: 15.88 | F176: 19.05 | I176: XAIRハイパワーリニューアル,16 | J176: XAIR | K176: ハイパワーリニューアル | L176: 16 | M176: 100
A177: R410AECO1標準,25 | B177: R410A | C177: ECO1標準 | D177: 25 | E177: 15.88 | F177: 19.05 | I177: XAIRハイパワーリニューアル,20 | J177: XAIR | K177: ハイパワーリニューアル | L177: 20 | M177: 100
A178: R410AECO1標準,32 | B178: R410A | C178: ECO1標準 | D178: 32 | E178: 19.05 | F178: 22.22 | I178: XAIRハイパワーリニューアル,25 | J178: XAIR | K178: ハイパワーリニューアル | L178: 25 | M178: 100
A179: R410AECO1標準,36 | B179: R410A | C179: ECO1標準 | D179: 36 | E179: 19.05 | F179: 22.22 | I179: ECO1標準,8 | J179: ECO1 | K179: 標準 | L179: 8 | M179: 100
A180: R410AECO1標準,40 | B180: R410A | C180: ECO1標準 | D180: 40 | E180: 19.05 | F180: 22.22 | I180: ECO1標準,10 | J180: ECO1 | K180: 標準 | L180: 10 | M180: 100
A181: R410AECO1標準,41 | B181: R410A | C181: ECO1標準 | D181: 41 | E181: 19.05 | F181: 22.22 | I181: ECO1標準,13 | J181: ECO1 | K181: 標準 | L181: 13 | M181: 100
A182: R410AECO1標準,45 | B182: R410A | C182: ECO1標準 | D182: 45 | E182: 19.05 | F182: 22.22 | I182: ECO1標準,16 | J182: ECO1 | K182: 標準 | L182: 16 | M182: 100
A183: R410AECO1標準,50 | B183: R410A | C183: ECO1標準 | D183: 50 | E183: 19.05 | F183: 22.22 | I183: ECO1標準,20 | J183: ECO1 | K183: 標準 | L183: 20 | M183: 100
A184: R410AECO1リニューアル,8 | B184: R410A | C184: ECO1リニューアル | D184: 8 | E184: 9.52 | F184: 12.7 | I184: ECO1標準,25 | J184: ECO1 | K184: 標準 | L184: 25 | M184: 100
A185: R410AECO1リニューアル,10 | B185: R410A | C185: ECO1リニューアル | D185: 10 | E185: 9.52 | F185: 12.7 | I185: ECO1リニューアル,8 | J185: ECO1 | K185: リニューアル | L185: 8 | M185: 100
A186: R410AECO1リニューアル,13 | B186: R410A | C186: ECO1リニューアル | D186: 13 | E186: 12.7 | F186: 15.88 | I186: ECO1リニューアル,10 | J186: ECO1 | K186: リニューアル | L186: 10 | M186: 100
A187: R410AECO1リニューアル小型,16 | B187: R410A | C187: ECO1リニューアル小型 | D187: 16 | E187: 12.7 | F187: 15.88 | I187: ECO1リニューアル,13 | J187: ECO1 | K187: リニューアル | L187: 13 | M187: 100
A188: =B188&C188&","&D188 -> R410AECO1リニューアル,16 | B188: R410A | C188: ECO1リニューアル | D188: 16 | E188: 15.88 | F188: 19.05 | I188: ECO1リニューアル,16 | J188: ECO1 | K188: リニューアル | L188: 16 | M188: 100
A189: R410AECO1リニューアル,20 | B189: R410A | C189: ECO1リニューアル | D189: 20 | E189: 15.88 | F189: 19.05 | I189: ECO1リニューアル,20 | J189: ECO1 | K189: リニューアル | L189: 20 | M189: 100
A190: R410AECO1リニューアル,25 | B190: R410A | C190: ECO1リニューアル | D190: 25 | E190: 15.88 | F190: 19.05 | I190: ECO1リニューアル,25 | J190: ECO1 | K190: リニューアル | L190: 25 | M190: 100
A191: R410AECO1リニューアル,32 | B191: R410A | C191: ECO1リニューアル | D191: 32 | E191: 19.05 | F191: 22.22 | I191: ECO1ハイパワー,16 | J191: ECO1 | K191: ハイパワー | L191: 16 | M191: 100
A192: R410AECO1リニューアル,36 | B192: R410A | C192: ECO1リニューアル | D192: 36 | E192: 19.05 | F192: 22.22 | I192: ECO1ハイパワー,20 | J192: ECO1 | K192: ハイパワー | L192: 20 | M192: 100
A193: R410AECO1リニューアル,40 | B193: R410A | C193: ECO1リニューアル | D193: 40 | E193: 19.05 | F193: 22.22 | I193: ECO1ハイパワー,25 | J193: ECO1 | K193: ハイパワー | L193: 25 | M193: 100
A194: R410AECO1リニューアル,41 | B194: R410A | C194: ECO1リニューアル | D194: 41 | E194: 19.05 | F194: 22.22 | I194: ECO1ハイパワーリニューアル,16 | J194: ECO1 | K194: ハイパワーリニューアル | L194: 16 | M194: 100
A195: R410AECO1リニューアル,45 | B195: R410A | C195: ECO1リニューアル | D195: 45 | E195: 19.05 | F195: 22.22 | I195: ECO1ハイパワーリニューアル,20 | J195: ECO1 | K195: ハイパワーリニューアル | L195: 20 | M195: 100
A196: R410AECO1リニューアル,50 | B196: R410A | C196: ECO1リニューアル | D196: 50 | E196: 19.05 | F196: 22.22 | I196: ECO1ハイパワーリニューアル,25 | J196: ECO1 | K196: ハイパワーリニューアル | L196: 25 | M196: 100
A197: =B197&C197&","&D197 -> R410AECO1ハイパワー,16 | B197: R410A | C197: ECO1ハイパワー | D197: 16 | E197: 15.88 | F197: 19.05 | I197: XAIRⅡXAIR標準,16 | J197: XAIRⅡ | K197: XAIR標準 | L197: 16 | M197: 100 | N197: 2017/12月追加
A198: =B198&C198&","&D198 -> R410AECO1ハイパワー,20 | B198: R410A | C198: ECO1ハイパワー | D198: 20 | E198: 15.88 | F198: 19.05 | I198: =J198&K198&","&L198 -> XAIRⅡXAIR標準,20 | J198: XAIRⅡ | K198: XAIR標準 | L198: 20 | M198: 100 | N198: ↑
A199: =B199&C199&","&D199 -> R410AECO1ハイパワー,25 | B199: R410A | C199: ECO1ハイパワー | D199: 25 | E199: 15.88 | F199: 19.05 | I199: =J199&K199&","&L199 -> XAIRⅡXAIR標準,25 | J199: XAIRⅡ | K199: XAIR標準 | L199: 25 | M199: 100 | N199: ↑
A200: =B200&C200&","&D200 -> R410AECO1ハイパワー,32 | B200: R410A | C200: ECO1ハイパワー | D200: 32 | E200: 19.05 | F200: 22.22 | I200: =J200&K200&","&L200 -> XAIRⅡXAIR標準,30 | J200: XAIRⅡ | K200: XAIR標準 | L200: 30 | M200: 100 | N200: ↑
... 96 more rows
